Workbook

Sheet FICHA
B1: REGLAS FISCALES DE LOS GOBIERNOS REGIONALES Y GOBIERNOS LOCALES 2018 1/
B3: DEPARTAMENTO
B4: PROVINCIA
B5: ENTIDAD
B7: R1: Regla Fiscal de Saldo de Deuda Total | D7: =IFERROR( VLOOKUP($C$19,REGLAS!$A$1:$S$1901,14,FALSE)," ") ->  | E7: R2: Regla Fiscal de Ahorro en Cuenta Corriente | G7: =IFERROR(IF( VLOOKUP($C$19,REGLAS!$A$1:$S$1901,10,FALSE)="Exceptuado","Exceptuado",IFERROR( VLOOKUP($C$19,REGLAS!$A$1:$S$1901,19,FALSE)," "))," ") -> 
B8: Saldo de Deuda Total | C8: =IFERROR( VLOOKUP($C$19,REGLAS!$A$1:$S$1901,6,FALSE), " ") ->  | D8: Miles | E8: Ingreso Corriente Total - ICT | F8: =IFERROR( VLOOKUP($C$19,REGLAS!$A$1:$S$1901,16,FALSE), " " ) ->  | G8: Miles
B9: Prom. ICT | C9: =IFERROR( VLOOKUP($C$19,REGLAS!$A$1:$S$1901,8,FALSE), " ") ->  | D9: Miles | E9: Gasto Corriente Total - GCT | F9: =IFERROR( VLOOKUP($C$19,REGLAS!$A$1:$S$1901,17,FALSE), " " ) ->  | G9: Miles
B10: Límite Ley N° 29230 2/ | C10: =IFERROR( VLOOKUP($C$19,REGLAS!$A$1:$S$1901,9,FALSE), " ") ->  | D10: Miles | E10: Ahorro en Cuenta Corriente - ACC | F10: =IFERROR( VLOOKUP($C$19,REGLAS!$A$1:$S$1901,18,FALSE), " ") ->  | G10: Miles
B11: Espacio Total | C11: =IFERROR( VLOOKUP($C$19,REGLAS!$A$1:$S$1901,10,FALSE), " ") ->  | D11: Miles
B12: SDT/Prom. ICT | C12: =IFERROR( VLOOKUP($C$19,REGLAS!$A$1:$S$1901,12,FALSE), " ") ->  | D12: Porcentaje
B13: }
L20: Zona de riesgo
L21: limite1 | M21: limite2 | N21: valor | P21: ICT | Q21: =IFERROR( VLOOKUP($C$19,REGLAS!$A$1:$S$1901,15,FALSE), " " ) -> 
L22: 0.8 | M22: 0.8 | N22: 0.8 | P22: GCT | Q22: =IFERROR( VLOOKUP($C$19,REGLAS!$A$1:$S$1901,16,FALSE), " " ) -> 
L23: 1 | M23: 1 | N23: 1 | P23: ACC | Q23: =IFERROR( VLOOKUP($C$19,REGLAS!$A$1:$S$1901,17,FALSE), " ") -> 
M24: =C12/100 -> 
P25: ICT | Q25: GCT | R25: ACC
P26: 0 | Q26: 0 | R26: 0 | S26: 0
P27: 0 | Q27: 0 | R27: 0
P28: =IFERROR( VLOOKUP($C$19,REGLAS!$A$1:$S$1901,16,FALSE), " " ) ->  | Q28: =IFERROR( VLOOKUP($C$19,REGLAS!$A$1:$S$1901,17,FALSE), " " ) ->  | R28: =IFERROR( VLOOKUP($C$19,REGLAS!$A$1:$S$1901,18,FALSE), " ") -> 
B30: 1/ Las reglas fiscales de los Gobiernos Regionales y Gobiernos Locales son las dispuestas por el Decreto Legislativo N° 1275, que aprueba el Marco de Responsabilidad y Transparencia Fiscal de los Gobiernos Regionales y Gobiernos Locales. Al respecto, las leyes anuales de presupuesto, de endeudamiento y de equilibrio financiero, los créditos suplementarios y la ejecución presupuestal de los Gobiernos Regionales y Gobiernos Locales, en los aspectos que sean pertinentes, se sujetan al cumplimiento de las reglas fiscales.
B31: 2/Corresponde a la suma de los flujos transferidos por concepto de Recursos Determinados provenientes de Canon, Sobrecanon, Regalías, Renta de Aduanas y Participaciones de los años 2016 y 2017, más el tope presupuestal por el mismo concepto incluido en el Presupuesto Institucional de Apertura 2018, aprobado mediante Ley N° 30693 – Ley de Presupuesto del Sector Público para el Año Fiscal 2018, informado a través de Memorando N° 179-2018-EF/50.03 por la Dirección General de Presupuesto Público del Ministerio de Economía y Finanzas.
B32: Nota: El Saldo de Deuda Total esta compuesta por la información disponible del Saldo de Pasivos, Deuda Exigible con entidades del Estado y Deuda Real con el Sistema Privado de Pensiones a diciembre del 2018.
B33: Fuente: MEF-DGCP, SUNAT, SBS y AFP.

Sheet REGLAS (hidden)
A1: BUSQUEDA | B1: NRO | C1: Ubigeo | D1: Departamento | E1: Entidad | F1: SDT | G1: B01 | H1: PROM_ICT | I1: LIMITE_LEY | J1: Espacio Total | K1: B02 | L1: STD_PROM_ICT | M1: B03 | N1: Cumple_R1 | O1: B04 | P1: ICT | Q1: GCT | R1: ACC | S1: Cumple_R2
A2: 010000 : GOBIERNO REGIONAL DE AMAZONAS | B2: 1 | C2: 010000 | D2: AMAZONAS | E2: GOBIERNO REGIONAL AMAZONAS | F2: =+VLOOKUP(C2,'Anexo_GR '!$C$9:$N$34,3,0) -> 396337.7304 | H2: =+VLOOKUP(C2,'Anexo_GR '!$C$9:$N$34,4,0) -> 548821.9276 | I2: =+VLOOKUP(C2,'Anexo_GR '!$C$9:$N$34,5,0) -> 4.56198 | J2: =+VLOOKUP(C2,'Anexo_GR '!$C$9:$N$34,6,0) -> 152484.1973 | L2: =+VLOOKUP(C2,'Anexo_GR '!$C$9:$N$34,7,0) -> 72.21608875 | N2: =+VLOOKUP(C2,'Anexo_GR '!$C$9:$N$34,8,0) -> Cumple | P2: =+VLOOKUP(C2,'Anexo_GR '!$C$9:$N$34,10,0) -> 642811.8062 | Q2: =+VLOOKUP(C2,'Anexo_GR '!$C$9:$N$34,11,0) -> 635692.8015 | R2: =+VLOOKUP(C2,'Anexo_GR '!$C$9:$N$34,12,0) -> 7119.00472 | S2: =+VLOOKUP(C2,'Anexo_GR '!$C$9:$O$34,13,0) -> Cumple
A3: 020000 : GOBIERNO REGIONAL DE ANCASH | B3: 2 | C3: 020000 | D3: ÁNCASH | E3: GOBIERNO REGIONAL ANCASH | F3: =+VLOOKUP(C3,'Anexo_GR '!$C$9:$N$34,3,0) -> 578083.4422 | H3: =+VLOOKUP(C3,'Anexo_GR '!$C$9:$N$34,4,0) -> 1328138.789 | I3: =+VLOOKUP(C3,'Anexo_GR '!$C$9:$N$34,5,0) -> 324314.3632 | J3: =+VLOOKUP(C3,'Anexo_GR '!$C$9:$N$34,6,0) -> 750055.3466 | L3: =+VLOOKUP(C3,'Anexo_GR '!$C$9:$N$34,7,0) -> 43.52583082 | N3: =+VLOOKUP(C3,'Anexo_GR '!$C$9:$N$34,8,0) -> Cumple | P3: =+VLOOKUP(C3,'Anexo_GR '!$C$9:$N$34,10,0) -> 1634363.308 | Q3: =+VLOOKUP(C3,'Anexo_GR '!$C$9:$N$34,11,0) -> 1382300.177 | R3: =+VLOOKUP(C3,'Anexo_GR '!$C$9:$N$34,12,0) -> 252063.1311 | S3: =+VLOOKUP(C3,'Anexo_GR '!$C$9:$O$34,13,0) -> Cumple
A4: 030000 : GOBIERNO REGIONAL DE APURIMAC | B4: 3 | C4: 030000 | D4: APURÍMAC | E4: GOBIERNO REGIONAL APURIMAC | F4: =+VLOOKUP(C4,'Anexo_GR '!$C$9:$N$34,3,0) -> 628086.142 | H4: =+VLOOKUP(C4,'Anexo_GR '!$C$9:$N$34,4,0) -> 697059.0931 | I4: =+VLOOKUP(C4,'Anexo_GR '!$C$9:$N$34,5,0) -> 64571.57428 | J4: =+VLOOKUP(C4,'Anexo_GR '!$C$9:$N$34,6,0) -> 68972.95111 | L4: =+VLOOKUP(C4,'Anexo_GR '!$C$9:$N$34,7,0) -> 90.10515008 | N4: =+VLOOKUP(C4,'Anexo_GR '!$C$9:$N$34,8,0) -> Cumple | P4: =+VLOOKUP(C4,'Anexo_GR '!$C$9:$N$34,10,0) -> 800675.5859 | Q4: =+VLOOKUP(C4,'Anexo_GR '!$C$9:$N$34,11,0) -> 770540.3846 | R4: =+VLOOKUP(C4,'Anexo_GR '!$C$9:$N$34,12,0) -> 30135.2013 | S4: =+VLOOKUP(C4,'Anexo_GR '!$C$9:$O$34,13,0) -> Cumple
A5: 040000 : GOBIERNO REGIONAL DE AREQUIPA | B5: 4 | C5: 040000 | D5: AREQUIPA | E5: GOBIERNO REGIONAL AREQUIPA | F5: =+VLOOKUP(C5,'Anexo_GR '!$C$9:$N$34,3,0) -> 1527489.836 | H5: =+VLOOKUP(C5,'Anexo_GR '!$C$9:$N$34,4,0) -> 1255177.631 | I5: =+VLOOKUP(C5,'Anexo_GR '!$C$9:$N$34,5,0) -> 243356.3318 | J5: =+VLOOKUP(C5,'Anexo_GR '!$C$9:$N$34,6,0) -> 0 | L5: =+VLOOKUP(C5,'Anexo_GR '!$C$9:$N$34,7,0) -> 121.695113 | N5: =+VLOOKUP(C5,'Anexo_GR '!$C$9:$N$34,8,0) -> No Cumple | P5: =+VLOOKUP(C5,'Anexo_GR '!$C$9:$N$34,10,0) -> 1480492.169 | Q5: =+VLOOKUP(C5,'Anexo_GR '!$C$9:$N$34,11,0) -> 1319208.253 | R5: =+VLOOKUP(C5,'Anexo_GR '!$C$9:$N$34,12,0) -> 161283.9162 | S5: =+VLOOKUP(C5,'Anexo_GR '!$C$9:$O$34,13,0) -> Cumple
A6: 050000 : GOBIERNO REGIONAL DE AYACUCHO | B6: 5 | C6: 050000 | D6: AYACUCHO | E6: GOBIERNO REGIONAL AYACUCHO | F6: =+VLOOKUP(C6,'Anexo_GR '!$C$9:$N$34,3,0) -> 645022.071 | H6: =+VLOOKUP(C6,'Anexo_GR '!$C$9:$N$34,4,0) -> 975724.7973 | I6: =+VLOOKUP(C6,'Anexo_GR '!$C$9:$N$34,5,0) -> 78543.27508 | J6: =+VLOOKUP(C6,'Anexo_GR '!$C$9:$N$34,6,0) -> 330702.7263 | L6: =+VLOOKUP(C6,'Anexo_GR '!$C$9:$N$34,7,0) -> 66.10696713 | N6: =+VLOOKUP(C6,'Anexo_GR '!$C$9:$N$34,8,0) -> Cumple | P6: =+VLOOKUP(C6,'Anexo_GR '!$C$9:$N$34,10,0) -> 1122596.39 | Q6: =+VLOOKUP(C6,'Anexo_GR '!$C$9:$N$34,11,0) -> 1087190.934 | R6: =+VLOOKUP(C6,'Anexo_GR '!$C$9:$N$34,12,0) -> 35405.45559 | S6: Cumple
A7: 060000 : GOBIERNO REGIONAL DE CAJAMARCA | B7: 6 | C7: 060000 | D7: CAJAMARCA | E7: GOBIERNO REGIONAL CAJAMARCA | F7: =+VLOOKUP(C7,'Anexo_GR '!$C$9:$N$34,3,0) -> 1569539.896 | H7: =+VLOOKUP(C7,'Anexo_GR '!$C$9:$N$34,4,0) -> 1556626.252 | I7: =+VLOOKUP(C7,'Anexo_GR '!$C$9:$N$34,5,0) -> 136385.8685 | J7: =+VLOOKUP(C7,'Anexo_GR '!$C$9:$N$34,6,0) -> 0 | L7: =+VLOOKUP(C7,'Anexo_GR '!$C$9:$N$34,7,0) -> 100.8295919 | N7: =+VLOOKUP(C7,'Anexo_GR '!$C$9:$N$34,8,0) -> No Cumple | P7: =+VLOOKUP(C7,'Anexo_GR '!$C$9:$N$34,10,0) -> 1776692.748 | Q7: =+VLOOKUP(C7,'Anexo_GR '!$C$9:$N$34,11,0) -> 1725186.047 | R7: =+VLOOKUP(C7,'Anexo_GR '!$C$9:$N$34,12,0) -> 51506.70087 | S7: =+VLOOKUP(C7,'Anexo_GR '!$C$9:$O$34,13,0) -> Cumple
A8: 070000 : GOBIERNO REGIONAL DEL CALLAO | B8: 7 | C8: 070000 | D8: CALLAO | E8: GOBIERNO REGIONAL CALLAO | F8: =+VLOOKUP(C8,'Anexo_GR '!$C$9:$N$34,3,0) -> 552871.4551 | H8: =+VLOOKUP(C8,'Anexo_GR '!$C$9:$N$34,4,0) -> 911038.7462 | I8: =+VLOOKUP(C8,'Anexo_GR '!$C$9:$N$34,5,0) -> 683824.6884 | J8: =+VLOOKUP(C8,'Anexo_GR '!$C$9:$N$34,6,0) -> 358167.2911 | L8: =+VLOOKUP(C8,'Anexo_GR '!$C$9:$N$34,7,0) -> 60.68583333 | N8: =+VLOOKUP(C8,'Anexo_GR '!$C$9:$N$34,8,0) -> Cumple | P8: =+VLOOKUP(C8,'Anexo_GR '!$C$9:$N$34,10,0) -> 1007099.806 | Q8: =+VLOOKUP(C8,'Anexo_GR '!$C$9:$N$34,11,0) -> 927474.949 | R8: =+VLOOKUP(C8,'Anexo_GR '!$C$9:$N$34,12,0) -> 79624.85709 | S8: Cumple
A9: 080000 : GOBIERNO REGIONAL DE CUSCO | B9: 8 | C9: 080000 | D9: CUSCO | E9: GOBIERNO REGIONAL CUSCO | F9: =+VLOOKUP(C9,'Anexo_GR '!$C$9:$N$34,3,0) -> 1387146.554 | H9: =+VLOOKUP(C9,'Anexo_GR '!$C$9:$N$34,4,0) -> 1619694.967 | I9: =+VLOOKUP(C9,'Anexo_GR '!$C$9:$N$34,5,0) -> 880874.3049 | J9: =+VLOOKUP(C9,'Anexo_GR '!$C$9:$N$34,6,0) -> 232548.4128 | L9: =+VLOOKUP(C9,'Anexo_GR '!$C$9:$N$34,7,0) -> 85.64245629 | N9: =+VLOOKUP(C9,'Anexo_GR '!$C$9:$N$34,8,0) -> Cumple | P9: =+VLOOKUP(C9,'Anexo_GR '!$C$9:$N$34,10,0) -> 1861646.753 | Q9: =+VLOOKUP(C9,'Anexo_GR '!$C$9:$N$34,11,0) -> 1453160.222 | R9: =+VLOOKUP(C9,'Anexo_GR '!$C$9:$N$34,12,0) -> 408486.5309 | S9: =+VLOOKUP(C9,'Anexo_GR '!$C$9:$O$34,13,0) -> Cumple
A10: 090000 : GOBIERNO REGIONAL DE HUANCAVELICA | B10: 9 | C10: 090000 | D10: HUANCAVELICA | E10: GOBIERNO REGIONAL HUANCAVELICA | F10: =+VLOOKUP(C10,'Anexo_GR '!$C$9:$N$34,3,0) -> 262294.8289 | H10: =+VLOOKUP(C10,'Anexo_GR '!$C$9:$N$34,4,0) -> 719926.4828 | I10: =+VLOOKUP(C10,'Anexo_GR '!$C$9:$N$34,5,0) -> 93945.67433 | J10: =+VLOOKUP(C10,'Anexo_GR '!$C$9:$N$34,6,0) -> 457631.6539 | L10: =+VLOOKUP(C10,'Anexo_GR '!$C$9:$N$34,7,0) -> 36.43355748 | N10: =+VLOOKUP(C10,'Anexo_GR '!$C$9:$N$34,8,0) -> Cumple | P10: =+VLOOKUP(C10,'Anexo_GR '!$C$9:$N$34,10,0) -> 812766.791 | Q10: =+VLOOKUP(C10,'Anexo_GR '!$C$9:$N$34,11,0) -> 783340.9494 | R10: =+VLOOKUP(C10,'Anexo_GR '!$C$9:$N$34,12,0) -> 29425.84163 | S10: Cumple
A11: 100000 : GOBIERNO REGIONAL DE HUANUCO | B11: 10 | C11: 100000 | D11: HUÁNUCO | E11: GOBIERNO REGIONAL HUANUCO | F11: =+VLOOKUP(C11,'Anexo_GR '!$C$9:$N$34,3,0) -> 256550.7805 | H11: =+VLOOKUP(C11,'Anexo_GR '!$C$9:$N$34,4,0) -> 803319.9955 | I11: =+VLOOKUP(C11,'Anexo_GR '!$C$9:$N$34,5,0) -> 2148.02378 | J11: =+VLOOKUP(C11,'Anexo_GR '!$C$9:$N$34,6,0) -> 546769.2151 | L11: =+VLOOKUP(C11,'Anexo_GR '!$C$9:$N$34,7,0) -> 31.93631204 | N11: =+VLOOKUP(C11,'Anexo_GR '!$C$9:$N$34,8,0) -> Cumple | P11: =+VLOOKUP(C11,'Anexo_GR '!$C$9:$N$34,10,0) -> 939987.5429 | Q11: =+VLOOKUP(C11,'Anexo_GR '!$C$9:$N$34,11,0) -> 932919.3693 | R11: =+VLOOKUP(C11,'Anexo_GR '!$C$9:$N$34,12,0) -> 7068.17353 | S11: =+VLOOKUP(C11,'Anexo_GR '!$C$9:$O$34,13,0) -> Cumple
A12: 110000 : GOBIERNO REGIONAL DE ICA | B12: 11 | C12: 110000 | D12: ICA | E12: GOBIERNO REGIONAL ICA | F12: =+VLOOKUP(C12,'Anexo_GR '!$C$9:$N$34,3,0) -> 233014.0738 | H12: =+VLOOKUP(C12,'Anexo_GR '!$C$9:$N$34,4,0) -> 824943.1236 | I12: =+VLOOKUP(C12,'Anexo_GR '!$C$9:$N$34,5,0) -> 111349.0152 | J12: =+VLOOKUP(C12,'Anexo_GR '!$C$9:$N$34,6,0) -> 591929.0498 | L12: =+VLOOKUP(C12,'Anexo_GR '!$C$9:$N$34,7,0) -> 28.24607747 | N12: =+VLOOKUP(C12,'Anexo_GR '!$C$9:$N$34,8,0) -> Cumple | P12: =+VLOOKUP(C12,'Anexo_GR '!$C$9:$N$34,10,0) -> 936692.5707 | Q12: =+VLOOKUP(C12,'Anexo_GR '!$C$9:$N$34,11,0) -> 874649.0201 | R12: =+VLOOKUP(C12,'Anexo_GR '!$C$9:$N$34,12,0) -> 62043.55058 | S12: Cumple
A13: 120000 : GOBIERNO REGIONAL DE JUNIN | B13: 12 | C13: 120000 | D13: JUNÍN | E13: GOBIERNO REGIONAL JUNIN | F13: =+VLOOKUP(C13,'Anexo_GR '!$C$9:$N$34,3,0) -> 843420.0765 | H13: =+VLOOKUP(C13,'Anexo_GR '!$C$9:$N$34,4,0) -> 1262223.756 | I13: =+VLOOKUP(C13,'Anexo_GR '!$C$9:$N$34,5,0) -> 44458.64268 | J13: =+VLOOKUP(C13,'Anexo_GR '!$C$9:$N$34,6,0) -> 418803.6795 | L13: =+VLOOKUP(C13,'Anexo_GR '!$C$9:$N$34,7,0) -> 66.82017134 | N13: =+VLOOKUP(C13,'Anexo_GR '!$C$9:$N$34,8,0) -> Cumple | P13: =+VLOOKUP(C13,'Anexo_GR '!$C$9:$N$34,10,0) -> 1490435.259 | Q13: =+VLOOKUP(C13,'Anexo_GR '!$C$9:$N$34,11,0) -> 1435863.966 | R13: =+VLOOKUP(C13,'Anexo_GR '!$C$9:$N$34,12,0) -> 54571.29337 | S13: =+VLOOKUP(C13,'Anexo_GR '!$C$9:$O$34,13,0) -> Cumple
A14: 130000 : GOBIERNO REGIONAL DE LA LIBERTAD | B14: 13 | C14: 130000 | D14: LA LIBERTAD | E14: GOBIERNO REGIONAL LA LIBERTAD | F14: =+VLOOKUP(C14,'Anexo_GR '!$C$9:$N$34,3,0) -> 1543327.284 | H14: =+VLOOKUP(C14,'Anexo_GR '!$C$9:$N$34,4,0) -> 1529088.866 | I14: =+VLOOKUP(C14,'Anexo_GR '!$C$9:$N$34,5,0) -> 163627.1163 | J14: =+VLOOKUP(C14,'Anexo_GR '!$C$9:$N$34,6,0) -> 0 | L14: =+VLOOKUP(C14,'Anexo_GR '!$C$9:$N$34,7,0) -> 100.9311701 | N14: =+VLOOKUP(C14,'Anexo_GR '!$C$9:$N$34,8,0) -> No Cumple | P14: =+VLOOKUP(C14,'Anexo_GR '!$C$9:$N$34,10,0) -> 1764779.588 | Q14: =+VLOOKUP(C14,'Anexo_GR '!$C$9:$N$34,11,0) -> 1638702.133 | R14: =+VLOOKUP(C14,'Anexo_GR '!$C$9:$N$34,12,0) -> 126077.4548 | S14: Cumple
A15: 140000 : GOBIERNO REGIONAL DE LAMBAYEQUE | B15: 14 | C15: 140000 | D15: LAMBAYEQUE | E15: GOBIERNO REGIONAL LAMBAYEQUE | F15: =+VLOOKUP(C15,'Anexo_GR '!$C$9:$N$34,3,0) -> 607950.2101 | H15: =+VLOOKUP(C15,'Anexo_GR '!$C$9:$N$34,4,0) -> 915086.4797 | I15: =+VLOOKUP(C15,'Anexo_GR '!$C$9:$N$34,5,0) -> 7.75708 | J15: =+VLOOKUP(C15,'Anexo_GR '!$C$9:$N$34,6,0) -> 307136.2696 | L15: =+VLOOKUP(C15,'Anexo_GR '!$C$9:$N$34,7,0) -> 66.43636679 | N15: =+VLOOKUP(C15,'Anexo_GR '!$C$9:$N$34,8,0) -> Cumple | P15: =+VLOOKUP(C15,'Anexo_GR '!$C$9:$N$34,10,0) -> 1029049.205 | Q15: =+VLOOKUP(C15,'Anexo_GR '!$C$9:$N$34,11,0) -> 1002613.258 | R15: =+VLOOKUP(C15,'Anexo_GR '!$C$9:$N$34,12,0) -> 26435.9473 | S15: =+VLOOKUP(C15,'Anexo_GR '!$C$9:$O$34,13,0) -> Cumple
A16: 150000 : GOBIERNO REGIONAL DE LIMA | B16: 15 | C16: 150000 | D16: LIMA | E16: GOBIERNO REGIONAL LIMA | F16: =+VLOOKUP(C16,'Anexo_GR '!$C$9:$N$34,3,0) -> 192890.4306 | H16: =+VLOOKUP(C16,'Anexo_GR '!$C$9:$N$34,4,0) -> 1016789.8 | I16: =+VLOOKUP(C16,'Anexo_GR '!$C$9:$N$34,5,0) -> 123361.3261 | J16: =+VLOOKUP(C16,'Anexo_GR '!$C$9:$N$34,6,0) -> 823899.3692 | L16: =+VLOOKUP(C16,'Anexo_GR '!$C$9:$N$34,7,0) -> 18.97053163 | N16: =+VLOOKUP(C16,'Anexo_GR '!$C$9:$N$34,8,0) -> Cumple | P16: =+VLOOKUP(C16,'Anexo_GR '!$C$9:$N$34,10,0) -> 1112719.715 | Q16: =+VLOOKUP(C16,'Anexo_GR '!$C$9:$N$34,11,0) -> 1097911.006 | R16: =+VLOOKUP(C16,'Anexo_GR '!$C$9:$N$34,12,0) -> 14808.70858 | S16: Cumple
A17: 160000 : GOBIERNO REGIONAL DE LORETO | B17: 16 | C17: 160000 | D17: LORETO | E17: GOBIERNO REGIONAL LORETO | F17: =+VLOOKUP(C17,'Anexo_GR '!$C$9:$N$34,3,0) -> 487639.4887 | H17: =+VLOOKUP(C17,'Anexo_GR '!$C$9:$N$34,4,0) -> 1237555.658 | I17: =+VLOOKUP(C17,'Anexo_GR '!$C$9:$N$34,5,0) -> 68078.28517 | J17: =+VLOOKUP(C17,'Anexo_GR '!$C$9:$N$34,6,0) -> 749916.1698 | L17: =+VLOOKUP(C17,'Anexo_GR '!$C$9:$N$34,7,0) -> 39.40343898 | N17: =+VLOOKUP(C17,'Anexo_GR '!$C$9:$N$34,8,0) -> Cumple | P17: =+VLOOKUP(C17,'Anexo_GR '!$C$9:$N$34,10,0) -> 1445869.621 | Q17: =+VLOOKUP(C17,'Anexo_GR '!$C$9:$N$34,11,0) -> 1403154.927 | R17: =+VLOOKUP(C17,'Anexo_GR '!$C$9:$N$34,12,0) -> 42714.69412 | S17: =+VLOOKUP(C17,'Anexo_GR '!$C$9:$O$34,13,0) -> Cumple
A18: 170000 : GOBIERNO REGIONAL DE MADRE DE DIOS | B18: 17 | C18: 170000 | D18: MADRE DE DIOS | E18: GOBIERNO REGIONAL MADRE DE DIOS | F18: =+VLOOKUP(C18,'Anexo_GR '!$C$9:$N$34,3,0) -> 131772.9026 | H18: =+VLOOKUP(C18,'Anexo_GR '!$C$9:$N$34,4,0) -> 203804.5059 | I18: =+VLOOKUP(C18,'Anexo_GR '!$C$9:$N$34,5,0) -> 461.36884 | J18: =+VLOOKUP(C18,'Anexo_GR '!$C$9:$N$34,6,0) -> 72031.60334 | L18: =+VLOOKUP(C18,'Anexo_GR '!$C$9:$N$34,7,0) -> 64.65652071 | N18: =+VLOOKUP(C18,'Anexo_GR '!$C$9:$N$34,8,0) -> Cumple | P18: =+VLOOKUP(C18,'Anexo_GR '!$C$9:$N$34,10,0) -> 238447.3043 | Q18: =+VLOOKUP(C18,'Anexo_GR '!$C$9:$N$34,11,0) -> 232738.743 | R18: =+VLOOKUP(C18,'Anexo_GR '!$C$9:$N$34,12,0) -> 5708.56125 | S18: Cumple
A19: 180000 : GOBIERNO REGIONAL DE MOQUEGUA | B19: 18 | C19: 180000 | D19: MOQUEGUA | E19: GOBIERNO REGIONAL MOQUEGUA | F19: =+VLOOKUP(C19,'Anexo_GR '!$C$9:$N$34,3,0) -> 442570.6372 | H19: =+VLOOKUP(C19,'Anexo_GR '!$C$9:$N$34,4,0) -> 310579.4264 | I19: =+VLOOKUP(C19,'Anexo_GR '!$C$9:$N$34,5,0) -> 90747.22613 | J19: =+VLOOKUP(C19,'Anexo_GR '!$C$9:$N$34,6,0) -> 0 | L19: =+VLOOKUP(C19,'Anexo_GR '!$C$9:$N$34,7,0) -> 142.4983755 | N19: =+VLOOKUP(C19,'Anexo_GR '!$C$9:$N$34,8,0) -> No Cumple | P19: =+VLOOKUP(C19,'Anexo_GR '!$C$9:$N$34,10,0) -> 351937.4353 | Q19: =+VLOOKUP(C19,'Anexo_GR '!$C$9:$N$34,11,0) -> 317461.6211 | R19: =+VLOOKUP(C19,'Anexo_GR '!$C$9:$N$34,12,0) -> 34475.8142 | S19: =+VLOOKUP(C19,'Anexo_GR '!$C$9:$O$34,13,0) -> Cumple
A20: 190000 : GOBIERNO REGIONAL DE PASCO | B20: 19 | C20: 190000 | D20: PASCO | E20: GOBIERNO REGIONAL PASCO | F20: =+VLOOKUP(C20,'Anexo_GR '!$C$9:$N$34,3,0) -> 307936.7504 | H20: =+VLOOKUP(C20,'Anexo_GR '!$C$9:$N$34,4,0) -> 361517.5883 | I20: =+VLOOKUP(C20,'Anexo_GR '!$C$9:$N$34,5,0) -> 28508.24556 | J20: =+VLOOKUP(C20,'Anexo_GR '!$C$9:$N$34,6,0) -> 53580.83785 | L20: =+VLOOKUP(C20,'Anexo_GR '!$C$9:$N$34,7,0) -> 85.17891257 | N20: =+VLOOKUP(C20,'Anexo_GR '!$C$9:$N$34,8,0) -> Cumple | P20: =+VLOOKUP(C20,'Anexo_GR '!$C$9:$N$34,10,0) -> 423706.3496 | Q20: =+VLOOKUP(C20,'Anexo_GR '!$C$9:$N$34,11,0) -> 398047.487 | R20: =+VLOOKUP(C20,'Anexo_GR '!$C$9:$N$34,12,0) -> 25658.86259 | S20: Cumple
A21: 200000 : GOBIERNO REGIONAL DE PIURA | B21: 20 | C21: 200000 | D21: PIURA | E21: GOBIERNO REGIONAL PIURA | F21: =+VLOOKUP(C21,'Anexo_GR '!$C$9:$N$34,3,0) -> 1837407.294 | H21: =+VLOOKUP(C21,'Anexo_GR '!$C$9:$N$34,4,0) -> 1487496.872 | I21: =+VLOOKUP(C21,'Anexo_GR '!$C$9:$N$34,5,0) -> 195954.8462 | J21: =+VLOOKUP(C21,'Anexo_GR '!$C$9:$N$34,6,0) -> 0 | L21: =+VLOOKUP(C21,'Anexo_GR '!$C$9:$N$34,7,0) -> 123.5234392 | N21: =+VLOOKUP(C21,'Anexo_GR '!$C$9:$N$34,8,0) -> No Cumple | P21: =+VLOOKUP(C21,'Anexo_GR '!$C$9:$N$34,10,0) -> 1692998.865 | Q21: =+VLOOKUP(C21,'Anexo_GR '!$C$9:$N$34,11,0) -> 1601227.658 | R21: =+VLOOKUP(C21,'Anexo_GR '!$C$9:$N$34,12,0) -> 91771.20684 | S21: =+VLOOKUP(C21,'Anexo_GR '!$C$9:$O$34,13,0) -> Cumple
A22: 210000 : GOBIERNO REGIONAL DE PUNO | B22: 21 | C22: 210000 | D22: PUNO | E22: GOBIERNO REGIONAL PUNO | F22: =+VLOOKUP(C22,'Anexo_GR '!$C$9:$N$34,3,0) -> 1524241.857 | H22: =+VLOOKUP(C22,'Anexo_GR '!$C$9:$N$34,4,0) -> 1329370.385 | I22: =+VLOOKUP(C22,'Anexo_GR '!$C$9:$N$34,5,0) -> 66805.87353 | J22: =+VLOOKUP(C22,'Anexo_GR '!$C$9:$N$34,6,0) -> 0 | L22: =+VLOOKUP(C22,'Anexo_GR '!$C$9:$N$34,7,0) -> 114.6589298 | N22: =+VLOOKUP(C22,'Anexo_GR '!$C$9:$N$34,8,0) -> No Cumple | P22: =+VLOOKUP(C22,'Anexo_GR '!$C$9:$N$34,10,0) -> 1513051.653 | Q22: =+VLOOKUP(C22,'Anexo_GR '!$C$9:$N$34,11,0) -> 1476620.169 | R22: =+VLOOKUP(C22,'Anexo_GR '!$C$9:$N$34,12,0) -> 36431.48445 | S22: Cumple
A23: 220000 : GOBIERNO REGIONAL DE SAN MARTIN | B23: 22 | C23: 220000 | D23: SAN MARTÍN | E23: GOBIERNO REGIONAL SAN MARTIN | F23: =+VLOOKUP(C23,'Anexo_GR '!$C$9:$N$34,3,0) -> 590929.8039 | H23: =+VLOOKUP(C23,'Anexo_GR '!$C$9:$N$34,4,0) -> 923717.1006 | I23: =+VLOOKUP(C23,'Anexo_GR '!$C$9:$N$34,5,0) -> 1198.14807 | J23: =+VLOOKUP(C23,'Anexo_GR '!$C$9:$N$34,6,0) -> 332787.2968 | L23: =+VLOOKUP(C23,'Anexo_GR '!$C$9:$N$34,7,0) -> 63.97302848 | N23: =+VLOOKUP(C23,'Anexo_GR '!$C$9:$N$34,8,0) -> Cumple | P23: =+VLOOKUP(C23,'Anexo_GR '!$C$9:$N$34,10,0) -> 1075962.213 | Q23: =+VLOOKUP(C23,'Anexo_GR '!$C$9:$N$34,11,0) -> 1000953.142 | R23: =+VLOOKUP(C23,'Anexo_GR '!$C$9:$N$34,12,0) -> 75009.0711 | S23: =+VLOOKUP(C23,'Anexo_GR '!$C$9:$O$34,13,0) -> Cumple
A24: 230000 : GOBIERNO REGIONAL DE TACNA | B24: 23 | C24: 230000 | D24: TACNA | E24: GOBIERNO REGIONAL TACNA | F24: =+VLOOKUP(C24,'Anexo_GR '!$C$9:$N$34,3,0) -> 370139.1404 | H24: =+VLOOKUP(C24,'Anexo_GR '!$C$9:$N$34,4,0) -> 425783.4559 | I24: =+VLOOKUP(C24,'Anexo_GR '!$C$9:$N$34,5,0) -> 89307.64346 | J24: =+VLOOKUP(C24,'Anexo_GR '!$C$9:$N$34,6,0) -> 55644.31551 | L24: =+VLOOKUP(C24,'Anexo_GR '!$C$9:$N$34,7,0) -> 86.93131104 | N24: =+VLOOKUP(C24,'Anexo_GR '!$C$9:$N$34,8,0) -> Cumple | P24: =+VLOOKUP(C24,'Anexo_GR '!$C$9:$N$34,10,0) -> 475288.34 | Q24: =+VLOOKUP(C24,'Anexo_GR '!$C$9:$N$34,11,0) -> 422026.4702 | R24: =+VLOOKUP(C24,'Anexo_GR '!$C$9:$N$34,12,0) -> 53261.8697 | S24: Cumple
A25: 240000 : GOBIERNO REGIONAL DE TUMBES | B25: 24 | C25: 240000 | D25: TUMBES | E25: GOBIERNO REGIONAL TUMBES | F25: =+VLOOKUP(C25,'Anexo_GR '!$C$9:$N$34,3,0) -> 187090.0485 | H25: =+VLOOKUP(C25,'Anexo_GR '!$C$9:$N$34,4,0) -> 369738.2331 | I25: =+VLOOKUP(C25,'Anexo_GR '!$C$9:$N$34,5,0) -> 72768.68037 | J25: =+VLOOKUP(C25,'Anexo_GR '!$C$9:$N$34,6,0) -> 182648.1847 | L25: =+VLOOKUP(C25,'Anexo_GR '!$C$9:$N$34,7,0) -> 50.60067683 | N25: =+VLOOKUP(C25,'Anexo_GR '!$C$9:$N$34,8,0) -> Cumple | P25: =+VLOOKUP(C25,'Anexo_GR '!$C$9:$N$34,10,0) -> 406817.8744 | Q25: =+VLOOKUP(C25,'Anexo_GR '!$C$9:$N$34,11,0) -> 382253.3116 | R25: =+VLOOKUP(C25,'Anexo_GR '!$C$9:$N$34,12,0) -> 24564.56287 | S25: =+VLOOKUP(C25,'Anexo_GR '!$C$9:$O$34,13,0) -> Cumple
A26: 250000 : GOBIERNO REGIONAL DE UCAYALI | B26: 25 | C26: 250000 | D26: UCAYALI | E26: GOBIERNO REGIONAL UCAYALI | F26: =+VLOOKUP(C26,'Anexo_GR '!$C$9:$N$34,3,0) -> 355041.8951 | H26: =+VLOOKUP(C26,'Anexo_GR '!$C$9:$N$34,4,0) -> 556774.8206 | I26: =+VLOOKUP(C26,'Anexo_GR '!$C$9:$N$34,5,0) -> 51203.07898 | J26: =+VLOOKUP(C26,'Anexo_GR '!$C$9:$N$34,6,0) -> 201732.9255 | L26: =+VLOOKUP(C26,'Anexo_GR '!$C$9:$N$34,7,0) -> 63.76759185 | N26: =+VLOOKUP(C26,'Anexo_GR '!$C$9:$N$34,8,0) -> Cumple | P26: =+VLOOKUP(C26,'Anexo_GR '!$C$9:$N$34,10,0) -> 668443.81 | Q26: =+VLOOKUP(C26,'Anexo_GR '!$C$9:$N$34,11,0) -> 637836.3291 | R26: =+VLOOKUP(C26,'Anexo_GR '!$C$9:$N$34,12,0) -> 30607.48098 | S26: Cumple
A27: 260000 : REGION LIMA METROPOLITANA | B27: 26 | C27: 260000 | D27: MM LIMA | E27: REGION LIMA METROPOLITANA | F27: =+VLOOKUP(C27,'Anexo_GR '!$C$9:$N$34,3,0) -> 2696.69669 | H27: =+VLOOKUP(C27,'Anexo_GR '!$C$9:$N$34,4,0) -> 21878.00667 | I27: =+VLOOKUP(C27,'Anexo_GR '!$C$9:$N$34,5,0) -> 7106.95294 | J27: =+VLOOKUP(C27,'Anexo_GR '!$C$9:$N$34,6,0) -> 19181.30998 | L27: =+VLOOKUP(C27,'Anexo_GR '!$C$9:$N$34,7,0) -> 12.32606211 | N27: =+VLOOKUP(C27,'Anexo_GR '!$C$9:$N$34,8,0) -> Cumple | P27: =+VLOOKUP(C27,'Anexo_GR '!$C$9:$N$34,10,0) -> 16883.42735 | Q27: =+VLOOKUP(C27,'Anexo_GR '!$C$9:$N$34,11,0) -> 20694.74001 | R27: =+VLOOKUP(C27,'Anexo_GR '!$C$9:$N$34,12,0) -> -3811.31266 | S27: =+VLOOKUP(C27,'Anexo_GR '!$C$9:$O$34,13,0) -> No Cumple
A28: 010101 : MP DE CHACHAPOYAS | B28: 1 | C28: 010101 | D28: AMAZONAS | E28: MP DE CHACHAPOYAS | F28: =+VLOOKUP(C28,'Anexo_GL '!$B$9:$O$1882,4,0) -> 8932.37871 | H28: =+VLOOKUP(C28,'Anexo_GL '!$B$9:$O$1882,5,0) -> 14148.75029 | I28: =+VLOOKUP(C28,'Anexo_GL '!$B$9:$O$1882,6,0) -> 0.93111 | J28: =+VLOOKUP(C28,'Anexo_GL '!$B$9:$O$1882,7,0) -> 5216.371582 | L28: =+VLOOKUP(C28,'Anexo_GL '!$B$9:$O$1882,8,0) -> 63.13192703 | N28: =+VLOOKUP(C28,'Anexo_GL '!$B$9:$O$1882,9,0) -> Cumple | P28: =+VLOOKUP(C28,'Anexo_GL '!$B$9:$O$1882,11,0) -> 14578.70908 | Q28: =+VLOOKUP(C28,'Anexo_GL '!$B$9:$O$1882,12,0) -> 12620.77663 | R28: =+VLOOKUP(C28,'Anexo_GL '!$B$9:$O$1882,13,0) -> 1957.93245 | S28: =+VLOOKUP(C28,'Anexo_GL '!$B$9:$O$1882,14,0) -> Cumple
A29: 010102 : MD DE ASUNCION | B29: 2 | C29: 010102 | D29: AMAZONAS | E29: MD DE ASUNCION | F29: =+VLOOKUP(C29,'Anexo_GL '!$B$9:$O$1882,4,0) -> 9.20036 | H29: =+VLOOKUP(C29,'Anexo_GL '!$B$9:$O$1882,5,0) -> 693.6245525 | I29: =+VLOOKUP(C29,'Anexo_GL '!$B$9:$O$1882,6,0) -> 0.00032 | J29: =+VLOOKUP(C29,'Anexo_GL '!$B$9:$O$1882,7,0) -> 684.4241925 | L29: =+VLOOKUP(C29,'Anexo_GL '!$B$9:$O$1882,8,0) -> 1.326417868 | N29: =+VLOOKUP(C29,'Anexo_GL '!$B$9:$O$1882,9,0) -> Cumple | P29: =+VLOOKUP(C29,'Anexo_GL '!$B$9:$O$1882,11,0) -> 464.26104 | Q29: =+VLOOKUP(C29,'Anexo_GL '!$B$9:$O$1882,12,0) -> 393.20905 | R29: =+VLOOKUP(C29,'Anexo_GL '!$B$9:$O$1882,13,0) -> 71.05199 | S29: =+VLOOKUP(C29,'Anexo_GL '!$B$9:$O$1882,14,0) -> Cumple
A30: 010103 : MD DE BALSAS | B30: 3 | C30: 010103 | D30: AMAZONAS | E30: MD DE BALSAS | F30: =+VLOOKUP(C30,'Anexo_GL '!$B$9:$O$1882,4,0) -> 16.60208 | H30: =+VLOOKUP(C30,'Anexo_GL '!$B$9:$O$1882,5,0) -> 663.2906675 | I30: =+VLOOKUP(C30,'Anexo_GL '!$B$9:$O$1882,6,0) -> 0.02982 | J30: =+VLOOKUP(C30,'Anexo_GL '!$B$9:$O$1882,7,0) -> 646.6885875 | L30: =+VLOOKUP(C30,'Anexo_GL '!$B$9:$O$1882,8,0) -> 2.502987124 | N30: =+VLOOKUP(C30,'Anexo_GL '!$B$9:$O$1882,9,0) -> Cumple | P30: =+VLOOKUP(C30,'Anexo_GL '!$B$9:$O$1882,11,0) -> 697.76259 | Q30: =+VLOOKUP(C30,'Anexo_GL '!$B$9:$O$1882,12,0) -> 351.74372 | R30: =+VLOOKUP(C30,'Anexo_GL '!$B$9:$O$1882,13,0) -> 346.01887 | S30: =+VLOOKUP(C30,'Anexo_GL '!$B$9:$O$1882,14,0) -> Cumple
A31: 010104 : MD DE CHETO | B31: 4 | C31: 010104 | D31: AMAZONAS | E31: MD DE CHETO | F31: =+VLOOKUP(C31,'Anexo_GL '!$B$9:$O$1882,4,0) -> 13.50545 | H31: =+VLOOKUP(C31,'Anexo_GL '!$B$9:$O$1882,5,0) -> 460.6604025 | I31: =+VLOOKUP(C31,'Anexo_GL '!$B$9:$O$1882,6,0) -> 0.00075 | J31: =+VLOOKUP(C31,'Anexo_GL '!$B$9:$O$1882,7,0) -> 447.1549525 | L31: =+VLOOKUP(C31,'Anexo_GL '!$B$9:$O$1882,8,0) -> 2.93175839 | N31: =+VLOOKUP(C31,'Anexo_GL '!$B$9:$O$1882,9,0) -> Cumple | P31: =+VLOOKUP(C31,'Anexo_GL '!$B$9:$O$1882,11,0) -> 454.7453 | Q31: =+VLOOKUP(C31,'Anexo_GL '!$B$9:$O$1882,12,0) -> 265.75919 | R31: =+VLOOKUP(C31,'Anexo_GL '!$B$9:$O$1882,13,0) -> 188.98611 | S31: =+VLOOKUP(C31,'Anexo_GL '!$B$9:$O$1882,14,0) -> Cumple
A32: 010105 : MD DE CHILIQUIN | B32: 5 | C32: 010105 | D32: AMAZONAS | E32: MD DE CHILIQUIN | F32: =+VLOOKUP(C32,'Anexo_GL '!$B$9:$O$1882,4,0) -> 11.83626 | H32: =+VLOOKUP(C32,'Anexo_GL '!$B$9:$O$1882,5,0) -> 801.77467 | I32: =+VLOOKUP(C32,'Anexo_GL '!$B$9:$O$1882,6,0) -> 0.0008 | J32: =+VLOOKUP(C32,'Anexo_GL '!$B$9:$O$1882,7,0) -> 789.93841 | L32: =+VLOOKUP(C32,'Anexo_GL '!$B$9:$O$1882,8,0) -> 1.476257662 | N32: =+VLOOKUP(C32,'Anexo_GL '!$B$9:$O$1882,9,0) -> Cumple | P32: =+VLOOKUP(C32,'Anexo_GL '!$B$9:$O$1882,11,0) -> 483.08161 | Q32: =+VLOOKUP(C32,'Anexo_GL '!$B$9:$O$1882,12,0) -> 258.13374 | R32: =+VLOOKUP(C32,'Anexo_GL '!$B$9:$O$1882,13,0) -> 224.94787 | S32: =+VLOOKUP(C32,'Anexo_GL '!$B$9:$O$1882,14,0) -> Cumple
A33: 010106 : MD DE CHUQUIBAMBA | B33: 6 | C33: 010106 | D33: AMAZONAS | E33: MD DE CHUQUIBAMBA | F33: =+VLOOKUP(C33,'Anexo_GL '!$B$9:$O$1882,4,0) -> 97.81772 | H33: =+VLOOKUP(C33,'Anexo_GL '!$B$9:$O$1882,5,0) -> 616.6218625 | I33: =+VLOOKUP(C33,'Anexo_GL '!$B$9:$O$1882,6,0) -> 0.00138 | J33: =+VLOOKUP(C33,'Anexo_GL '!$B$9:$O$1882,7,0) -> 518.8041425 | L33: =+VLOOKUP(C33,'Anexo_GL '!$B$9:$O$1882,8,0) -> 15.86348554 | N33: =+VLOOKUP(C33,'Anexo_GL '!$B$9:$O$1882,9,0) -> Cumple | P33: =+VLOOKUP(C33,'Anexo_GL '!$B$9:$O$1882,11,0) -> 684.37508 | Q33: =+VLOOKUP(C33,'Anexo_GL '!$B$9:$O$1882,12,0) -> 581.52715 | R33: =+VLOOKUP(C33,'Anexo_GL '!$B$9:$O$1882,13,0) -> 102.84793 | S33: =+VLOOKUP(C33,'Anexo_GL '!$B$9:$O$1882,14,0) -> Cumple
A34: 010107 : MD DE GRANADA | B34: 7 | C34: 010107 | D34: AMAZONAS | E34: MD DE GRANADA | F34: =+VLOOKUP(C34,'Anexo_GL '!$B$9:$O$1882,4,0) -> 196.78598 | H34: =+VLOOKUP(C34,'Anexo_GL '!$B$9:$O$1882,5,0) -> 550.3218225 | I34: =+VLOOKUP(C34,'Anexo_GL '!$B$9:$O$1882,6,0) -> 0.0004 | J34: =+VLOOKUP(C34,'Anexo_GL '!$B$9:$O$1882,7,0) -> 353.5358425 | L34: =+VLOOKUP(C34,'Anexo_GL '!$B$9:$O$1882,8,0) -> 35.75834575 | N34: =+VLOOKUP(C34,'Anexo_GL '!$B$9:$O$1882,9,0) -> Cumple | P34: =+VLOOKUP(C34,'Anexo_GL '!$B$9:$O$1882,11,0) -> 471.95265 | Q34: =+VLOOKUP(C34,'Anexo_GL '!$B$9:$O$1882,12,0) -> 381.20862 | R34: =+VLOOKUP(C34,'Anexo_GL '!$B$9:$O$1882,13,0) -> 90.74403 | S34: =+VLOOKUP(C34,'Anexo_GL '!$B$9:$O$1882,14,0) -> Cumple
A35: 010108 : MD DE HUANCAS | B35: 8 | C35: 010108 | D35: AMAZONAS | E35: MD DE HUANCAS | F35: =+VLOOKUP(C35,'Anexo_GL '!$B$9:$O$1882,4,0) -> 101.56395 | H35: =+VLOOKUP(C35,'Anexo_GL '!$B$9:$O$1882,5,0) -> 730.6253775 | I35: =+VLOOKUP(C35,'Anexo_GL '!$B$9:$O$1882,6,0) -> 0.00155 | J35: =+VLOOKUP(C35,'Anexo_GL '!$B$9:$O$1882,7,0) -> 629.0614275 | L35: =+VLOOKUP(C35,'Anexo_GL '!$B$9:$O$1882,8,0) -> 13.90096117 | N35: =+VLOOKUP(C35,'Anexo_GL '!$B$9:$O$1882,9,0) -> Cumple | P35: =+VLOOKUP(C35,'Anexo_GL '!$B$9:$O$1882,11,0) -> 668.09018 | Q35: =+VLOOKUP(C35,'Anexo_GL '!$B$9:$O$1882,12,0) -> 471.9573 | R35: =+VLOOKUP(C35,'Anexo_GL '!$B$9:$O$1882,13,0) -> 196.13288 | S35: =+VLOOKUP(C35,'Anexo_GL '!$B$9:$O$1882,14,0) -> Cumple
A36: 010109 : MD DE JALCA GRANDE | B36: 9 | C36: 010109 | D36: AMAZONAS | E36: MD DE JALCA GRANDE | F36: =+VLOOKUP(C36,'Anexo_GL '!$B$9:$O$1882,4,0) -> 16.78628 | H36: =+VLOOKUP(C36,'Anexo_GL '!$B$9:$O$1882,5,0) -> 1240.123623 | I36: =+VLOOKUP(C36,'Anexo_GL '!$B$9:$O$1882,6,0) -> 0.97817 | J36: =+VLOOKUP(C36,'Anexo_GL '!$B$9:$O$1882,7,0) -> 1223.337342 | L36: =+VLOOKUP(C36,'Anexo_GL '!$B$9:$O$1882,8,0) -> 1.35359731 | N36: =+VLOOKUP(C36,'Anexo_GL '!$B$9:$O$1882,9,0) -> Cumple | P36: =+VLOOKUP(C36,'Anexo_GL '!$B$9:$O$1882,11,0) -> 1286.64271 | Q36: =+VLOOKUP(C36,'Anexo_GL '!$B$9:$O$1882,12,0) -> 967.17353 | R36: =+VLOOKUP(C36,'Anexo_GL '!$B$9:$O$1882,13,0) -> 319.46918 | S36: =+VLOOKUP(C36,'Anexo_GL '!$B$9:$O$1882,14,0) -> Cumple
A37: 010110 : MD DE LEIMEBAMBA | B37: 10 | C37: 010110 | D37: AMAZONAS | E37: MD DE LEIMEBAMBA | F37: =+VLOOKUP(C37,'Anexo_GL '!$B$9:$O$1882,4,0) -> 6.18499 | H37: =+VLOOKUP(C37,'Anexo_GL '!$B$9:$O$1882,5,0) -> 987.7897 | I37: =+VLOOKUP(C37,'Anexo_GL '!$B$9:$O$1882,6,0) -> 0.00213 | J37: =+VLOOKUP(C37,'Anexo_GL '!$B$9:$O$1882,7,0) -> 981.60471 | L37: =+VLOOKUP(C37,'Anexo_GL '!$B$9:$O$1882,8,0) -> 0.6261444111 | N37: =+VLOOKUP(C37,'Anexo_GL '!$B$9:$O$1882,9,0) -> Cumple | P37: =+VLOOKUP(C37,'Anexo_GL '!$B$9:$O$1882,11,0) -> 997.20115 | Q37: =+VLOOKUP(C37,'Anexo_GL '!$B$9:$O$1882,12,0) -> 756.62159 | R37: =+VLOOKUP(C37,'Anexo_GL '!$B$9:$O$1882,13,0) -> 240.57956 | S37: =+VLOOKUP(C37,'Anexo_GL '!$B$9:$O$1882,14,0) -> Cumple
A38: 010111 : MD DE LEVANTO | B38: 11 | C38: 010111 | D38: AMAZONAS | E38: MD DE LEVANTO | F38: =+VLOOKUP(C38,'Anexo_GL '!$B$9:$O$1882,4,0) -> 33.4159 | H38: =+VLOOKUP(C38,'Anexo_GL '!$B$9:$O$1882,5,0) -> 608.1165125 | I38: =+VLOOKUP(C38,'Anexo_GL '!$B$9:$O$1882,6,0) -> 0.00106 | J38: =+VLOOKUP(C38,'Anexo_GL '!$B$9:$O$1882,7,0) -> 574.7006125 | L38: =+VLOOKUP(C38,'Anexo_GL '!$B$9:$O$1882,8,0) -> 5.494983167 | N38: =+VLOOKUP(C38,'Anexo_GL '!$B$9:$O$1882,9,0) -> Cumple | P38: =+VLOOKUP(C38,'Anexo_GL '!$B$9:$O$1882,11,0) -> 546.99594 | Q38: =+VLOOKUP(C38,'Anexo_GL '!$B$9:$O$1882,12,0) -> 537.4228 | R38: =+VLOOKUP(C38,'Anexo_GL '!$B$9:$O$1882,13,0) -> 9.57314 | S38: =+VLOOKUP(C38,'Anexo_GL '!$B$9:$O$1882,14,0) -> Cumple
A39: 010112 : MD DE MAGDALENA | B39: 12 | C39: 010112 | D39: AMAZONAS | E39: MD DE MAGDALENA | F39: =+VLOOKUP(C39,'Anexo_GL '!$B$9:$O$1882,4,0) -> 2293.89849 | H39: =+VLOOKUP(C39,'Anexo_GL '!$B$9:$O$1882,5,0) -> 670.42187 | I39: =+VLOOKUP(C39,'Anexo_GL '!$B$9:$O$1882,6,0) -> 0.00098 | J39: =+VLOOKUP(C39,'Anexo_GL '!$B$9:$O$1882,7,0) -> 0 | L39: =+VLOOKUP(C39,'Anexo_GL '!$B$9:$O$1882,8,0) -> 342.1574672 | N39: =+VLOOKUP(C39,'Anexo_GL '!$B$9:$O$1882,9,0) -> No Cumple | P39: =+VLOOKUP(C39,'Anexo_GL '!$B$9:$O$1882,11,0) -> 489.80003 | Q39: =+VLOOKUP(C39,'Anexo_GL '!$B$9:$O$1882,12,0) -> 499.89144 | R39: =+VLOOKUP(C39,'Anexo_GL '!$B$9:$O$1882,13,0) -> -10.09141 | S39: =+VLOOKUP(C39,'Anexo_GL '!$B$9:$O$1882,14,0) -> No Cumple
A40: 010113 : MD DE MARISCAL CASTILLA | B40: 13 | C40: 010113 | D40: AMAZONAS | E40: MD DE MARISCAL CASTILLA | F40: =+VLOOKUP(C40,'Anexo_GL '!$B$9:$O$1882,4,0) -> 1.47769 | H40: =+VLOOKUP(C40,'Anexo_GL '!$B$9:$O$1882,5,0) -> 566.8748475 | I40: =+VLOOKUP(C40,'Anexo_GL '!$B$9:$O$1882,6,0) -> 0.00044 | J40: =+VLOOKUP(C40,'Anexo_GL '!$B$9:$O$1882,7,0) -> 565.3971575 | L40: =+VLOOKUP(C40,'Anexo_GL '!$B$9:$O$1882,8,0) -> 0.260673058 | N40: =+VLOOKUP(C40,'Anexo_GL '!$B$9:$O$1882,9,0) -> Cumple | P40: =+VLOOKUP(C40,'Anexo_GL '!$B$9:$O$1882,11,0) -> 504.17402 | Q40: =+VLOOKUP(C40,'Anexo_GL '!$B$9:$O$1882,12,0) -> 233.78995 | R40: =+VLOOKUP(C40,'Anexo_GL '!$B$9:$O$1882,13,0) -> 270.38407 | S40: =+VLOOKUP(C40,'Anexo_GL '!$B$9:$O$1882,14,0) -> Cumple
A41: 010114 : MD DE MOLINOPAMPA | B41: 14 | C41: 010114 | D41: AMAZONAS | E41: MD DE MOLINOPAMPA | F41: =+VLOOKUP(C41,'Anexo_GL '!$B$9:$O$1882,4,0) -> 23.53768 | H41: =+VLOOKUP(C41,'Anexo_GL '!$B$9:$O$1882,5,0) -> 963.2033175 | I41: =+VLOOKUP(C41,'Anexo_GL '!$B$9:$O$1882,6,0) -> 0.00231 | J41: =+VLOOKUP(C41,'Anexo_GL '!$B$9:$O$1882,7,0) -> 939.6656375 | L41: =+VLOOKUP(C41,'Anexo_GL '!$B$9:$O$1882,8,0) -> 2.443687597 | N41: =+VLOOKUP(C41,'Anexo_GL '!$B$9:$O$1882,9,0) -> Cumple | P41: =+VLOOKUP(C41,'Anexo_GL '!$B$9:$O$1882,11,0) -> 1017.74054 | Q41: =+VLOOKUP(C41,'Anexo_GL '!$B$9:$O$1882,12,0) -> 481.44319 | R41: =+VLOOKUP(C41,'Anexo_GL '!$B$9:$O$1882,13,0) -> 536.29735 | S41: =+VLOOKUP(C41,'Anexo_GL '!$B$9:$O$1882,14,0) -> Cumple
A42: 010115 : MD DE MONTEVIDEO | B42: 15 | C42: 010115 | D42: AMAZONAS | E42: MD DE MONTEVIDEO | F42: =+VLOOKUP(C42,'Anexo_GL '!$B$9:$O$1882,4,0) -> 15.75396 | H42: =+VLOOKUP(C42,'Anexo_GL '!$B$9:$O$1882,5,0) -> 546.76491 | I42: =+VLOOKUP(C42,'Anexo_GL '!$B$9:$O$1882,6,0) -> 0.00074 | J42: =+VLOOKUP(C42,'Anexo_GL '!$B$9:$O$1882,7,0) -> 531.01095 | L42: =+VLOOKUP(C42,'Anexo_GL '!$B$9:$O$1882,8,0) -> 2.881304142 | N42: =+VLOOKUP(C42,'Anexo_GL '!$B$9:$O$1882,9,0) -> Cumple | P42: =+VLOOKUP(C42,'Anexo_GL '!$B$9:$O$1882,11,0) -> 487.59646 | Q42: =+VLOOKUP(C42,'Anexo_GL '!$B$9:$O$1882,12,0) -> 403.40381 | R42: =+VLOOKUP(C42,'Anexo_GL '!$B$9:$O$1882,13,0) -> 84.19265 | S42: =+VLOOKUP(C42,'Anexo_GL '!$B$9:$O$1882,14,0) -> Cumple
A43: 010116 : MD DE OLLEROS | B43: 16 | C43: 010116 | D43: AMAZONAS | E43: MD DE OLLEROS | F43: =+VLOOKUP(C43,'Anexo_GL '!$B$9:$O$1882,4,0) -> 72.14376 | H43: =+VLOOKUP(C43,'Anexo_GL '!$B$9:$O$1882,5,0) -> 535.9451825 | I43: =+VLOOKUP(C43,'Anexo_GL '!$B$9:$O$1882,6,0) -> 0.00036 | J43: =+VLOOKUP(C43,'Anexo_GL '!$B$9:$O$1882,7,0) -> 463.8014225 | L43: =+VLOOKUP(C43,'Anexo_GL '!$B$9:$O$1882,8,0) -> 13.4610334 | N43: =+VLOOKUP(C43,'Anexo_GL '!$B$9:$O$1882,9,0) -> Cumple | P43: =+VLOOKUP(C43,'Anexo_GL '!$B$9:$O$1882,11,0) -> 506.82774 | Q43: =+VLOOKUP(C43,'Anexo_GL '!$B$9:$O$1882,12,0) -> 351.17468 | R43: =+VLOOKUP(C43,'Anexo_GL '!$B$9:$O$1882,13,0) -> 155.65306 | S43: =+VLOOKUP(C43,'Anexo_GL '!$B$9:$O$1882,14,0) -> Cumple
A44: 010117 : MD DE QUINJALCA | B44: 17 | C44: 010117 | D44: AMAZONAS | E44: MD DE QUINJALCA | F44: =+VLOOKUP(C44,'Anexo_GL '!$B$9:$O$1882,4,0) -> 448.76224 | H44: =+VLOOKUP(C44,'Anexo_GL '!$B$9:$O$1882,5,0) -> 558.497295 | I44: =+VLOOKUP(C44,'Anexo_GL '!$B$9:$O$1882,6,0) -> 0.0009 | J44: =+VLOOKUP(C44,'Anexo_GL '!$B$9:$O$1882,7,0) -> 109.735055 | L44: =+VLOOKUP(C44,'Anexo_GL '!$B$9:$O$1882,8,0) -> 80.35173026 | N44: =+VLOOKUP(C44,'Anexo_GL '!$B$9:$O$1882,9,0) -> Cumple | P44: =+VLOOKUP(C44,'Anexo_GL '!$B$9:$O$1882,11,0) -> 495.4623 | Q44: =+VLOOKUP(C44,'Anexo_GL '!$B$9:$O$1882,12,0) -> 264.81211 | R44: =+VLOOKUP(C44,'Anexo_GL '!$B$9:$O$1882,13,0) -> 230.65019 | S44: =+VLOOKUP(C44,'Anexo_GL '!$B$9:$O$1882,14,0) -> Cumple
A45: 010118 : MD DE SAN FRANCISCO DE DAGUAS | B45: 18 | C45: 010118 | D45: AMAZONAS | E45: MD DE SAN FRANCISCO DE DAGUAS | F45: =+VLOOKUP(C45,'Anexo_GL '!$B$9:$O$1882,4,0) -> 5.405 | H45: =+VLOOKUP(C45,'Anexo_GL '!$B$9:$O$1882,5,0) -> 558.21893 | I45: =+VLOOKUP(C45,'Anexo_GL '!$B$9:$O$1882,6,0) -> 0.00034 | J45: =+VLOOKUP(C45,'Anexo_GL '!$B$9:$O$1882,7,0) -> 552.81393 | L45: =+VLOOKUP(C45,'Anexo_GL '!$B$9:$O$1882,8,0) -> 0.968258099 | N45: =+VLOOKUP(C45,'Anexo_GL '!$B$9:$O$1882,9,0) -> Cumple | P45: =+VLOOKUP(C45,'Anexo_GL '!$B$9:$O$1882,11,0) -> 515.26155 | Q45: =+VLOOKUP(C45,'Anexo_GL '!$B$9:$O$1882,12,0) -> 277.07952 | R45: =+VLOOKUP(C45,'Anexo_GL '!$B$9:$O$1882,13,0) -> 238.18203 | S45: =+VLOOKUP(C45,'Anexo_GL '!$B$9:$O$1882,14,0) -> Cumple
A46: 010119 : MD DE SAN ISIDRO DE MAYNO | B46: 19 | C46: 010119 | D46: AMAZONAS | E46: MD DE SAN ISIDRO DE MAYNO | F46: =+VLOOKUP(C46,'Anexo_GL '!$B$9:$O$1882,4,0) -> 118.47145 | H46: =+VLOOKUP(C46,'Anexo_GL '!$B$9:$O$1882,5,0) -> 669.694565 | I46: =+VLOOKUP(C46,'Anexo_GL '!$B$9:$O$1882,6,0) -> 0.00088 | J46: =+VLOOKUP(C46,'Anexo_GL '!$B$9:$O$1882,7,0) -> 551.223115 | L46: =+VLOOKUP(C46,'Anexo_GL '!$B$9:$O$1882,8,0) -> 17.69037053 | N46: =+VLOOKUP(C46,'Anexo_GL '!$B$9:$O$1882,9,0) -> Cumple | P46: =+VLOOKUP(C46,'Anexo_GL '!$B$9:$O$1882,11,0) -> 1131.90054 | Q46: =+VLOOKUP(C46,'Anexo_GL '!$B$9:$O$1882,12,0) -> 285.34216 | R46: =+VLOOKUP(C46,'Anexo_GL '!$B$9:$O$1882,13,0) -> 846.55838 | S46: =+VLOOKUP(C46,'Anexo_GL '!$B$9:$O$1882,14,0) -> Cumple
A47: 010120 : MD DE SOLOCO | B47: 20 | C47: 010120 | D47: AMAZONAS | E47: MD DE SOLOCO | F47: =+VLOOKUP(C47,'Anexo_GL '!$B$9:$O$1882,4,0) -> 1971.6089 | H47: =+VLOOKUP(C47,'Anexo_GL '!$B$9:$O$1882,5,0) -> 879.1439475 | I47: =+VLOOKUP(C47,'Anexo_GL '!$B$9:$O$1882,6,0) -> 0.00084 | J47: =+VLOOKUP(C47,'Anexo_GL '!$B$9:$O$1882,7,0) -> 0 | L47: =+VLOOKUP(C47,'Anexo_GL '!$B$9:$O$1882,8,0) -> 224.2646276 | N47: =+VLOOKUP(C47,'Anexo_GL '!$B$9:$O$1882,9,0) -> No Cumple | P47: =+VLOOKUP(C47,'Anexo_GL '!$B$9:$O$1882,11,0) -> 543.62524 | Q47: =+VLOOKUP(C47,'Anexo_GL '!$B$9:$O$1882,12,0) -> 452.7745 | R47: =+VLOOKUP(C47,'Anexo_GL '!$B$9:$O$1882,13,0) -> 90.85074 | S47: =+VLOOKUP(C47,'Anexo_GL '!$B$9:$O$1882,14,0) -> Cumple
A48: 010121 : MD DE SONCHE | B48: 21 | C48: 010121 | D48: AMAZONAS | E48: MD DE SONCHE | F48: =+VLOOKUP(C48,'Anexo_GL '!$B$9:$O$1882,4,0) -> 15.18356 | H48: =+VLOOKUP(C48,'Anexo_GL '!$B$9:$O$1882,5,0) -> 466.22453 | I48: =+VLOOKUP(C48,'Anexo_GL '!$B$9:$O$1882,6,0) -> 0.00022 | J48: =+VLOOKUP(C48,'Anexo_GL '!$B$9:$O$1882,7,0) -> 451.04097 | L48: =+VLOOKUP(C48,'Anexo_GL '!$B$9:$O$1882,8,0) -> 3.256705519 | N48: =+VLOOKUP(C48,'Anexo_GL '!$B$9:$O$1882,9,0) -> Cumple | P48: =+VLOOKUP(C48,'Anexo_GL '!$B$9:$O$1882,11,0) -> 450.20869 | Q48: =+VLOOKUP(C48,'Anexo_GL '!$B$9:$O$1882,12,0) -> 291.7244 | R48: =+VLOOKUP(C48,'Anexo_GL '!$B$9:$O$1882,13,0) -> 158.48429 | S48: =+VLOOKUP(C48,'Anexo_GL '!$B$9:$O$1882,14,0) -> Cumple
A49: 010201 : MP DE BAGUA - LA PECA | B49: 22 | C49: 010201 | D49: AMAZONAS | E49: MP DE BAGUA - LA PECA | F49: =+VLOOKUP(C49,'Anexo_GL '!$B$9:$O$1882,4,0) -> 1552.12109 | H49: =+VLOOKUP(C49,'Anexo_GL '!$B$9:$O$1882,5,0) -> 12079.87524 | I49: =+VLOOKUP(C49,'Anexo_GL '!$B$9:$O$1882,6,0) -> 0.79891 | J49: =+VLOOKUP(C49,'Anexo_GL '!$B$9:$O$1882,7,0) -> 10527.75415 | L49: =+VLOOKUP(C49,'Anexo_GL '!$B$9:$O$1882,8,0) -> 12.84881722 | N49: =+VLOOKUP(C49,'Anexo_GL '!$B$9:$O$1882,9,0) -> Cumple | P49: =+VLOOKUP(C49,'Anexo_GL '!$B$9:$O$1882,11,0) -> 12868.10887 | Q49: =+VLOOKUP(C49,'Anexo_GL '!$B$9:$O$1882,12,0) -> 11251.25894 | R49: =+VLOOKUP(C49,'Anexo_GL '!$B$9:$O$1882,13,0) -> 1616.84993 | S49: =+VLOOKUP(C49,'Anexo_GL '!$B$9:$O$1882,14,0) -> Cumple
A50: 010202 : MD DE ARAMANGO | B50: 23 | C50: 010202 | D50: AMAZONAS | E50: MD DE ARAMANGO | F50: =+VLOOKUP(C50,'Anexo_GL '!$B$9:$O$1882,4,0) -> 872.69311 | H50: =+VLOOKUP(C50,'Anexo_GL '!$B$9:$O$1882,5,0) -> 3713.399565 | I50: =+VLOOKUP(C50,'Anexo_GL '!$B$9:$O$1882,6,0) -> 1.10553 | J50: =+VLOOKUP(C50,'Anexo_GL '!$B$9:$O$1882,7,0) -> 2840.706455 | L50: =+VLOOKUP(C50,'Anexo_GL '!$B$9:$O$1882,8,0) -> 23.50119061 | N50: =+VLOOKUP(C50,'Anexo_GL '!$B$9:$O$1882,9,0) -> Cumple | P50: =+VLOOKUP(C50,'Anexo_GL '!$B$9:$O$1882,11,0) -> 3817.72853 | Q50: =+VLOOKUP(C50,'Anexo_GL '!$B$9:$O$1882,12,0) -> 2121.68207 | R50: =+VLOOKUP(C50,'Anexo_GL '!$B$9:$O$1882,13,0) -> 1696.04646 | S50: =+VLOOKUP(C50,'Anexo_GL '!$B$9:$O$1882,14,0) -> Cumple
A51: 010203 : MD DE COPALLIN | B51: 24 | C51: 010203 | D51: AMAZONAS | E51: MD DE COPALLIN | F51: =+VLOOKUP(C51,'Anexo_GL '!$B$9:$O$1882,4,0) -> 482.84215 | H51: =+VLOOKUP(C51,'Anexo_GL '!$B$9:$O$1882,5,0) -> 2310.795562 | I51: =+VLOOKUP(C51,'Anexo_GL '!$B$9:$O$1882,6,0) -> 0.00088 | J51: =+VLOOKUP(C51,'Anexo_GL '!$B$9:$O$1882,7,0) -> 1827.953413 | L51: =+VLOOKUP(C51,'Anexo_GL '!$B$9:$O$1882,8,0) -> 20.89506133 | N51: =+VLOOKUP(C51,'Anexo_GL '!$B$9:$O$1882,9,0) -> Cumple | P51: =+VLOOKUP(C51,'Anexo_GL '!$B$9:$O$1882,11,0) -> 3682.57791 | Q51: =+VLOOKUP(C51,'Anexo_GL '!$B$9:$O$1882,12,0) -> 1807.10896 | R51: =+VLOOKUP(C51,'Anexo_GL '!$B$9:$O$1882,13,0) -> 1875.46895 | S51: =+VLOOKUP(C51,'Anexo_GL '!$B$9:$O$1882,14,0) -> Cumple
A52: 010204 : MD DE EL PARCO | B52: 25 | C52: 010204 | D52: AMAZONAS | E52: MD DE EL PARCO | F52: =+VLOOKUP(C52,'Anexo_GL '!$B$9:$O$1882,4,0) -> 275.13401 | H52: =+VLOOKUP(C52,'Anexo_GL '!$B$9:$O$1882,5,0) -> 1980.054805 | I52: =+VLOOKUP(C52,'Anexo_GL '!$B$9:$O$1882,6,0) -> 0.00023 | J52: =+VLOOKUP(C52,'Anexo_GL '!$B$9:$O$1882,7,0) -> 1704.920795 | L52: =+VLOOKUP(C52,'Anexo_GL '!$B$9:$O$1882,8,0) -> 13.89527246 | N52: =+VLOOKUP(C52,'Anexo_GL '!$B$9:$O$1882,9,0) -> Cumple | P52: =+VLOOKUP(C52,'Anexo_GL '!$B$9:$O$1882,11,0) -> 5939.4557 | Q52: =+VLOOKUP(C52,'Anexo_GL '!$B$9:$O$1882,12,0) -> 581.804 | R52: =+VLOOKUP(C52,'Anexo_GL '!$B$9:$O$1882,13,0) -> 5357.6517 | S52: =+VLOOKUP(C52,'Anexo_GL '!$B$9:$O$1882,14,0) -> Cumple
A53: 010205 : MD DE IMAZA | B53: 26 | C53: 010205 | D53: AMAZONAS | E53: MD DE IMAZA | F53: =+VLOOKUP(C53,'Anexo_GL '!$B$9:$O$1882,4,0) -> 6405.24581 | H53: =+VLOOKUP(C53,'Anexo_GL '!$B$9:$O$1882,5,0) -> 8258.87881 | I53: =+VLOOKUP(C53,'Anexo_GL '!$B$9:$O$1882,6,0) -> 2.1932 | J53: =+VLOOKUP(C53,'Anexo_GL '!$B$9:$O$1882,7,0) -> 1853.633 | L53: =+VLOOKUP(C53,'Anexo_GL '!$B$9:$O$1882,8,0) -> 77.55587601 | N53: =+VLOOKUP(C53,'Anexo_GL '!$B$9:$O$1882,9,0) -> Cumple | P53: =+VLOOKUP(C53,'Anexo_GL '!$B$9:$O$1882,11,0) -> 9011.45923 | Q53: =+VLOOKUP(C53,'Anexo_GL '!$B$9:$O$1882,12,0) -> 5480.92665 | R53: =+VLOOKUP(C53,'Anexo_GL '!$B$9:$O$1882,13,0) -> 3530.53258 | S53: =+VLOOKUP(C53,'Anexo_GL '!$B$9:$O$1882,14,0) -> Cumple
A54: 010206 : MD DE LA PECA | B54: 27 | C54: 010206 | D54: AMAZONAS | E54: MD DE LA PECA | F54: =+VLOOKUP(C54,'Anexo_GL '!$B$9:$O$1882,4,0) -> 154.562 | H54: =+VLOOKUP(C54,'Anexo_GL '!$B$9:$O$1882,5,0) -> 2207.469545 | I54: =+VLOOKUP(C54,'Anexo_GL '!$B$9:$O$1882,6,0) -> 0.00127 | J54: =+VLOOKUP(C54,'Anexo_GL '!$B$9:$O$1882,7,0) -> 2052.907545 | L54: =+VLOOKUP(C54,'Anexo_GL '!$B$9:$O$1882,8,0) -> 7.001772702 | N54: =+VLOOKUP(C54,'Anexo_GL '!$B$9:$O$1882,9,0) -> Cumple | P54: =+VLOOKUP(C54,'Anexo_GL '!$B$9:$O$1882,11,0) -> 2278.38104 | Q54: =+VLOOKUP(C54,'Anexo_GL '!$B$9:$O$1882,12,0) -> 1603.38429 | R54: =+VLOOKUP(C54,'Anexo_GL '!$B$9:$O$1882,13,0) -> 674.99675 | S54: =+VLOOKUP(C54,'Anexo_GL '!$B$9:$O$1882,14,0) -> Cumple
A55: 010301 : MP DE BONGARA - JUMBILLA | B55: 28 | C55: 010301 | D55: AMAZONAS | E55: MP DE BONGARA - JUMBILLA | F55: =+VLOOKUP(C55,'Anexo_GL '!$B$9:$O$1882,4,0) -> 1826.37306 | H55: =+VLOOKUP(C55,'Anexo_GL '!$B$9:$O$1882,5,0) -> 3226.53999 | I55: =+VLOOKUP(C55,'Anexo_GL '!$B$9:$O$1882,6,0) -> 0.00029 | J55: =+VLOOKUP(C55,'Anexo_GL '!$B$9:$O$1882,7,0) -> 1400.16693 | L55: =+VLOOKUP(C55,'Anexo_GL '!$B$9:$O$1882,8,0) -> 56.60469313 | N55: =+VLOOKUP(C55,'Anexo_GL '!$B$9:$O$1882,9,0) -> Cumple | P55: =+VLOOKUP(C55,'Anexo_GL '!$B$9:$O$1882,11,0) -> 3199.63101 | Q55: =+VLOOKUP(C55,'Anexo_GL '!$B$9:$O$1882,12,0) -> 2236.67604 | R55: =+VLOOKUP(C55,'Anexo_GL '!$B$9:$O$1882,13,0) -> 962.95497 | S55: =+VLOOKUP(C55,'Anexo_GL '!$B$9:$O$1882,14,0) -> Cumple
A56: 010302 : MD DE CHISQUILLA | B56: 29 | C56: 010302 | D56: AMAZONAS | E56: MD DE CHISQUILLA | F56: =+VLOOKUP(C56,'Anexo_GL '!$B$9:$O$1882,4,0) -> 11.84246 | H56: =+VLOOKUP(C56,'Anexo_GL '!$B$9:$O$1882,5,0) -> 1003.881195 | I56: =+VLOOKUP(C56,'Anexo_GL '!$B$9:$O$1882,6,0) -> 2e-05 | J56: =+VLOOKUP(C56,'Anexo_GL '!$B$9:$O$1882,7,0) -> 992.038735 | L56: =+VLOOKUP(C56,'Anexo_GL '!$B$9:$O$1882,8,0) -> 1.17966748 | N56: =+VLOOKUP(C56,'Anexo_GL '!$B$9:$O$1882,9,0) -> Cumple | P56: =+VLOOKUP(C56,'Anexo_GL '!$B$9:$O$1882,11,0) -> 440.49743 | Q56: =+VLOOKUP(C56,'Anexo_GL '!$B$9:$O$1882,12,0) -> 528.77235 | R56: =+VLOOKUP(C56,'Anexo_GL '!$B$9:$O$1882,13,0) -> -88.27492 | S56: =+VLOOKUP(C56,'Anexo_GL '!$B$9:$O$1882,14,0) -> No Cumple
A57: 010303 : MD DE CHURUJA | B57: 30 | C57: 010303 | D57: AMAZONAS | E57: MD DE CHURUJA | F57: =+VLOOKUP(C57,'Anexo_GL '!$B$9:$O$1882,4,0) -> 1.89122 | H57: =+VLOOKUP(C57,'Anexo_GL '!$B$9:$O$1882,5,0) -> 3262.144095 | I57: =+VLOOKUP(C57,'Anexo_GL '!$B$9:$O$1882,6,0) -> 2e-05 | J57: =+VLOOKUP(C57,'Anexo_GL '!$B$9:$O$1882,7,0) -> 3260.252875 | L57: =+VLOOKUP(C57,'Anexo_GL '!$B$9:$O$1882,8,0) -> 0.05797475356 | N57: =+VLOOKUP(C57,'Anexo_GL '!$B$9:$O$1882,9,0) -> Cumple | P57: =+VLOOKUP(C57,'Anexo_GL '!$B$9:$O$1882,11,0) -> 476.28592 | Q57: =+VLOOKUP(C57,'Anexo_GL '!$B$9:$O$1882,12,0) -> 315.2466 | R57: =+VLOOKUP(C57,'Anexo_GL '!$B$9:$O$1882,13,0) -> 161.03932 | S57: =+VLOOKUP(C57,'Anexo_GL '!$B$9:$O$1882,14,0) -> Cumple
A58: 010304 : MD DE COROSHA | B58: 31 | C58: 010304 | D58: AMAZONAS | E58: MD DE COROSHA | F58: =+VLOOKUP(C58,'Anexo_GL '!$B$9:$O$1882,4,0) -> 40.3983 | H58: =+VLOOKUP(C58,'Anexo_GL '!$B$9:$O$1882,5,0) -> 490.854605 | I58: =+VLOOKUP(C58,'Anexo_GL '!$B$9:$O$1882,6,0) -> 0.00018 | J58: =+VLOOKUP(C58,'Anexo_GL '!$B$9:$O$1882,7,0) -> 450.456305 | L58: =+VLOOKUP(C58,'Anexo_GL '!$B$9:$O$1882,8,0) -> 8.230196801 | N58: =+VLOOKUP(C58,'Anexo_GL '!$B$9:$O$1882,9,0) -> Cumple | P58: =+VLOOKUP(C58,'Anexo_GL '!$B$9:$O$1882,11,0) -> 449.66695 | Q58: =+VLOOKUP(C58,'Anexo_GL '!$B$9:$O$1882,12,0) -> 411.75462 | R58: =+VLOOKUP(C58,'Anexo_GL '!$B$9:$O$1882,13,0) -> 37.91233 | S58: =+VLOOKUP(C58,'Anexo_GL '!$B$9:$O$1882,14,0) -> Cumple
A59: 010305 : MD DE CUISPES | B59: 32 | C59: 010305 | D59: AMAZONAS | E59: MD DE CUISPES | F59: =+VLOOKUP(C59,'Anexo_GL '!$B$9:$O$1882,4,0) -> 82.0499 | H59: =+VLOOKUP(C59,'Anexo_GL '!$B$9:$O$1882,5,0) -> 522.5199675 | I59: =+VLOOKUP(C59,'Anexo_GL '!$B$9:$O$1882,6,0) -> 0.00012 | J59: =+VLOOKUP(C59,'Anexo_GL '!$B$9:$O$1882,7,0) -> 440.4700675 | L59: =+VLOOKUP(C59,'Anexo_GL '!$B$9:$O$1882,8,0) -> 15.70273006 | N59: =+VLOOKUP(C59,'Anexo_GL '!$B$9:$O$1882,9,0) -> Cumple | P59: =+VLOOKUP(C59,'Anexo_GL '!$B$9:$O$1882,11,0) -> 488.00116 | Q59: =+VLOOKUP(C59,'Anexo_GL '!$B$9:$O$1882,12,0) -> 218.81234 | R59: =+VLOOKUP(C59,'Anexo_GL '!$B$9:$O$1882,13,0) -> 269.18882 | S59: =+VLOOKUP(C59,'Anexo_GL '!$B$9:$O$1882,14,0) -> Cumple
A60: 010306 : MD DE FLORIDA | B60: 33 | C60: 010306 | D60: AMAZONAS | E60: MD DE FLORIDA | F60: =+VLOOKUP(C60,'Anexo_GL '!$B$9:$O$1882,4,0) -> 203.38235 | H60: =+VLOOKUP(C60,'Anexo_GL '!$B$9:$O$1882,5,0) -> 1861.554725 | I60: =+VLOOKUP(C60,'Anexo_GL '!$B$9:$O$1882,6,0) -> 0.00122 | J60: =+VLOOKUP(C60,'Anexo_GL '!$B$9:$O$1882,7,0) -> 1658.172375 | L60: =+VLOOKUP(C60,'Anexo_GL '!$B$9:$O$1882,8,0) -> 10.92540269 | N60: =+VLOOKUP(C60,'Anexo_GL '!$B$9:$O$1882,9,0) -> Cumple | P60: =+VLOOKUP(C60,'Anexo_GL '!$B$9:$O$1882,11,0) -> 1949.73505 | Q60: =+VLOOKUP(C60,'Anexo_GL '!$B$9:$O$1882,12,0) -> 1751.69413 | R60: =+VLOOKUP(C60,'Anexo_GL '!$B$9:$O$1882,13,0) -> 198.04092 | S60: =+VLOOKUP(C60,'Anexo_GL '!$B$9:$O$1882,14,0) -> Cumple
A61: 010307 : MD DE JAZAN | B61: 34 | C61: 010307 | D61: AMAZONAS | E61: MD DE JAZAN | F61: =+VLOOKUP(C61,'Anexo_GL '!$B$9:$O$1882,4,0) -> 1106.45381 | H61: =+VLOOKUP(C61,'Anexo_GL '!$B$9:$O$1882,5,0) -> 2390.105845 | I61: =+VLOOKUP(C61,'Anexo_GL '!$B$9:$O$1882,6,0) -> 0.00078 | J61: =+VLOOKUP(C61,'Anexo_GL '!$B$9:$O$1882,7,0) -> 1283.652035 | L61: =+VLOOKUP(C61,'Anexo_GL '!$B$9:$O$1882,8,0) -> 46.29308833 | N61: =+VLOOKUP(C61,'Anexo_GL '!$B$9:$O$1882,9,0) -> Cumple | P61: =+VLOOKUP(C61,'Anexo_GL '!$B$9:$O$1882,11,0) -> 2482.45489 | Q61: =+VLOOKUP(C61,'Anexo_GL '!$B$9:$O$1882,12,0) -> 1824.58235 | R61: =+VLOOKUP(C61,'Anexo_GL '!$B$9:$O$1882,13,0) -> 657.87254 | S61: =+VLOOKUP(C61,'Anexo_GL '!$B$9:$O$1882,14,0) -> Cumple
A62: 010308 : MD DE RECTA | B62: 35 | C62: 010308 | D62: AMAZONAS | E62: MD DE RECTA | F62: =+VLOOKUP(C62,'Anexo_GL '!$B$9:$O$1882,4,0) -> 18.44273 | H62: =+VLOOKUP(C62,'Anexo_GL '!$B$9:$O$1882,5,0) -> 433.040575 | I62: =+VLOOKUP(C62,'Anexo_GL '!$B$9:$O$1882,6,0) -> 1e-05 | J62: =+VLOOKUP(C62,'Anexo_GL '!$B$9:$O$1882,7,0) -> 414.597845 | L62: =+VLOOKUP(C62,'Anexo_GL '!$B$9:$O$1882,8,0) -> 4.258891906 | N62: =+VLOOKUP(C62,'Anexo_GL '!$B$9:$O$1882,9,0) -> Cumple | P62: =+VLOOKUP(C62,'Anexo_GL '!$B$9:$O$1882,11,0) -> 450.12161 | Q62: =+VLOOKUP(C62,'Anexo_GL '!$B$9:$O$1882,12,0) -> 294.69985 | R62: =+VLOOKUP(C62,'Anexo_GL '!$B$9:$O$1882,13,0) -> 155.42176 | S62: =+VLOOKUP(C62,'Anexo_GL '!$B$9:$O$1882,14,0) -> Cumple
A63: 010309 : MD DE SAN CARLOS | B63: 36 | C63: 010309 | D63: AMAZONAS | E63: MD DE SAN CARLOS | F63: =+VLOOKUP(C63,'Anexo_GL '!$B$9:$O$1882,4,0) -> 78.8032 | H63: =+VLOOKUP(C63,'Anexo_GL '!$B$9:$O$1882,5,0) -> 491.791175 | I63: =+VLOOKUP(C63,'Anexo_GL '!$B$9:$O$1882,6,0) -> 1e-05 | J63: =+VLOOKUP(C63,'Anexo_GL '!$B$9:$O$1882,7,0) -> 412.987975 | L63: =+VLOOKUP(C63,'Anexo_GL '!$B$9:$O$1882,8,0) -> 16.02371169 | N63: =+VLOOKUP(C63,'Anexo_GL '!$B$9:$O$1882,9,0) -> Cumple | P63: =+VLOOKUP(C63,'Anexo_GL '!$B$9:$O$1882,11,0) -> 458.27861 | Q63: =+VLOOKUP(C63,'Anexo_GL '!$B$9:$O$1882,12,0) -> 397.46126 | R63: =+VLOOKUP(C63,'Anexo_GL '!$B$9:$O$1882,13,0) -> 60.81735 | S63: =+VLOOKUP(C63,'Anexo_GL '!$B$9:$O$1882,14,0) -> Cumple
A64: 010310 : MD DE SHIPASBAMBA | B64: 37 | C64: 010310 | D64: AMAZONAS | E64: MD DE SHIPASBAMBA | F64: =+VLOOKUP(C64,'Anexo_GL '!$B$9:$O$1882,4,0) -> 5.90365 | H64: =+VLOOKUP(C64,'Anexo_GL '!$B$9:$O$1882,5,0) -> 730.5492625 | I64: =+VLOOKUP(C64,'Anexo_GL '!$B$9:$O$1882,6,0) -> 0.00029 | J64: =+VLOOKUP(C64,'Anexo_GL '!$B$9:$O$1882,7,0) -> 724.6456125 | L64: =+VLOOKUP(C64,'Anexo_GL '!$B$9:$O$1882,8,0) -> 0.8081111436 | N64: =+VLOOKUP(C64,'Anexo_GL '!$B$9:$O$1882,9,0) -> Cumple | P64: =+VLOOKUP(C64,'Anexo_GL '!$B$9:$O$1882,11,0) -> 731.48711 | Q64: =+VLOOKUP(C64,'Anexo_GL '!$B$9:$O$1882,12,0) -> 505.49633 | R64: =+VLOOKUP(C64,'Anexo_GL '!$B$9:$O$1882,13,0) -> 225.99078 | S64: =+VLOOKUP(C64,'Anexo_GL '!$B$9:$O$1882,14,0) -> Cumple
A65: 010311 : MD DE VALERA | B65: 38 | C65: 010311 | D65: AMAZONAS | E65: MD DE VALERA | F65: =+VLOOKUP(C65,'Anexo_GL '!$B$9:$O$1882,4,0) -> 11.5335 | H65: =+VLOOKUP(C65,'Anexo_GL '!$B$9:$O$1882,5,0) -> 573.61906 | I65: =+VLOOKUP(C65,'Anexo_GL '!$B$9:$O$1882,6,0) -> 0.00021 | J65: =+VLOOKUP(C65,'Anexo_GL '!$B$9:$O$1882,7,0) -> 562.08556 | L65: =+VLOOKUP(C65,'Anexo_GL '!$B$9:$O$1882,8,0) -> 2.010654946 | N65: =+VLOOKUP(C65,'Anexo_GL '!$B$9:$O$1882,9,0) -> Cumple | P65: =+VLOOKUP(C65,'Anexo_GL '!$B$9:$O$1882,11,0) -> 654.71313 | Q65: =+VLOOKUP(C65,'Anexo_GL '!$B$9:$O$1882,12,0) -> 382.22447 | R65: =+VLOOKUP(C65,'Anexo_GL '!$B$9:$O$1882,13,0) -> 272.48866 | S65: =+VLOOKUP(C65,'Anexo_GL '!$B$9:$O$1882,14,0) -> Cumple
A66: 010312 : MD DE YAMBRASBAMBA | B66: 39 | C66: 010312 | D66: AMAZONAS | E66: MD DE YAMBRASBAMBA | F66: =+VLOOKUP(C66,'Anexo_GL '!$B$9:$O$1882,4,0) -> 451.74617 | H66: =+VLOOKUP(C66,'Anexo_GL '!$B$9:$O$1882,5,0) -> 2530.222915 | I66: =+VLOOKUP(C66,'Anexo_GL '!$B$9:$O$1882,6,0) -> 0.00145 | J66: =+VLOOKUP(C66,'Anexo_GL '!$B$9:$O$1882,7,0) -> 2078.476745 | L66: =+VLOOKUP(C66,'Anexo_GL '!$B$9:$O$1882,8,0) -> 17.85400675 | N66: =+VLOOKUP(C66,'Anexo_GL '!$B$9:$O$1882,9,0) -> Cumple | P66: =+VLOOKUP(C66,'Anexo_GL '!$B$9:$O$1882,11,0) -> 3187.95305 | Q66: =+VLOOKUP(C66,'Anexo_GL '!$B$9:$O$1882,12,0) -> 2154.63212 | R66: =+VLOOKUP(C66,'Anexo_GL '!$B$9:$O$1882,13,0) -> 1033.32093 | S66: =+VLOOKUP(C66,'Anexo_GL '!$B$9:$O$1882,14,0) -> Cumple
A67: 010401 : MP DE CONDORCANQUI - NIEVA | B67: 40 | C67: 010401 | D67: AMAZONAS | E67: MP DE CONDORCANQUI - NIEVA | F67: =+VLOOKUP(C67,'Anexo_GL '!$B$9:$O$1882,4,0) -> 1934.79743 | H67: =+VLOOKUP(C67,'Anexo_GL '!$B$9:$O$1882,5,0) -> 16874.42729 | I67: =+VLOOKUP(C67,'Anexo_GL '!$B$9:$O$1882,6,0) -> 2.38616 | J67: =+VLOOKUP(C67,'Anexo_GL '!$B$9:$O$1882,7,0) -> 14939.62986 | L67: =+VLOOKUP(C67,'Anexo_GL '!$B$9:$O$1882,8,0) -> 11.46585538 | N67: =+VLOOKUP(C67,'Anexo_GL '!$B$9:$O$1882,9,0) -> Cumple | P67: =+VLOOKUP(C67,'Anexo_GL '!$B$9:$O$1882,11,0) -> 18450.34409 | Q67: =+VLOOKUP(C67,'Anexo_GL '!$B$9:$O$1882,12,0) -> 12180.17864 | R67: =+VLOOKUP(C67,'Anexo_GL '!$B$9:$O$1882,13,0) -> 6270.16545 | S67: =+VLOOKUP(C67,'Anexo_GL '!$B$9:$O$1882,14,0) -> Cumple
A68: 010402 : MD DE EL CENEPA | B68: 41 | C68: 010402 | D68: AMAZONAS | E68: MD DE EL CENEPA | F68: =+VLOOKUP(C68,'Anexo_GL '!$B$9:$O$1882,4,0) -> 58.16352 | H68: =+VLOOKUP(C68,'Anexo_GL '!$B$9:$O$1882,5,0) -> 4113.224318 | I68: =+VLOOKUP(C68,'Anexo_GL '!$B$9:$O$1882,6,0) -> 0.60467 | J68: =+VLOOKUP(C68,'Anexo_GL '!$B$9:$O$1882,7,0) -> 4055.060797 | L68: =+VLOOKUP(C68,'Anexo_GL '!$B$9:$O$1882,8,0) -> 1.414061464 | N68: =+VLOOKUP(C68,'Anexo_GL '!$B$9:$O$1882,9,0) -> Cumple | P68: =+VLOOKUP(C68,'Anexo_GL '!$B$9:$O$1882,11,0) -> 4259.37282 | Q68: =+VLOOKUP(C68,'Anexo_GL '!$B$9:$O$1882,12,0) -> 3065.91964 | R68: =+VLOOKUP(C68,'Anexo_GL '!$B$9:$O$1882,13,0) -> 1193.45318 | S68: =+VLOOKUP(C68,'Anexo_GL '!$B$9:$O$1882,14,0) -> Cumple
A69: 010403 : MD DE RIO SANTIAGO | B69: 42 | C69: 010403 | D69: AMAZONAS | E69: MD DE RIO SANTIAGO | F69: =+VLOOKUP(C69,'Anexo_GL '!$B$9:$O$1882,4,0) -> 1696.88588 | H69: =+VLOOKUP(C69,'Anexo_GL '!$B$9:$O$1882,5,0) -> 7027.894098 | I69: =+VLOOKUP(C69,'Anexo_GL '!$B$9:$O$1882,6,0) -> 1.03501 | J69: =+VLOOKUP(C69,'Anexo_GL '!$B$9:$O$1882,7,0) -> 5331.008218 | L69: =+VLOOKUP(C69,'Anexo_GL '!$B$9:$O$1882,8,0) -> 24.1450121 | N69: =+VLOOKUP(C69,'Anexo_GL '!$B$9:$O$1882,9,0) -> Cumple | P69: =+VLOOKUP(C69,'Anexo_GL '!$B$9:$O$1882,11,0) -> 8027.44869 | Q69: =+VLOOKUP(C69,'Anexo_GL '!$B$9:$O$1882,12,0) -> 5205.38935 | R69: =+VLOOKUP(C69,'Anexo_GL '!$B$9:$O$1882,13,0) -> 2822.05934 | S69: =+VLOOKUP(C69,'Anexo_GL '!$B$9:$O$1882,14,0) -> Cumple
A70: 010501 : MP DE LUYA - LAMUD | B70: 43 | C70: 010501 | D70: AMAZONAS | E70: MP DE LUYA - LAMUD | F70: =+VLOOKUP(C70,'Anexo_GL '!$B$9:$O$1882,4,0) -> 1475.7151 | H70: =+VLOOKUP(C70,'Anexo_GL '!$B$9:$O$1882,5,0) -> 5659.619935 | I70: =+VLOOKUP(C70,'Anexo_GL '!$B$9:$O$1882,6,0) -> 0.00021 | J70: =+VLOOKUP(C70,'Anexo_GL '!$B$9:$O$1882,7,0) -> 4183.904835 | L70: =+VLOOKUP(C70,'Anexo_GL '!$B$9:$O$1882,8,0) -> 26.07445583 | N70: =+VLOOKUP(C70,'Anexo_GL '!$B$9:$O$1882,9,0) -> Cumple | P70: =+VLOOKUP(C70,'Anexo_GL '!$B$9:$O$1882,11,0) -> 5614.1492 | Q70: =+VLOOKUP(C70,'Anexo_GL '!$B$9:$O$1882,12,0) -> 3175.96156 | R70: =+VLOOKUP(C70,'Anexo_GL '!$B$9:$O$1882,13,0) -> 2438.18764 | S70: =+VLOOKUP(C70,'Anexo_GL '!$B$9:$O$1882,14,0) -> Cumple
A71: 010502 : MD DE CAMPORREDONDO | B71: 44 | C71: 010502 | D71: AMAZONAS | E71: MD DE CAMPORREDONDO | F71: =+VLOOKUP(C71,'Anexo_GL '!$B$9:$O$1882,4,0) -> 19.76181 | H71: =+VLOOKUP(C71,'Anexo_GL '!$B$9:$O$1882,5,0) -> 1998.121585 | I71: =+VLOOKUP(C71,'Anexo_GL '!$B$9:$O$1882,6,0) -> 0.00126 | J71: =+VLOOKUP(C71,'Anexo_GL '!$B$9:$O$1882,7,0) -> 1978.359775 | L71: =+VLOOKUP(C71,'Anexo_GL '!$B$9:$O$1882,8,0) -> 0.9890193944 | N71: =+VLOOKUP(C71,'Anexo_GL '!$B$9:$O$1882,9,0) -> Cumple | P71: =+VLOOKUP(C71,'Anexo_GL '!$B$9:$O$1882,11,0) -> 1771.17585 | Q71: =+VLOOKUP(C71,'Anexo_GL '!$B$9:$O$1882,12,0) -> 1241.63471 | R71: =+VLOOKUP(C71,'Anexo_GL '!$B$9:$O$1882,13,0) -> 529.54114 | S71: =+VLOOKUP(C71,'Anexo_GL '!$B$9:$O$1882,14,0) -> Cumple
A72: 010503 : MD DE COCABAMBA | B72: 45 | C72: 010503 | D72: AMAZONAS | E72: MD DE COCABAMBA | F72: =+VLOOKUP(C72,'Anexo_GL '!$B$9:$O$1882,4,0) -> 1666.02324 | H72: =+VLOOKUP(C72,'Anexo_GL '!$B$9:$O$1882,5,0) -> 939.12593 | I72: =+VLOOKUP(C72,'Anexo_GL '!$B$9:$O$1882,6,0) -> 0.00041 | J72: =+VLOOKUP(C72,'Anexo_GL '!$B$9:$O$1882,7,0) -> 0 | L72: =+VLOOKUP(C72,'Anexo_GL '!$B$9:$O$1882,8,0) -> 177.4014737 | N72: =+VLOOKUP(C72,'Anexo_GL '!$B$9:$O$1882,9,0) -> No Cumple | P72: =+VLOOKUP(C72,'Anexo_GL '!$B$9:$O$1882,11,0) -> 965.94255 | Q72: =+VLOOKUP(C72,'Anexo_GL '!$B$9:$O$1882,12,0) -> 442.20109 | R72: =+VLOOKUP(C72,'Anexo_GL '!$B$9:$O$1882,13,0) -> 523.74146 | S72: =+VLOOKUP(C72,'Anexo_GL '!$B$9:$O$1882,14,0) -> Cumple
A73: 010504 : MD DE COLCAMAR | B73: 46 | C73: 010504 | D73: AMAZONAS | E73: MD DE COLCAMAR | F73: =+VLOOKUP(C73,'Anexo_GL '!$B$9:$O$1882,4,0) -> 1229.33119 | H73: =+VLOOKUP(C73,'Anexo_GL '!$B$9:$O$1882,5,0) -> 691.750835 | I73: =+VLOOKUP(C73,'Anexo_GL '!$B$9:$O$1882,6,0) -> 0.00024 | J73: =+VLOOKUP(C73,'Anexo_GL '!$B$9:$O$1882,7,0) -> 0 | L73: =+VLOOKUP(C73,'Anexo_GL '!$B$9:$O$1882,8,0) -> 177.7130041 | N73: =+VLOOKUP(C73,'Anexo_GL '!$B$9:$O$1882,9,0) -> No Cumple | P73: =+VLOOKUP(C73,'Anexo_GL '!$B$9:$O$1882,11,0) -> 682.28864 | Q73: =+VLOOKUP(C73,'Anexo_GL '!$B$9:$O$1882,12,0) -> 389.13435 | R73: =+VLOOKUP(C73,'Anexo_GL '!$B$9:$O$1882,13,0) -> 293.15429 | S73: =+VLOOKUP(C73,'Anexo_GL '!$B$9:$O$1882,14,0) -> Cumple
A74: 010505 : MD DE CONILA | B74: 47 | C74: 010505 | D74: AMAZONAS | E74: MD DE CONILA | F74: =+VLOOKUP(C74,'Anexo_GL '!$B$9:$O$1882,4,0) -> 371.41637 | H74: =+VLOOKUP(C74,'Anexo_GL '!$B$9:$O$1882,5,0) -> 821.8343525 | I74: =+VLOOKUP(C74,'Anexo_GL '!$B$9:$O$1882,6,0) -> 0.00032 | J74: =+VLOOKUP(C74,'Anexo_GL '!$B$9:$O$1882,7,0) -> 450.4179825 | L74: =+VLOOKUP(C74,'Anexo_GL '!$B$9:$O$1882,8,0) -> 45.19358054 | N74: =+VLOOKUP(C74,'Anexo_GL '!$B$9:$O$1882,9,0) -> Cumple | P74: =+VLOOKUP(C74,'Anexo_GL '!$B$9:$O$1882,11,0) -> 650.59031 | Q74: =+VLOOKUP(C74,'Anexo_GL '!$B$9:$O$1882,12,0) -> 481.02853 | R74: =+VLOOKUP(C74,'Anexo_GL '!$B$9:$O$1882,13,0) -> 169.56178 | S74: =+VLOOKUP(C74,'Anexo_GL '!$B$9:$O$1882,14,0) -> Cumple
A75: 010506 : MD DE INGUILPATA | B75: 48 | C75: 010506 | D75: AMAZONAS | E75: MD DE INGUILPATA | F75: =+VLOOKUP(C75,'Anexo_GL '!$B$9:$O$1882,4,0) -> 22.307 | H75: =+VLOOKUP(C75,'Anexo_GL '!$B$9:$O$1882,5,0) -> 555.0337625 | I75: =+VLOOKUP(C75,'Anexo_GL '!$B$9:$O$1882,6,0) -> 4e-05 | J75: =+VLOOKUP(C75,'Anexo_GL '!$B$9:$O$1882,7,0) -> 532.7267625 | L75: =+VLOOKUP(C75,'Anexo_GL '!$B$9:$O$1882,8,0) -> 4.019034788 | N75: =+VLOOKUP(C75,'Anexo_GL '!$B$9:$O$1882,9,0) -> Cumple | P75: =+VLOOKUP(C75,'Anexo_GL '!$B$9:$O$1882,11,0) -> 481.73412 | Q75: =+VLOOKUP(C75,'Anexo_GL '!$B$9:$O$1882,12,0) -> 314.05049 | R75: =+VLOOKUP(C75,'Anexo_GL '!$B$9:$O$1882,13,0) -> 167.68363 | S75: =+VLOOKUP(C75,'Anexo_GL '!$B$9:$O$1882,14,0) -> Cumple
A76: 010507 : MD DE LONGUITA | B76: 49 | C76: 010507 | D76: AMAZONAS | E76: MD DE LONGUITA | F76: =+VLOOKUP(C76,'Anexo_GL '!$B$9:$O$1882,4,0) -> 4.90058 | H76: =+VLOOKUP(C76,'Anexo_GL '!$B$9:$O$1882,5,0) -> 710.816245 | I76: =+VLOOKUP(C76,'Anexo_GL '!$B$9:$O$1882,6,0) -> 0.00021 | J76: =+VLOOKUP(C76,'Anexo_GL '!$B$9:$O$1882,7,0) -> 705.915665 | L76: =+VLOOKUP(C76,'Anexo_GL '!$B$9:$O$1882,8,0) -> 0.6894299384 | N76: =+VLOOKUP(C76,'Anexo_GL '!$B$9:$O$1882,9,0) -> Cumple | P76: =+VLOOKUP(C76,'Anexo_GL '!$B$9:$O$1882,11,0) -> 1135.94575 | Q76: =+VLOOKUP(C76,'Anexo_GL '!$B$9:$O$1882,12,0) -> 582.64669 | R76: =+VLOOKUP(C76,'Anexo_GL '!$B$9:$O$1882,13,0) -> 553.29906 | S76: =+VLOOKUP(C76,'Anexo_GL '!$B$9:$O$1882,14,0) -> Cumple
A77: 010508 : MD DE LONYA CHICO | B77: 50 | C77: 010508 | D77: AMAZONAS | E77: MD DE LONYA CHICO | F77: =+VLOOKUP(C77,'Anexo_GL '!$B$9:$O$1882,4,0) -> 18.70898 | H77: =+VLOOKUP(C77,'Anexo_GL '!$B$9:$O$1882,5,0) -> 683.4731625 | I77: =+VLOOKUP(C77,'Anexo_GL '!$B$9:$O$1882,6,0) -> 8e-05 | J77: =+VLOOKUP(C77,'Anexo_GL '!$B$9:$O$1882,7,0) -> 664.7641825 | L77: =+VLOOKUP(C77,'Anexo_GL '!$B$9:$O$1882,8,0) -> 2.737339376 | N77: =+VLOOKUP(C77,'Anexo_GL '!$B$9:$O$1882,9,0) -> Cumple | P77: =+VLOOKUP(C77,'Anexo_GL '!$B$9:$O$1882,11,0) -> 617.74725 | Q77: =+VLOOKUP(C77,'Anexo_GL '!$B$9:$O$1882,12,0) -> 416.78051 | R77: =+VLOOKUP(C77,'Anexo_GL '!$B$9:$O$1882,13,0) -> 200.96674 | S77: =+VLOOKUP(C77,'Anexo_GL '!$B$9:$O$1882,14,0) -> Cumple
A78: 010509 : MD DE LUYA | B78: 51 | C78: 010509 | D78: AMAZONAS | E78: MD DE LUYA | F78: =+VLOOKUP(C78,'Anexo_GL '!$B$9:$O$1882,4,0) -> 134.90663 | H78: =+VLOOKUP(C78,'Anexo_GL '!$B$9:$O$1882,5,0) -> 1203.197727 | I78: =+VLOOKUP(C78,'Anexo_GL '!$B$9:$O$1882,6,0) -> 0.00041 | J78: =+VLOOKUP(C78,'Anexo_GL '!$B$9:$O$1882,7,0) -> 1068.291097 | L78: =+VLOOKUP(C78,'Anexo_GL '!$B$9:$O$1882,8,0) -> 11.21234082 | N78: =+VLOOKUP(C78,'Anexo_GL '!$B$9:$O$1882,9,0) -> Cumple | P78: =+VLOOKUP(C78,'Anexo_GL '!$B$9:$O$1882,11,0) -> 1333.2725 | Q78: =+VLOOKUP(C78,'Anexo_GL '!$B$9:$O$1882,12,0) -> 955.06657 | R78: =+VLOOKUP(C78,'Anexo_GL '!$B$9:$O$1882,13,0) -> 378.20593 | S78: =+VLOOKUP(C78,'Anexo_GL '!$B$9:$O$1882,14,0) -> Cumple
A79: 010510 : MD DE LUYA VIEJO | B79: 52 | C79: 010510 | D79: AMAZONAS | E79: MD DE LUYA VIEJO | F79: =+VLOOKUP(C79,'Anexo_GL '!$B$9:$O$1882,4,0) -> 46.85612 | H79: =+VLOOKUP(C79,'Anexo_GL '!$B$9:$O$1882,5,0) -> 501.07823 | I79: =+VLOOKUP(C79,'Anexo_GL '!$B$9:$O$1882,6,0) -> 6e-05 | J79: =+VLOOKUP(C79,'Anexo_GL '!$B$9:$O$1882,7,0) -> 454.22211 | L79: =+VLOOKUP(C79,'Anexo_GL '!$B$9:$O$1882,8,0) -> 9.351058816 | N79: =+VLOOKUP(C79,'Anexo_GL '!$B$9:$O$1882,9,0) -> Cumple | P79: =+VLOOKUP(C79,'Anexo_GL '!$B$9:$O$1882,11,0) -> 475.65484 | Q79: =+VLOOKUP(C79,'Anexo_GL '!$B$9:$O$1882,12,0) -> 314.33154 | R79: =+VLOOKUP(C79,'Anexo_GL '!$B$9:$O$1882,13,0) -> 161.3233 | S79: =+VLOOKUP(C79,'Anexo_GL '!$B$9:$O$1882,14,0) -> Cumple
A80: 010511 : MD DE MARIA | B80: 53 | C80: 010511 | D80: AMAZONAS | E80: MD DE MARIA | F80: =+VLOOKUP(C80,'Anexo_GL '!$B$9:$O$1882,4,0) -> 27.26865 | H80: =+VLOOKUP(C80,'Anexo_GL '!$B$9:$O$1882,5,0) -> 557.70505 | I80: =+VLOOKUP(C80,'Anexo_GL '!$B$9:$O$1882,6,0) -> 6e-05 | J80: =+VLOOKUP(C80,'Anexo_GL '!$B$9:$O$1882,7,0) -> 530.4364 | L80: =+VLOOKUP(C80,'Anexo_GL '!$B$9:$O$1882,8,0) -> 4.889439319 | N80: =+VLOOKUP(C80,'Anexo_GL '!$B$9:$O$1882,9,0) -> Cumple | P80: =+VLOOKUP(C80,'Anexo_GL '!$B$9:$O$1882,11,0) -> 482.07325 | Q80: =+VLOOKUP(C80,'Anexo_GL '!$B$9:$O$1882,12,0) -> 303.52987 | R80: =+VLOOKUP(C80,'Anexo_GL '!$B$9:$O$1882,13,0) -> 178.54338 | S80: =+VLOOKUP(C80,'Anexo_GL '!$B$9:$O$1882,14,0) -> Cumple
A81: 010512 : MD DE OCALLI | B81: 54 | C81: 010512 | D81: AMAZONAS | E81: MD DE OCALLI | F81: =+VLOOKUP(C81,'Anexo_GL '!$B$9:$O$1882,4,0) -> 117.40369 | H81: =+VLOOKUP(C81,'Anexo_GL '!$B$9:$O$1882,5,0) -> 1398.937468 | I81: =+VLOOKUP(C81,'Anexo_GL '!$B$9:$O$1882,6,0) -> 0.00082 | J81: =+VLOOKUP(C81,'Anexo_GL '!$B$9:$O$1882,7,0) -> 1281.533778 | L81: =+VLOOKUP(C81,'Anexo_GL '!$B$9:$O$1882,8,0) -> 8.392347244 | N81: =+VLOOKUP(C81,'Anexo_GL '!$B$9:$O$1882,9,0) -> Cumple | P81: =+VLOOKUP(C81,'Anexo_GL '!$B$9:$O$1882,11,0) -> 2225.73091 | Q81: =+VLOOKUP(C81,'Anexo_GL '!$B$9:$O$1882,12,0) -> 1079.85448 | R81: =+VLOOKUP(C81,'Anexo_GL '!$B$9:$O$1882,13,0) -> 1145.87643 | S81: =+VLOOKUP(C81,'Anexo_GL '!$B$9:$O$1882,14,0) -> Cumple
A82: 010513 : MD DE OCUMAL | B82: 55 | C82: 010513 | D82: AMAZONAS | E82: MD DE OCUMAL | F82: =+VLOOKUP(C82,'Anexo_GL '!$B$9:$O$1882,4,0) -> 1200.24741 | H82: =+VLOOKUP(C82,'Anexo_GL '!$B$9:$O$1882,5,0) -> 1415.402645 | I82: =+VLOOKUP(C82,'Anexo_GL '!$B$9:$O$1882,6,0) -> 0.00078 | J82: =+VLOOKUP(C82,'Anexo_GL '!$B$9:$O$1882,7,0) -> 215.155235 | L82: =+VLOOKUP(C82,'Anexo_GL '!$B$9:$O$1882,8,0) -> 84.79900855 | N82: =+VLOOKUP(C82,'Anexo_GL '!$B$9:$O$1882,9,0) -> Cumple | P82: =+VLOOKUP(C82,'Anexo_GL '!$B$9:$O$1882,11,0) -> 1421.80515 | Q82: =+VLOOKUP(C82,'Anexo_GL '!$B$9:$O$1882,12,0) -> 753.00896 | R82: =+VLOOKUP(C82,'Anexo_GL '!$B$9:$O$1882,13,0) -> 668.79619 | S82: =+VLOOKUP(C82,'Anexo_GL '!$B$9:$O$1882,14,0) -> Cumple
A83: 010514 : MD DE PIZUQUIA | B83: 56 | C83: 010514 | D83: AMAZONAS | E83: MD DE PIZUQUIA | F83: =+VLOOKUP(C83,'Anexo_GL '!$B$9:$O$1882,4,0) -> 164.80834 | H83: =+VLOOKUP(C83,'Anexo_GL '!$B$9:$O$1882,5,0) -> 2155.064175 | I83: =+VLOOKUP(C83,'Anexo_GL '!$B$9:$O$1882,6,0) -> 0.00095 | J83: =+VLOOKUP(C83,'Anexo_GL '!$B$9:$O$1882,7,0) -> 1990.255835 | L83: =+VLOOKUP(C83,'Anexo_GL '!$B$9:$O$1882,8,0) -> 7.647491054 | N83: =+VLOOKUP(C83,'Anexo_GL '!$B$9:$O$1882,9,0) -> Cumple | P83: =+VLOOKUP(C83,'Anexo_GL '!$B$9:$O$1882,11,0) -> 2147.38089 | Q83: =+VLOOKUP(C83,'Anexo_GL '!$B$9:$O$1882,12,0) -> 1230.13955 | R83: =+VLOOKUP(C83,'Anexo_GL '!$B$9:$O$1882,13,0) -> 917.24134 | S83: =+VLOOKUP(C83,'Anexo_GL '!$B$9:$O$1882,14,0) -> Cumple
A84: 010515 : MD DE PROVIDENCIA | B84: 57 | C84: 010515 | D84: AMAZONAS | E84: MD DE PROVIDENCIA | F84: =+VLOOKUP(C84,'Anexo_GL '!$B$9:$O$1882,4,0) -> 81.54603 | H84: =+VLOOKUP(C84,'Anexo_GL '!$B$9:$O$1882,5,0) -> 527.1899725 | I84: =+VLOOKUP(C84,'Anexo_GL '!$B$9:$O$1882,6,0) -> 0.00023 | J84: =+VLOOKUP(C84,'Anexo_GL '!$B$9:$O$1882,7,0) -> 445.6439425 | L84: =+VLOOKUP(C84,'Anexo_GL '!$B$9:$O$1882,8,0) -> 15.46805407 | N84: =+VLOOKUP(C84,'Anexo_GL '!$B$9:$O$1882,9,0) -> Cumple | P84: =+VLOOKUP(C84,'Anexo_GL '!$B$9:$O$1882,11,0) -> 545.51109 | Q84: =+VLOOKUP(C84,'Anexo_GL '!$B$9:$O$1882,12,0) -> 419.29288 | R84: =+VLOOKUP(C84,'Anexo_GL '!$B$9:$O$1882,13,0) -> 126.21821 | S84: =+VLOOKUP(C84,'Anexo_GL '!$B$9:$O$1882,14,0) -> Cumple
A85: 010516 : MD DE SAN CRISTOBAL DE OLTO | B85: 58 | C85: 010516 | D85: AMAZONAS | E85: MD DE SAN CRISTOBAL DE OLTO | F85: =+VLOOKUP(C85,'Anexo_GL '!$B$9:$O$1882,4,0) -> 25.60458 | H85: =+VLOOKUP(C85,'Anexo_GL '!$B$9:$O$1882,5,0) -> 523.9875425 | I85: =+VLOOKUP(C85,'Anexo_GL '!$B$9:$O$1882,6,0) -> 0.00012 | J85: =+VLOOKUP(C85,'Anexo_GL '!$B$9:$O$1882,7,0) -> 498.3829625 | L85: =+VLOOKUP(C85,'Anexo_GL '!$B$9:$O$1882,8,0) -> 4.8864864 | N85: =+VLOOKUP(C85,'Anexo_GL '!$B$9:$O$1882,9,0) -> Cumple | P85: =+VLOOKUP(C85,'Anexo_GL '!$B$9:$O$1882,11,0) -> 487.87812 | Q85: =+VLOOKUP(C85,'Anexo_GL '!$B$9:$O$1882,12,0) -> 304.8237 | R85: =+VLOOKUP(C85,'Anexo_GL '!$B$9:$O$1882,13,0) -> 183.05442 | S85: =+VLOOKUP(C85,'Anexo_GL '!$B$9:$O$1882,14,0) -> Cumple
A86: 010517 : MD DE SAN FRANCISCO DE YESO | B86: 59 | C86: 010517 | D86: AMAZONAS | E86: MD DE SAN FRANCISCO DE YESO | F86: =+VLOOKUP(C86,'Anexo_GL '!$B$9:$O$1882,4,0) -> 20.41101 | H86: =+VLOOKUP(C86,'Anexo_GL '!$B$9:$O$1882,5,0) -> 519.3250625 | I86: =+VLOOKUP(C86,'Anexo_GL '!$B$9:$O$1882,6,0) -> 0.00014 | J86: =+VLOOKUP(C86,'Anexo_GL '!$B$9:$O$1882,7,0) -> 498.9140525 | L86: =+VLOOKUP(C86,'Anexo_GL '!$B$9:$O$1882,8,0) -> 3.930295584 | N86: =+VLOOKUP(C86,'Anexo_GL '!$B$9:$O$1882,9,0) -> Cumple | P86: =+VLOOKUP(C86,'Anexo_GL '!$B$9:$O$1882,11,0) -> 482.90019 | Q86: =+VLOOKUP(C86,'Anexo_GL '!$B$9:$O$1882,12,0) -> 350.64465 | R86: =+VLOOKUP(C86,'Anexo_GL '!$B$9:$O$1882,13,0) -> 132.25554 | S86: =+VLOOKUP(C86,'Anexo_GL '!$B$9:$O$1882,14,0) -> Cumple
A87: 010518 : MD DE SAN JERONIMO DE PACLAS | B87: 60 | C87: 010518 | D87: AMAZONAS | E87: MD DE SAN JERONIMO DE PACLAS | F87: =+VLOOKUP(C87,'Anexo_GL '!$B$9:$O$1882,4,0) -> 37.6389 | H87: =+VLOOKUP(C87,'Anexo_GL '!$B$9:$O$1882,5,0) -> 537.13394 | I87: =+VLOOKUP(C87,'Anexo_GL '!$B$9:$O$1882,6,0) -> 0.00014 | J87: =+VLOOKUP(C87,'Anexo_GL '!$B$9:$O$1882,7,0) -> 499.49504 | L87: =+VLOOKUP(C87,'Anexo_GL '!$B$9:$O$1882,8,0) -> 7.007358351 | N87: =+VLOOKUP(C87,'Anexo_GL '!$B$9:$O$1882,9,0) -> Cumple | P87: =+VLOOKUP(C87,'Anexo_GL '!$B$9:$O$1882,11,0) -> 488.11258 | Q87: =+VLOOKUP(C87,'Anexo_GL '!$B$9:$O$1882,12,0) -> 291.18793 | R87: =+VLOOKUP(C87,'Anexo_GL '!$B$9:$O$1882,13,0) -> 196.92465 | S87: =+VLOOKUP(C87,'Anexo_GL '!$B$9:$O$1882,14,0) -> Cumple
A88: 010519 : MD DE SAN JUAN DE LOPECANCHA | B88: 61 | C88: 010519 | D88: AMAZONAS | E88: MD DE SAN JUAN DE LOPECANCHA | F88: =+VLOOKUP(C88,'Anexo_GL '!$B$9:$O$1882,4,0) -> 76.69028 | H88: =+VLOOKUP(C88,'Anexo_GL '!$B$9:$O$1882,5,0) -> 626.684385 | I88: =+VLOOKUP(C88,'Anexo_GL '!$B$9:$O$1882,6,0) -> 8e-05 | J88: =+VLOOKUP(C88,'Anexo_GL '!$B$9:$O$1882,7,0) -> 549.994105 | L88: =+VLOOKUP(C88,'Anexo_GL '!$B$9:$O$1882,8,0) -> 12.23746464 | N88: =+VLOOKUP(C88,'Anexo_GL '!$B$9:$O$1882,9,0) -> Cumple | P88: =+VLOOKUP(C88,'Anexo_GL '!$B$9:$O$1882,11,0) -> 486.81921 | Q88: =+VLOOKUP(C88,'Anexo_GL '!$B$9:$O$1882,12,0) -> 277.95846 | R88: =+VLOOKUP(C88,'Anexo_GL '!$B$9:$O$1882,13,0) -> 208.86075 | S88: =+VLOOKUP(C88,'Anexo_GL '!$B$9:$O$1882,14,0) -> Cumple
A89: 010520 : MD DE SANTA CATALINA | B89: 62 | C89: 010520 | D89: AMAZONAS | E89: MD DE SANTA CATALINA | F89: =+VLOOKUP(C89,'Anexo_GL '!$B$9:$O$1882,4,0) -> 49.48033 | H89: =+VLOOKUP(C89,'Anexo_GL '!$B$9:$O$1882,5,0) -> 713.821325 | I89: =+VLOOKUP(C89,'Anexo_GL '!$B$9:$O$1882,6,0) -> 0.00023 | J89: =+VLOOKUP(C89,'Anexo_GL '!$B$9:$O$1882,7,0) -> 664.340995 | L89: =+VLOOKUP(C89,'Anexo_GL '!$B$9:$O$1882,8,0) -> 6.931752844 | N89: =+VLOOKUP(C89,'Anexo_GL '!$B$9:$O$1882,9,0) -> Cumple | P89: =+VLOOKUP(C89,'Anexo_GL '!$B$9:$O$1882,11,0) -> 683.23478 | Q89: =+VLOOKUP(C89,'Anexo_GL '!$B$9:$O$1882,12,0) -> 408.20281 | R89: =+VLOOKUP(C89,'Anexo_GL '!$B$9:$O$1882,13,0) -> 275.03197 | S89: =+VLOOKUP(C89,'Anexo_GL '!$B$9:$O$1882,14,0) -> Cumple
A90: 010521 : MD DE SANTO TOMAS | B90: 63 | C90: 010521 | D90: AMAZONAS | E90: MD DE SANTO TOMAS | F90: =+VLOOKUP(C90,'Anexo_GL '!$B$9:$O$1882,4,0) -> 56.23903 | H90: =+VLOOKUP(C90,'Anexo_GL '!$B$9:$O$1882,5,0) -> 1165.085648 | I90: =+VLOOKUP(C90,'Anexo_GL '!$B$9:$O$1882,6,0) -> 0.00057 | J90: =+VLOOKUP(C90,'Anexo_GL '!$B$9:$O$1882,7,0) -> 1108.846617 | L90: =+VLOOKUP(C90,'Anexo_GL '!$B$9:$O$1882,8,0) -> 4.82702968 | N90: =+VLOOKUP(C90,'Anexo_GL '!$B$9:$O$1882,9,0) -> Cumple | P90: =+VLOOKUP(C90,'Anexo_GL '!$B$9:$O$1882,11,0) -> 1150.97218 | Q90: =+VLOOKUP(C90,'Anexo_GL '!$B$9:$O$1882,12,0) -> 997.92996 | R90: =+VLOOKUP(C90,'Anexo_GL '!$B$9:$O$1882,13,0) -> 153.04222 | S90: =+VLOOKUP(C90,'Anexo_GL '!$B$9:$O$1882,14,0) -> Cumple
A91: 010522 : MD DE TINGO | B91: 64 | C91: 010522 | D91: AMAZONAS | E91: MD DE TINGO | F91: =+VLOOKUP(C91,'Anexo_GL '!$B$9:$O$1882,4,0) -> 2.55005 | H91: =+VLOOKUP(C91,'Anexo_GL '!$B$9:$O$1882,5,0) -> 583.186285 | I91: =+VLOOKUP(C91,'Anexo_GL '!$B$9:$O$1882,6,0) -> 0.00014 | J91: =+VLOOKUP(C91,'Anexo_GL '!$B$9:$O$1882,7,0) -> 580.636235 | L91: =+VLOOKUP(C91,'Anexo_GL '!$B$9:$O$1882,8,0) -> 0.4372616547 | N91: =+VLOOKUP(C91,'Anexo_GL '!$B$9:$O$1882,9,0) -> Cumple | P91: =+VLOOKUP(C91,'Anexo_GL '!$B$9:$O$1882,11,0) -> 535.80595 | Q91: =+VLOOKUP(C91,'Anexo_GL '!$B$9:$O$1882,12,0) -> 678.42561 | R91: =+VLOOKUP(C91,'Anexo_GL '!$B$9:$O$1882,13,0) -> -142.61966 | S91: =+VLOOKUP(C91,'Anexo_GL '!$B$9:$O$1882,14,0) -> No Cumple
A92: 010523 : MD DE TRITA | B92: 65 | C92: 010523 | D92: AMAZONAS | E92: MD DE TRITA | F92: =+VLOOKUP(C92,'Anexo_GL '!$B$9:$O$1882,4,0) -> 3.80012 | H92: =+VLOOKUP(C92,'Anexo_GL '!$B$9:$O$1882,5,0) -> 503.2200775 | I92: =+VLOOKUP(C92,'Anexo_GL '!$B$9:$O$1882,6,0) -> 0.00021 | J92: =+VLOOKUP(C92,'Anexo_GL '!$B$9:$O$1882,7,0) -> 499.4199575 | L92: =+VLOOKUP(C92,'Anexo_GL '!$B$9:$O$1882,8,0) -> 0.7551606484 | N92: =+VLOOKUP(C92,'Anexo_GL '!$B$9:$O$1882,9,0) -> Cumple | P92: =+VLOOKUP(C92,'Anexo_GL '!$B$9:$O$1882,11,0) -> 485.77996 | Q92: =+VLOOKUP(C92,'Anexo_GL '!$B$9:$O$1882,12,0) -> 337.99143 | R92: =+VLOOKUP(C92,'Anexo_GL '!$B$9:$O$1882,13,0) -> 147.78853 | S92: =+VLOOKUP(C92,'Anexo_GL '!$B$9:$O$1882,14,0) -> Cumple
A93: 010601 : MP DE RODRIGUEZ DE MENDOZA - SAN NICOLAS | B93: 66 | C93: 010601 | D93: AMAZONAS | E93: MP DE RODRIGUEZ DE MENDOZA - SAN NICOLAS | F93: =+VLOOKUP(C93,'Anexo_GL '!$B$9:$O$1882,4,0) -> 5148.2629 | H93: =+VLOOKUP(C93,'Anexo_GL '!$B$9:$O$1882,5,0) -> 5705.311132 | I93: =+VLOOKUP(C93,'Anexo_GL '!$B$9:$O$1882,6,0) -> 0.00029 | J93: =+VLOOKUP(C93,'Anexo_GL '!$B$9:$O$1882,7,0) -> 557.0482325 | L93: =+VLOOKUP(C93,'Anexo_GL '!$B$9:$O$1882,8,0) -> 90.23632157 | N93: =+VLOOKUP(C93,'Anexo_GL '!$B$9:$O$1882,9,0) -> Cumple | P93: =+VLOOKUP(C93,'Anexo_GL '!$B$9:$O$1882,11,0) -> 3956.13473 | Q93: =+VLOOKUP(C93,'Anexo_GL '!$B$9:$O$1882,12,0) -> 3270.56186 | R93: =+VLOOKUP(C93,'Anexo_GL '!$B$9:$O$1882,13,0) -> 685.57287 | S93: =+VLOOKUP(C93,'Anexo_GL '!$B$9:$O$1882,14,0) -> Cumple
A94: 010602 : MD DE CHIRIMOTO | B94: 67 | C94: 010602 | D94: AMAZONAS | E94: MD DE CHIRIMOTO | F94: =+VLOOKUP(C94,'Anexo_GL '!$B$9:$O$1882,4,0) -> 2108.40831 | H94: =+VLOOKUP(C94,'Anexo_GL '!$B$9:$O$1882,5,0) -> 1096.641455 | I94: =+VLOOKUP(C94,'Anexo_GL '!$B$9:$O$1882,6,0) -> 0.00032 | J94: =+VLOOKUP(C94,'Anexo_GL '!$B$9:$O$1882,7,0) -> 0 | L94: =+VLOOKUP(C94,'Anexo_GL '!$B$9:$O$1882,8,0) -> 192.2604968 | N94: =+VLOOKUP(C94,'Anexo_GL '!$B$9:$O$1882,9,0) -> No Cumple | P94: =+VLOOKUP(C94,'Anexo_GL '!$B$9:$O$1882,11,0) -> 1431.0588 | Q94: =+VLOOKUP(C94,'Anexo_GL '!$B$9:$O$1882,12,0) -> 1172.13733 | R94: =+VLOOKUP(C94,'Anexo_GL '!$B$9:$O$1882,13,0) -> 258.92147 | S94: =+VLOOKUP(C94,'Anexo_GL '!$B$9:$O$1882,14,0) -> Cumple
A95: 010603 : MD DE COCHAMAL | B95: 68 | C95: 010603 | D95: AMAZONAS | E95: MD DE COCHAMAL | F95: =+VLOOKUP(C95,'Anexo_GL '!$B$9:$O$1882,4,0) -> 36.83625 | H95: =+VLOOKUP(C95,'Anexo_GL '!$B$9:$O$1882,5,0) -> 457.7212825 | I95: =+VLOOKUP(C95,'Anexo_GL '!$B$9:$O$1882,6,0) -> 8e-05 | J95: =+VLOOKUP(C95,'Anexo_GL '!$B$9:$O$1882,7,0) -> 420.8850325 | L95: =+VLOOKUP(C95,'Anexo_GL '!$B$9:$O$1882,8,0) -> 8.047746829 | N95: =+VLOOKUP(C95,'Anexo_GL '!$B$9:$O$1882,9,0) -> Cumple | P95: =+VLOOKUP(C95,'Anexo_GL '!$B$9:$O$1882,11,0) -> 477.24939 | Q95: =+VLOOKUP(C95,'Anexo_GL '!$B$9:$O$1882,12,0) -> 321.76128 | R95: =+VLOOKUP(C95,'Anexo_GL '!$B$9:$O$1882,13,0) -> 155.48811 | S95: =+VLOOKUP(C95,'Anexo_GL '!$B$9:$O$1882,14,0) -> Cumple
A96: 010604 : MD DE HUAMBO | B96: 69 | C96: 010604 | D96: AMAZONAS | E96: MD DE HUAMBO | F96: =+VLOOKUP(C96,'Anexo_GL '!$B$9:$O$1882,4,0) -> 347.15913 | H96: =+VLOOKUP(C96,'Anexo_GL '!$B$9:$O$1882,5,0) -> 720.5273675 | I96: =+VLOOKUP(C96,'Anexo_GL '!$B$9:$O$1882,6,0) -> 0.00041 | J96: =+VLOOKUP(C96,'Anexo_GL '!$B$9:$O$1882,7,0) -> 373.3682375 | L96: =+VLOOKUP(C96,'Anexo_GL '!$B$9:$O$1882,8,0) -> 48.18125524 | N96: =+VLOOKUP(C96,'Anexo_GL '!$B$9:$O$1882,9,0) -> Cumple | P96: =+VLOOKUP(C96,'Anexo_GL '!$B$9:$O$1882,11,0) -> 779.17996 | Q96: =+VLOOKUP(C96,'Anexo_GL '!$B$9:$O$1882,12,0) -> 566.97804 | R96: =+VLOOKUP(C96,'Anexo_GL '!$B$9:$O$1882,13,0) -> 212.20192 | S96: =+VLOOKUP(C96,'Anexo_GL '!$B$9:$O$1882,14,0) -> Cumple
A97: 010605 : MD DE LIMABAMBA | B97: 70 | C97: 010605 | D97: AMAZONAS | E97: MD DE LIMABAMBA | F97: =+VLOOKUP(C97,'Anexo_GL '!$B$9:$O$1882,4,0) -> 5800.25143 | H97: =+VLOOKUP(C97,'Anexo_GL '!$B$9:$O$1882,5,0) -> 858.19513 | I97: =+VLOOKUP(C97,'Anexo_GL '!$B$9:$O$1882,6,0) -> 0.00049 | J97: =+VLOOKUP(C97,'Anexo_GL '!$B$9:$O$1882,7,0) -> 0 | L97: =+VLOOKUP(C97,'Anexo_GL '!$B$9:$O$1882,8,0) -> 675.8662718 | N97: =+VLOOKUP(C97,'Anexo_GL '!$B$9:$O$1882,9,0) -> No Cumple | P97: =+VLOOKUP(C97,'Anexo_GL '!$B$9:$O$1882,11,0) -> 937.4163 | Q97: =+VLOOKUP(C97,'Anexo_GL '!$B$9:$O$1882,12,0) -> 648.37674 | R97: =+VLOOKUP(C97,'Anexo_GL '!$B$9:$O$1882,13,0) -> 289.03956 | S97: =+VLOOKUP(C97,'Anexo_GL '!$B$9:$O$1882,14,0) -> Cumple
A98: 010606 : MD DE LONGAR | B98: 71 | C98: 010606 | D98: AMAZONAS | E98: MD DE LONGAR | F98: =+VLOOKUP(C98,'Anexo_GL '!$B$9:$O$1882,4,0) -> 2168.82127 | H98: =+VLOOKUP(C98,'Anexo_GL '!$B$9:$O$1882,5,0) -> 543.9113025 | I98: =+VLOOKUP(C98,'Anexo_GL '!$B$9:$O$1882,6,0) -> 0.00017 | J98: =+VLOOKUP(C98,'Anexo_GL '!$B$9:$O$1882,7,0) -> 0 | L98: =+VLOOKUP(C98,'Anexo_GL '!$B$9:$O$1882,8,0) -> 398.7453947 | N98: =+VLOOKUP(C98,'Anexo_GL '!$B$9:$O$1882,9,0) -> No Cumple | P98: =+VLOOKUP(C98,'Anexo_GL '!$B$9:$O$1882,11,0) -> 503.79832 | Q98: =+VLOOKUP(C98,'Anexo_GL '!$B$9:$O$1882,12,0) -> 431.3321 | R98: =+VLOOKUP(C98,'Anexo_GL '!$B$9:$O$1882,13,0) -> 72.46622 | S98: =+VLOOKUP(C98,'Anexo_GL '!$B$9:$O$1882,14,0) -> Cumple
A99: 010607 : MD DE MARISCAL BENAVIDES | B99: 72 | C99: 010607 | D99: AMAZONAS | E99: MD DE MARISCAL BENAVIDES | F99: =+VLOOKUP(C99,'Anexo_GL '!$B$9:$O$1882,4,0) -> 750.21224 | H99: =+VLOOKUP(C99,'Anexo_GL '!$B$9:$O$1882,5,0) -> 1015.908298 | I99: =+VLOOKUP(C99,'Anexo_GL '!$B$9:$O$1882,6,0) -> 8e-05 | J99: =+VLOOKUP(C99,'Anexo_GL '!$B$9:$O$1882,7,0) -> 265.6960575 | L99: =+VLOOKUP(C99,'Anexo_GL '!$B$9:$O$1882,8,0) -> 73.84645266 | N99: =+VLOOKUP(C99,'Anexo_GL '!$B$9:$O$1882,9,0) -> Cumple | P99: =+VLOOKUP(C99,'Anexo_GL '!$B$9:$O$1882,11,0) -> 574.32427 | Q99: =+VLOOKUP(C99,'Anexo_GL '!$B$9:$O$1882,12,0) -> 362.97328 | R99: =+VLOOKUP(C99,'Anexo_GL '!$B$9:$O$1882,13,0) -> 211.35099 | S99: =+VLOOKUP(C99,'Anexo_GL '!$B$9:$O$1882,14,0) -> Cumple
A100: 010608 : MD DE MILPUC | B100: 73 | C100: 010608 | D100: AMAZONAS | E100: MD DE MILPUC | F100: =+VLOOKUP(C100,'Anexo_GL '!$B$9:$O$1882,4,0) -> 99.54424 | H100: =+VLOOKUP(C100,'Anexo_GL '!$B$9:$O$1882,5,0) -> 508.39947 | I100: =+VLOOKUP(C100,'Anexo_GL '!$B$9:$O$1882,6,0) -> 0.0001 | J100: =+VLOOKUP(C100,'Anexo_GL '!$B$9:$O$1882,7,0) -> 408.85523 | L100: =+VLOOKUP(C100,'Anexo_GL '!$B$9:$O$1882,8,0) -> 19.579926 | N100: =+VLOOKUP(C100,'Anexo_GL '!$B$9:$O$1882,9,0) -> Cumple | P100: =+VLOOKUP(C100,'Anexo_GL '!$B$9:$O$1882,11,0) -> 475.93492 | Q100: =+VLOOKUP(C100,'Anexo_GL '!$B$9:$O$1882,12,0) -> 366.22296 | R100: =+VLOOKUP(C100,'Anexo_GL '!$B$9:$O$1882,13,0) -> 109.71196 | S100: =+VLOOKUP(C100,'Anexo_GL '!$B$9:$O$1882,14,0) -> Cumple
A101: 010609 : MD DE OMIA | B101: 74 | C101: 010609 | D101: AMAZONAS | E101: MD DE OMIA | F101: =+VLOOKUP(C101,'Anexo_GL '!$B$9:$O$1882,4,0) -> 62.36749 | H101: =+VLOOKUP(C101,'Anexo_GL '!$B$9:$O$1882,5,0) -> 3986.36158 | I101: =+VLOOKUP(C101,'Anexo_GL '!$B$9:$O$1882,6,0) -> 0.0015 | J101: =+VLOOKUP(C101,'Anexo_GL '!$B$9:$O$1882,7,0) -> 3923.99409 | L101: =+VLOOKUP(C101,'Anexo_GL '!$B$9:$O$1882,8,0) -> 1.564521651 | N101: =+VLOOKUP(C101,'Anexo_GL '!$B$9:$O$1882,9,0) -> Cumple | P101: =+VLOOKUP(C101,'Anexo_GL '!$B$9:$O$1882,11,0) -> 4363.66839 | Q101: =+VLOOKUP(C101,'Anexo_GL '!$B$9:$O$1882,12,0) -> 2211.1356 | R101: =+VLOOKUP(C101,'Anexo_GL '!$B$9:$O$1882,13,0) -> 2152.53279 | S101: =+VLOOKUP(C101,'Anexo_GL '!$B$9:$O$1882,14,0) -> Cumple
A102: 010610 : MD DE SANTA ROSA | B102: 75 | C102: 010610 | D102: AMAZONAS | E102: MD DE SANTA ROSA | F102: =+VLOOKUP(C102,'Anexo_GL '!$B$9:$O$1882,4,0) -> 7.81594 | H102: =+VLOOKUP(C102,'Anexo_GL '!$B$9:$O$1882,5,0) -> 482.216245 | I102: =+VLOOKUP(C102,'Anexo_GL '!$B$9:$O$1882,6,0) -> 6e-05 | J102: =+VLOOKUP(C102,'Anexo_GL '!$B$9:$O$1882,7,0) -> 474.400305 | L102: =+VLOOKUP(C102,'Anexo_GL '!$B$9:$O$1882,8,0) -> 1.620837141 | N102: =+VLOOKUP(C102,'Anexo_GL '!$B$9:$O$1882,9,0) -> Cumple | P102: =+VLOOKUP(C102,'Anexo_GL '!$B$9:$O$1882,11,0) -> 495.96433 | Q102: =+VLOOKUP(C102,'Anexo_GL '!$B$9:$O$1882,12,0) -> 344.8014 | R102: =+VLOOKUP(C102,'Anexo_GL '!$B$9:$O$1882,13,0) -> 151.16293 | S102: =+VLOOKUP(C102,'Anexo_GL '!$B$9:$O$1882,14,0) -> Cumple
A103: 010611 : MD DE TOTORA | B103: 76 | C103: 010611 | D103: AMAZONAS | E103: MD DE TOTORA | F103: =+VLOOKUP(C103,'Anexo_GL '!$B$9:$O$1882,4,0) -> 0.017 | H103: =+VLOOKUP(C103,'Anexo_GL '!$B$9:$O$1882,5,0) -> 559.3329 | I103: =+VLOOKUP(C103,'Anexo_GL '!$B$9:$O$1882,6,0) -> 6e-05 | J103: =+VLOOKUP(C103,'Anexo_GL '!$B$9:$O$1882,7,0) -> 559.3159 | L103: =+VLOOKUP(C103,'Anexo_GL '!$B$9:$O$1882,8,0) -> 0.003039334893 | N103: =+VLOOKUP(C103,'Anexo_GL '!$B$9:$O$1882,9,0) -> Cumple | P103: =+VLOOKUP(C103,'Anexo_GL '!$B$9:$O$1882,11,0) -> 512.70605 | Q103: =+VLOOKUP(C103,'Anexo_GL '!$B$9:$O$1882,12,0) -> 297.44277 | R103: =+VLOOKUP(C103,'Anexo_GL '!$B$9:$O$1882,13,0) -> 215.26328 | S103: =+VLOOKUP(C103,'Anexo_GL '!$B$9:$O$1882,14,0) -> Cumple
A104: 010612 : MD DE VISTA ALEGRE | B104: 77 | C104: 010612 | D104: AMAZONAS | E104: MD DE VISTA ALEGRE | F104: =+VLOOKUP(C104,'Anexo_GL '!$B$9:$O$1882,4,0) -> 51.03813 | H104: =+VLOOKUP(C104,'Anexo_GL '!$B$9:$O$1882,5,0) -> 1140.267942 | I104: =+VLOOKUP(C104,'Anexo_GL '!$B$9:$O$1882,6,0) -> 0.00061 | J104: =+VLOOKUP(C104,'Anexo_GL '!$B$9:$O$1882,7,0) -> 1089.229812 | L104: =+VLOOKUP(C104,'Anexo_GL '!$B$9:$O$1882,8,0) -> 4.475976926 | N104: =+VLOOKUP(C104,'Anexo_GL '!$B$9:$O$1882,9,0) -> Cumple | P104: =+VLOOKUP(C104,'Anexo_GL '!$B$9:$O$1882,11,0) -> 1111.28585 | Q104: =+VLOOKUP(C104,'Anexo_GL '!$B$9:$O$1882,12,0) -> 567.30547 | R104: =+VLOOKUP(C104,'Anexo_GL '!$B$9:$O$1882,13,0) -> 543.98038 | S104: =+VLOOKUP(C104,'Anexo_GL '!$B$9:$O$1882,14,0) -> Cumple
A105: 010701 : MUNICIPALIDAD PROVINCIA DE UTCUBAMBA - BAGUA GRANDE | B105: 78 | C105: 010701 | D105: AMAZONAS | E105: MUNICIPALIDAD PROVINCIA DE UTCUBAMBA - BAGUA GRANDE | F105: =+VLOOKUP(C105,'Anexo_GL '!$B$9:$O$1882,4,0) -> 3908.94999 | H105: =+VLOOKUP(C105,'Anexo_GL '!$B$9:$O$1882,5,0) -> 26129.47681 | I105: =+VLOOKUP(C105,'Anexo_GL '!$B$9:$O$1882,6,0) -> 0.98475 | J105: =+VLOOKUP(C105,'Anexo_GL '!$B$9:$O$1882,7,0) -> 22220.52682 | L105: =+VLOOKUP(C105,'Anexo_GL '!$B$9:$O$1882,8,0) -> 14.95992445 | N105: =+VLOOKUP(C105,'Anexo_GL '!$B$9:$O$1882,9,0) -> Cumple | P105: =+VLOOKUP(C105,'Anexo_GL '!$B$9:$O$1882,11,0) -> 27094.40268 | Q105: =+VLOOKUP(C105,'Anexo_GL '!$B$9:$O$1882,12,0) -> 16548.64113 | R105: =+VLOOKUP(C105,'Anexo_GL '!$B$9:$O$1882,13,0) -> 10545.76155 | S105: =+VLOOKUP(C105,'Anexo_GL '!$B$9:$O$1882,14,0) -> Cumple
A106: 010702 : MD DE CAJARURO | B106: 79 | C106: 010702 | D106: AMAZONAS | E106: MD DE CAJARURO | F106: =+VLOOKUP(C106,'Anexo_GL '!$B$9:$O$1882,4,0) -> 1927.16287 | H106: =+VLOOKUP(C106,'Anexo_GL '!$B$9:$O$1882,5,0) -> 9815.739677 | I106: =+VLOOKUP(C106,'Anexo_GL '!$B$9:$O$1882,6,0) -> 0.79954 | J106: =+VLOOKUP(C106,'Anexo_GL '!$B$9:$O$1882,7,0) -> 7888.576808 | L106: =+VLOOKUP(C106,'Anexo_GL '!$B$9:$O$1882,8,0) -> 19.63339426 | N106: =+VLOOKUP(C106,'Anexo_GL '!$B$9:$O$1882,9,0) -> Cumple | P106: =+VLOOKUP(C106,'Anexo_GL '!$B$9:$O$1882,11,0) -> 10402.31297 | Q106: =+VLOOKUP(C106,'Anexo_GL '!$B$9:$O$1882,12,0) -> 5923.64098 | R106: =+VLOOKUP(C106,'Anexo_GL '!$B$9:$O$1882,13,0) -> 4478.67199 | S106: =+VLOOKUP(C106,'Anexo_GL '!$B$9:$O$1882,14,0) -> Cumple
A107: 010703 : MD DE CUMBA | B107: 80 | C107: 010703 | D107: AMAZONAS | E107: MD DE CUMBA | F107: =+VLOOKUP(C107,'Anexo_GL '!$B$9:$O$1882,4,0) -> 432.9226 | H107: =+VLOOKUP(C107,'Anexo_GL '!$B$9:$O$1882,5,0) -> 2971.57159 | I107: =+VLOOKUP(C107,'Anexo_GL '!$B$9:$O$1882,6,0) -> 0.00157 | J107: =+VLOOKUP(C107,'Anexo_GL '!$B$9:$O$1882,7,0) -> 2538.64899 | L107: =+VLOOKUP(C107,'Anexo_GL '!$B$9:$O$1882,8,0) -> 14.56880936 | N107: =+VLOOKUP(C107,'Anexo_GL '!$B$9:$O$1882,9,0) -> Cumple | P107: =+VLOOKUP(C107,'Anexo_GL '!$B$9:$O$1882,11,0) -> 3048.66091 | Q107: =+VLOOKUP(C107,'Anexo_GL '!$B$9:$O$1882,12,0) -> 2030.68011 | R107: =+VLOOKUP(C107,'Anexo_GL '!$B$9:$O$1882,13,0) -> 1017.9808 | S107: =+VLOOKUP(C107,'Anexo_GL '!$B$9:$O$1882,14,0) -> Cumple
A108: 010704 : MD DE EL MILAGRO | B108: 81 | C108: 010704 | D108: AMAZONAS | E108: MD DE EL MILAGRO | F108: =+VLOOKUP(C108,'Anexo_GL '!$B$9:$O$1882,4,0) -> 81.58861 | H108: =+VLOOKUP(C108,'Anexo_GL '!$B$9:$O$1882,5,0) -> 2618.22332 | I108: =+VLOOKUP(C108,'Anexo_GL '!$B$9:$O$1882,6,0) -> 0.0009 | J108: =+VLOOKUP(C108,'Anexo_GL '!$B$9:$O$1882,7,0) -> 2536.63471 | L108: =+VLOOKUP(C108,'Anexo_GL '!$B$9:$O$1882,8,0) -> 3.116182236 | N108: =+VLOOKUP(C108,'Anexo_GL '!$B$9:$O$1882,9,0) -> Cumple | P108: =+VLOOKUP(C108,'Anexo_GL '!$B$9:$O$1882,11,0) -> 2791.7479 | Q108: =+VLOOKUP(C108,'Anexo_GL '!$B$9:$O$1882,12,0) -> 2143.97401 | R108: =+VLOOKUP(C108,'Anexo_GL '!$B$9:$O$1882,13,0) -> 647.77389 | S108: =+VLOOKUP(C108,'Anexo_GL '!$B$9:$O$1882,14,0) -> Cumple
A109: 010705 : MD DE JAMALCA | B109: 82 | C109: 010705 | D109: AMAZONAS | E109: MD DE JAMALCA | F109: =+VLOOKUP(C109,'Anexo_GL '!$B$9:$O$1882,4,0) -> 757.95748 | H109: =+VLOOKUP(C109,'Anexo_GL '!$B$9:$O$1882,5,0) -> 3501.896265 | I109: =+VLOOKUP(C109,'Anexo_GL '!$B$9:$O$1882,6,0) -> 0.00138 | J109: =+VLOOKUP(C109,'Anexo_GL '!$B$9:$O$1882,7,0) -> 2743.938785 | L109: =+VLOOKUP(C109,'Anexo_GL '!$B$9:$O$1882,8,0) -> 21.64420139 | N109: =+VLOOKUP(C109,'Anexo_GL '!$B$9:$O$1882,9,0) -> Cumple | P109: =+VLOOKUP(C109,'Anexo_GL '!$B$9:$O$1882,11,0) -> 3386.24502 | Q109: =+VLOOKUP(C109,'Anexo_GL '!$B$9:$O$1882,12,0) -> 2124.74956 | R109: =+VLOOKUP(C109,'Anexo_GL '!$B$9:$O$1882,13,0) -> 1261.49546 | S109: =+VLOOKUP(C109,'Anexo_GL '!$B$9:$O$1882,14,0) -> Cumple
A110: 010706 : MD DE LONYA GRANDE | B110: 83 | C110: 010706 | D110: AMAZONAS | E110: MD DE LONYA GRANDE | F110: =+VLOOKUP(C110,'Anexo_GL '!$B$9:$O$1882,4,0) -> 895.88496 | H110: =+VLOOKUP(C110,'Anexo_GL '!$B$9:$O$1882,5,0) -> 3380.54842 | I110: =+VLOOKUP(C110,'Anexo_GL '!$B$9:$O$1882,6,0) -> 0.00179 | J110: =+VLOOKUP(C110,'Anexo_GL '!$B$9:$O$1882,7,0) -> 2484.66346 | L110: =+VLOOKUP(C110,'Anexo_GL '!$B$9:$O$1882,8,0) -> 26.50117226 | N110: =+VLOOKUP(C110,'Anexo_GL '!$B$9:$O$1882,9,0) -> Cumple | P110: =+VLOOKUP(C110,'Anexo_GL '!$B$9:$O$1882,11,0) -> 3687.83622 | Q110: =+VLOOKUP(C110,'Anexo_GL '!$B$9:$O$1882,12,0) -> 1961.20463 | R110: =+VLOOKUP(C110,'Anexo_GL '!$B$9:$O$1882,13,0) -> 1726.63159 | S110: =+VLOOKUP(C110,'Anexo_GL '!$B$9:$O$1882,14,0) -> Cumple
A111: 010707 : MD DE YAMON | B111: 84 | C111: 010707 | D111: AMAZONAS | E111: MD DE YAMON | F111: =+VLOOKUP(C111,'Anexo_GL '!$B$9:$O$1882,4,0) -> 730.9356 | H111: =+VLOOKUP(C111,'Anexo_GL '!$B$9:$O$1882,5,0) -> 1392.966575 | I111: =+VLOOKUP(C111,'Anexo_GL '!$B$9:$O$1882,6,0) -> 0.00044 | J111: =+VLOOKUP(C111,'Anexo_GL '!$B$9:$O$1882,7,0) -> 662.030975 | L111: =+VLOOKUP(C111,'Anexo_GL '!$B$9:$O$1882,8,0) -> 52.47330504 | N111: =+VLOOKUP(C111,'Anexo_GL '!$B$9:$O$1882,9,0) -> Cumple | P111: =+VLOOKUP(C111,'Anexo_GL '!$B$9:$O$1882,11,0) -> 1395.1987 | Q111: =+VLOOKUP(C111,'Anexo_GL '!$B$9:$O$1882,12,0) -> 1012.22176 | R111: =+VLOOKUP(C111,'Anexo_GL '!$B$9:$O$1882,13,0) -> 382.97694 | S111: =+VLOOKUP(C111,'Anexo_GL '!$B$9:$O$1882,14,0) -> Cumple
A112: 020101 : MP DE HUARAZ | B112: 85 | C112: 020101 | D112: ANCASH | E112: MP DE HUARAZ | F112: =+VLOOKUP(C112,'Anexo_GL '!$B$9:$O$1882,4,0) -> 19326.22811 | H112: =+VLOOKUP(C112,'Anexo_GL '!$B$9:$O$1882,5,0) -> 37808.65706 | I112: =+VLOOKUP(C112,'Anexo_GL '!$B$9:$O$1882,6,0) -> 26591.10715 | J112: =+VLOOKUP(C112,'Anexo_GL '!$B$9:$O$1882,7,0) -> 18482.42895 | L112: =+VLOOKUP(C112,'Anexo_GL '!$B$9:$O$1882,8,0) -> 51.11588089 | N112: =+VLOOKUP(C112,'Anexo_GL '!$B$9:$O$1882,9,0) -> Cumple | P112: =+VLOOKUP(C112,'Anexo_GL '!$B$9:$O$1882,11,0) -> 49524.80939 | Q112: =+VLOOKUP(C112,'Anexo_GL '!$B$9:$O$1882,12,0) -> 27101.1135 | R112: =+VLOOKUP(C112,'Anexo_GL '!$B$9:$O$1882,13,0) -> 22423.69589 | S112: =+VLOOKUP(C112,'Anexo_GL '!$B$9:$O$1882,14,0) -> Cumple
A113: 020102 : MD DE COCHABAMBA | B113: 86 | C113: 020102 | D113: ANCASH | E113: MD DE COCHABAMBA | F113: =+VLOOKUP(C113,'Anexo_GL '!$B$9:$O$1882,4,0) -> 127.96829 | H113: =+VLOOKUP(C113,'Anexo_GL '!$B$9:$O$1882,5,0) -> 1852.681885 | I113: =+VLOOKUP(C113,'Anexo_GL '!$B$9:$O$1882,6,0) -> 2558.84951 | J113: =+VLOOKUP(C113,'Anexo_GL '!$B$9:$O$1882,7,0) -> 2430.88122 | L113: =+VLOOKUP(C113,'Anexo_GL '!$B$9:$O$1882,8,0) -> 5.001008832 | N113: =+VLOOKUP(C113,'Anexo_GL '!$B$9:$O$1882,9,0) -> Cumple | P113: =+VLOOKUP(C113,'Anexo_GL '!$B$9:$O$1882,11,0) -> 2924.80551 | Q113: =+VLOOKUP(C113,'Anexo_GL '!$B$9:$O$1882,12,0) -> 809.23965 | R113: =+VLOOKUP(C113,'Anexo_GL '!$B$9:$O$1882,13,0) -> 2115.56586 | S113: =+VLOOKUP(C113,'Anexo_GL '!$B$9:$O$1882,14,0) -> Cumple
A114: 020103 : MD DE COLCABAMBA | B114: 87 | C114: 020103 | D114: ANCASH | E114: MD DE COLCABAMBA | F114: =+VLOOKUP(C114,'Anexo_GL '!$B$9:$O$1882,4,0) -> 54.65027 | H114: =+VLOOKUP(C114,'Anexo_GL '!$B$9:$O$1882,5,0) -> 837.1203225 | I114: =+VLOOKUP(C114,'Anexo_GL '!$B$9:$O$1882,6,0) -> 773.51017 | J114: =+VLOOKUP(C114,'Anexo_GL '!$B$9:$O$1882,7,0) -> 782.4700525 | L114: =+VLOOKUP(C114,'Anexo_GL '!$B$9:$O$1882,8,0) -> 6.528364983 | N114: =+VLOOKUP(C114,'Anexo_GL '!$B$9:$O$1882,9,0) -> Cumple | P114: =+VLOOKUP(C114,'Anexo_GL '!$B$9:$O$1882,11,0) -> 1188.73924 | Q114: =+VLOOKUP(C114,'Anexo_GL '!$B$9:$O$1882,12,0) -> 568.36346 | R114: =+VLOOKUP(C114,'Anexo_GL '!$B$9:$O$1882,13,0) -> 620.37578 | S114: =+VLOOKUP(C114,'Anexo_GL '!$B$9:$O$1882,14,0) -> Cumple
A115: 020104 : MD DE HUANCHAY | B115: 88 | C115: 020104 | D115: ANCASH | E115: MD DE HUANCHAY | F115: =+VLOOKUP(C115,'Anexo_GL '!$B$9:$O$1882,4,0) -> 65.98023 | H115: =+VLOOKUP(C115,'Anexo_GL '!$B$9:$O$1882,5,0) -> 1688.535162 | I115: =+VLOOKUP(C115,'Anexo_GL '!$B$9:$O$1882,6,0) -> 2226.51157 | J115: =+VLOOKUP(C115,'Anexo_GL '!$B$9:$O$1882,7,0) -> 2160.53134 | L115: =+VLOOKUP(C115,'Anexo_GL '!$B$9:$O$1882,8,0) -> 2.963390395 | N115: =+VLOOKUP(C115,'Anexo_GL '!$B$9:$O$1882,9,0) -> Cumple | P115: =+VLOOKUP(C115,'Anexo_GL '!$B$9:$O$1882,11,0) -> 2534.67335 | Q115: =+VLOOKUP(C115,'Anexo_GL '!$B$9:$O$1882,12,0) -> 634.47369 | R115: =+VLOOKUP(C115,'Anexo_GL '!$B$9:$O$1882,13,0) -> 1900.19966 | S115: =+VLOOKUP(C115,'Anexo_GL '!$B$9:$O$1882,14,0) -> Cumple
A116: 020105 : MD DE INDEPENDENCIA | B116: 89 | C116: 020105 | D116: ANCASH | E116: MD DE INDEPENDENCIA | F116: =+VLOOKUP(C116,'Anexo_GL '!$B$9:$O$1882,4,0) -> 3780.94272 | H116: =+VLOOKUP(C116,'Anexo_GL '!$B$9:$O$1882,5,0) -> 31078.82221 | I116: =+VLOOKUP(C116,'Anexo_GL '!$B$9:$O$1882,6,0) -> 39138.78392 | J116: =+VLOOKUP(C116,'Anexo_GL '!$B$9:$O$1882,7,0) -> 35357.8412 | L116: =+VLOOKUP(C116,'Anexo_GL '!$B$9:$O$1882,8,0) -> 9.660347975 | N116: =+VLOOKUP(C116,'Anexo_GL '!$B$9:$O$1882,9,0) -> Cumple | P116: =+VLOOKUP(C116,'Anexo_GL '!$B$9:$O$1882,11,0) -> 48484.60471 | Q116: =+VLOOKUP(C116,'Anexo_GL '!$B$9:$O$1882,12,0) -> 15710.4913 | R116: =+VLOOKUP(C116,'Anexo_GL '!$B$9:$O$1882,13,0) -> 32774.11341 | S116: =+VLOOKUP(C116,'Anexo_GL '!$B$9:$O$1882,14,0) -> Cumple
A117: 020106 : MD DE JANGAS | B117: 90 | C117: 020106 | D117: ANCASH | E117: MD DE JANGAS | F117: =+VLOOKUP(C117,'Anexo_GL '!$B$9:$O$1882,4,0) -> 83.43778 | H117: =+VLOOKUP(C117,'Anexo_GL '!$B$9:$O$1882,5,0) -> 3639.37289 | I117: =+VLOOKUP(C117,'Anexo_GL '!$B$9:$O$1882,6,0) -> 6326.31549 | J117: =+VLOOKUP(C117,'Anexo_GL '!$B$9:$O$1882,7,0) -> 6242.87771 | L117: =+VLOOKUP(C117,'Anexo_GL '!$B$9:$O$1882,8,0) -> 1.318900079 | N117: =+VLOOKUP(C117,'Anexo_GL '!$B$9:$O$1882,9,0) -> Cumple | P117: =+VLOOKUP(C117,'Anexo_GL '!$B$9:$O$1882,11,0) -> 5413.86212 | Q117: =+VLOOKUP(C117,'Anexo_GL '!$B$9:$O$1882,12,0) -> 2074.41611 | R117: =+VLOOKUP(C117,'Anexo_GL '!$B$9:$O$1882,13,0) -> 3339.44601 | S117: =+VLOOKUP(C117,'Anexo_GL '!$B$9:$O$1882,14,0) -> Cumple
A118: 020107 : MD DE LA LIBERTAD | B118: 91 | C118: 020107 | D118: ANCASH | E118: MD DE LA LIBERTAD | F118: =+VLOOKUP(C118,'Anexo_GL '!$B$9:$O$1882,4,0) -> 51.65966 | H118: =+VLOOKUP(C118,'Anexo_GL '!$B$9:$O$1882,5,0) -> 1327.870158 | I118: =+VLOOKUP(C118,'Anexo_GL '!$B$9:$O$1882,6,0) -> 1153.4342 | J118: =+VLOOKUP(C118,'Anexo_GL '!$B$9:$O$1882,7,0) -> 1276.210498 | L118: =+VLOOKUP(C118,'Anexo_GL '!$B$9:$O$1882,8,0) -> 3.890415016 | N118: =+VLOOKUP(C118,'Anexo_GL '!$B$9:$O$1882,9,0) -> Cumple | P118: =+VLOOKUP(C118,'Anexo_GL '!$B$9:$O$1882,11,0) -> 1631.01314 | Q118: =+VLOOKUP(C118,'Anexo_GL '!$B$9:$O$1882,12,0) -> 773.10976 | R118: =+VLOOKUP(C118,'Anexo_GL '!$B$9:$O$1882,13,0) -> 857.90338 | S118: =+VLOOKUP(C118,'Anexo_GL '!$B$9:$O$1882,14,0) -> Cumple
A119: 020108 : MD DE OLLEROS | B119: 92 | C119: 020108 | D119: ANCASH | E119: MD DE OLLEROS | F119: =+VLOOKUP(C119,'Anexo_GL '!$B$9:$O$1882,4,0) -> 874.02506 | H119: =+VLOOKUP(C119,'Anexo_GL '!$B$9:$O$1882,5,0) -> 1401.986392 | I119: =+VLOOKUP(C119,'Anexo_GL '!$B$9:$O$1882,6,0) -> 1730.49839 | J119: =+VLOOKUP(C119,'Anexo_GL '!$B$9:$O$1882,7,0) -> 856.47333 | L119: =+VLOOKUP(C119,'Anexo_GL '!$B$9:$O$1882,8,0) -> 50.50712934 | N119: =+VLOOKUP(C119,'Anexo_GL '!$B$9:$O$1882,9,0) -> Cumple | P119: =+VLOOKUP(C119,'Anexo_GL '!$B$9:$O$1882,11,0) -> 2089.96117 | Q119: =+VLOOKUP(C119,'Anexo_GL '!$B$9:$O$1882,12,0) -> 851.20856 | R119: =+VLOOKUP(C119,'Anexo_GL '!$B$9:$O$1882,13,0) -> 1238.75261 | S119: =+VLOOKUP(C119,'Anexo_GL '!$B$9:$O$1882,14,0) -> Cumple
A120: 020109 : MD DE PAMPAS | B120: 93 | C120: 020109 | D120: ANCASH | E120: MD DE PAMPAS | F120: =+VLOOKUP(C120,'Anexo_GL '!$B$9:$O$1882,4,0) -> 1.24517 | H120: =+VLOOKUP(C120,'Anexo_GL '!$B$9:$O$1882,5,0) -> 1465.189048 | I120: =+VLOOKUP(C120,'Anexo_GL '!$B$9:$O$1882,6,0) -> 1499.92944 | J120: =+VLOOKUP(C120,'Anexo_GL '!$B$9:$O$1882,7,0) -> 1498.68427 | L120: =+VLOOKUP(C120,'Anexo_GL '!$B$9:$O$1882,8,0) -> 0.08301523837 | N120: =+VLOOKUP(C120,'Anexo_GL '!$B$9:$O$1882,9,0) -> Cumple | P120: =+VLOOKUP(C120,'Anexo_GL '!$B$9:$O$1882,11,0) -> 1855.55616 | Q120: =+VLOOKUP(C120,'Anexo_GL '!$B$9:$O$1882,12,0) -> 619.92631 | R120: =+VLOOKUP(C120,'Anexo_GL '!$B$9:$O$1882,13,0) -> 1235.62985 | S120: =+VLOOKUP(C120,'Anexo_GL '!$B$9:$O$1882,14,0) -> Cumple
A121: 020110 : MD DE PARIACOTO | B121: 94 | C121: 020110 | D121: ANCASH | E121: MD DE PARIACOTO | F121: =+VLOOKUP(C121,'Anexo_GL '!$B$9:$O$1882,4,0) -> 303.47976 | H121: =+VLOOKUP(C121,'Anexo_GL '!$B$9:$O$1882,5,0) -> 2977.01639 | I121: =+VLOOKUP(C121,'Anexo_GL '!$B$9:$O$1882,6,0) -> 3968.18645 | J121: =+VLOOKUP(C121,'Anexo_GL '!$B$9:$O$1882,7,0) -> 3664.70669 | L121: =+VLOOKUP(C121,'Anexo_GL '!$B$9:$O$1882,8,0) -> 7.647820077 | N121: =+VLOOKUP(C121,'Anexo_GL '!$B$9:$O$1882,9,0) -> Cumple | P121: =+VLOOKUP(C121,'Anexo_GL '!$B$9:$O$1882,11,0) -> 4617.79074 | Q121: =+VLOOKUP(C121,'Anexo_GL '!$B$9:$O$1882,12,0) -> 3325.92925 | R121: =+VLOOKUP(C121,'Anexo_GL '!$B$9:$O$1882,13,0) -> 1291.86149 | S121: =+VLOOKUP(C121,'Anexo_GL '!$B$9:$O$1882,14,0) -> Cumple
A122: 020111 : MD DE PIRA | B122: 95 | C122: 020111 | D122: ANCASH | E122: MD DE PIRA | F122: =+VLOOKUP(C122,'Anexo_GL '!$B$9:$O$1882,4,0) -> 483.84488 | H122: =+VLOOKUP(C122,'Anexo_GL '!$B$9:$O$1882,5,0) -> 3432.500783 | I122: =+VLOOKUP(C122,'Anexo_GL '!$B$9:$O$1882,6,0) -> 4807.0046 | J122: =+VLOOKUP(C122,'Anexo_GL '!$B$9:$O$1882,7,0) -> 4323.15972 | L122: =+VLOOKUP(C122,'Anexo_GL '!$B$9:$O$1882,8,0) -> 10.06541329 | N122: =+VLOOKUP(C122,'Anexo_GL '!$B$9:$O$1882,9,0) -> Cumple | P122: =+VLOOKUP(C122,'Anexo_GL '!$B$9:$O$1882,11,0) -> 6040.04412 | Q122: =+VLOOKUP(C122,'Anexo_GL '!$B$9:$O$1882,12,0) -> 1496.71722 | R122: =+VLOOKUP(C122,'Anexo_GL '!$B$9:$O$1882,13,0) -> 4543.3269 | S122: =+VLOOKUP(C122,'Anexo_GL '!$B$9:$O$1882,14,0) -> Cumple
A123: 020112 : MD DE TARICA | B123: 96 | C123: 020112 | D123: ANCASH | E123: MD DE TARICA | F123: =+VLOOKUP(C123,'Anexo_GL '!$B$9:$O$1882,4,0) -> 600.85656 | H123: =+VLOOKUP(C123,'Anexo_GL '!$B$9:$O$1882,5,0) -> 3214.303643 | I123: =+VLOOKUP(C123,'Anexo_GL '!$B$9:$O$1882,6,0) -> 4200.26662 | J123: =+VLOOKUP(C123,'Anexo_GL '!$B$9:$O$1882,7,0) -> 3599.41006 | L123: =+VLOOKUP(C123,'Anexo_GL '!$B$9:$O$1882,8,0) -> 14.30520046 | N123: =+VLOOKUP(C123,'Anexo_GL '!$B$9:$O$1882,9,0) -> Cumple | P123: =+VLOOKUP(C123,'Anexo_GL '!$B$9:$O$1882,11,0) -> 4936.50084 | Q123: =+VLOOKUP(C123,'Anexo_GL '!$B$9:$O$1882,12,0) -> 1931.12528 | R123: =+VLOOKUP(C123,'Anexo_GL '!$B$9:$O$1882,13,0) -> 3005.37556 | S123: =+VLOOKUP(C123,'Anexo_GL '!$B$9:$O$1882,14,0) -> Cumple
A124: 020201 : MP DE AIJA | B124: 97 | C124: 020201 | D124: ANCASH | E124: MP DE AIJA | F124: =+VLOOKUP(C124,'Anexo_GL '!$B$9:$O$1882,4,0) -> 121.98271 | H124: =+VLOOKUP(C124,'Anexo_GL '!$B$9:$O$1882,5,0) -> 2771.536472 | I124: =+VLOOKUP(C124,'Anexo_GL '!$B$9:$O$1882,6,0) -> 1404.19305 | J124: =+VLOOKUP(C124,'Anexo_GL '!$B$9:$O$1882,7,0) -> 2649.553763 | L124: =+VLOOKUP(C124,'Anexo_GL '!$B$9:$O$1882,8,0) -> 4.401266634 | N124: =+VLOOKUP(C124,'Anexo_GL '!$B$9:$O$1882,9,0) -> Cumple | P124: =+VLOOKUP(C124,'Anexo_GL '!$B$9:$O$1882,11,0) -> 3884.71342 | Q124: =+VLOOKUP(C124,'Anexo_GL '!$B$9:$O$1882,12,0) -> 1507.75912 | R124: =+VLOOKUP(C124,'Anexo_GL '!$B$9:$O$1882,13,0) -> 2376.9543 | S124: =+VLOOKUP(C124,'Anexo_GL '!$B$9:$O$1882,14,0) -> Cumple
A125: 020202 : MD DE CORIS | B125: 98 | C125: 020202 | D125: ANCASH | E125: MD DE CORIS | F125: =+VLOOKUP(C125,'Anexo_GL '!$B$9:$O$1882,4,0) -> 23.18924 | H125: =+VLOOKUP(C125,'Anexo_GL '!$B$9:$O$1882,5,0) -> 1996.218983 | I125: =+VLOOKUP(C125,'Anexo_GL '!$B$9:$O$1882,6,0) -> 2579.49563 | J125: =+VLOOKUP(C125,'Anexo_GL '!$B$9:$O$1882,7,0) -> 2556.30639 | L125: =+VLOOKUP(C125,'Anexo_GL '!$B$9:$O$1882,8,0) -> 0.8989834962 | N125: =+VLOOKUP(C125,'Anexo_GL '!$B$9:$O$1882,9,0) -> Cumple | P125: =+VLOOKUP(C125,'Anexo_GL '!$B$9:$O$1882,11,0) -> 3372.97748 | Q125: =+VLOOKUP(C125,'Anexo_GL '!$B$9:$O$1882,12,0) -> 1106.6114 | R125: =+VLOOKUP(C125,'Anexo_GL '!$B$9:$O$1882,13,0) -> 2266.36608 | S125: =+VLOOKUP(C125,'Anexo_GL '!$B$9:$O$1882,14,0) -> Cumple
A126: 020203 : MD DE HUACLLAN | B126: 99 | C126: 020203 | D126: ANCASH | E126: MD DE HUACLLAN | F126: =+VLOOKUP(C126,'Anexo_GL '!$B$9:$O$1882,4,0) -> 34.84227 | H126: =+VLOOKUP(C126,'Anexo_GL '!$B$9:$O$1882,5,0) -> 867.92379 | I126: =+VLOOKUP(C126,'Anexo_GL '!$B$9:$O$1882,6,0) -> 760.64043 | J126: =+VLOOKUP(C126,'Anexo_GL '!$B$9:$O$1882,7,0) -> 833.08152 | L126: =+VLOOKUP(C126,'Anexo_GL '!$B$9:$O$1882,8,0) -> 4.014438871 | N126: =+VLOOKUP(C126,'Anexo_GL '!$B$9:$O$1882,9,0) -> Cumple | P126: =+VLOOKUP(C126,'Anexo_GL '!$B$9:$O$1882,11,0) -> 1241.44281 | Q126: =+VLOOKUP(C126,'Anexo_GL '!$B$9:$O$1882,12,0) -> 462.01376 | R126: =+VLOOKUP(C126,'Anexo_GL '!$B$9:$O$1882,13,0) -> 779.42905 | S126: =+VLOOKUP(C126,'Anexo_GL '!$B$9:$O$1882,14,0) -> Cumple
A127: 020204 : MD DE LA MERCED | B127: 100 | C127: 020204 | D127: ANCASH | E127: MD DE LA MERCED | F127: =+VLOOKUP(C127,'Anexo_GL '!$B$9:$O$1882,4,0) -> 58.04175 | H127: =+VLOOKUP(C127,'Anexo_GL '!$B$9:$O$1882,5,0) -> 2336.728675 | I127: =+VLOOKUP(C127,'Anexo_GL '!$B$9:$O$1882,6,0) -> 2731.11341 | J127: =+VLOOKUP(C127,'Anexo_GL '!$B$9:$O$1882,7,0) -> 2673.07166 | L127: =+VLOOKUP(C127,'Anexo_GL '!$B$9:$O$1882,8,0) -> 2.12520468 | N127: =+VLOOKUP(C127,'Anexo_GL '!$B$9:$O$1882,9,0) -> Cumple | P127: =+VLOOKUP(C127,'Anexo_GL '!$B$9:$O$1882,11,0) -> 3841.68637 | Q127: =+VLOOKUP(C127,'Anexo_GL '!$B$9:$O$1882,12,0) -> 1216.17545 | R127: =+VLOOKUP(C127,'Anexo_GL '!$B$9:$O$1882,13,0) -> 2625.51092 | S127: =+VLOOKUP(C127,'Anexo_GL '!$B$9:$O$1882,14,0) -> Cumple
A128: 020205 : MD DE SUCCHA | B128: 101 | C128: 020205 | D128: ANCASH | E128: MD DE SUCCHA | F128: =+VLOOKUP(C128,'Anexo_GL '!$B$9:$O$1882,4,0) -> 5.97655 | H128: =+VLOOKUP(C128,'Anexo_GL '!$B$9:$O$1882,5,0) -> 985.7383025 | I128: =+VLOOKUP(C128,'Anexo_GL '!$B$9:$O$1882,6,0) -> 782.72367 | J128: =+VLOOKUP(C128,'Anexo_GL '!$B$9:$O$1882,7,0) -> 979.7617525 | L128: =+VLOOKUP(C128,'Anexo_GL '!$B$9:$O$1882,8,0) -> 0.6063018942 | N128: =+VLOOKUP(C128,'Anexo_GL '!$B$9:$O$1882,9,0) -> Cumple | P128: =+VLOOKUP(C128,'Anexo_GL '!$B$9:$O$1882,11,0) -> 1330.3963 | Q128: =+VLOOKUP(C128,'Anexo_GL '!$B$9:$O$1882,12,0) -> 508.28721 | R128: =+VLOOKUP(C128,'Anexo_GL '!$B$9:$O$1882,13,0) -> 822.10909 | S128: =+VLOOKUP(C128,'Anexo_GL '!$B$9:$O$1882,14,0) -> Cumple
A129: 020301 : MP DE ANTONIO RAYMONDI - LLAMELLIN | B129: 102 | C129: 020301 | D129: ANCASH | E129: MP DE ANTONIO RAYMONDI - LLAMELLIN | F129: =+VLOOKUP(C129,'Anexo_GL '!$B$9:$O$1882,4,0) -> 290.38674 | H129: =+VLOOKUP(C129,'Anexo_GL '!$B$9:$O$1882,5,0) -> 3787.683553 | I129: =+VLOOKUP(C129,'Anexo_GL '!$B$9:$O$1882,6,0) -> 2505.85749 | J129: =+VLOOKUP(C129,'Anexo_GL '!$B$9:$O$1882,7,0) -> 3497.296813 | L129: =+VLOOKUP(C129,'Anexo_GL '!$B$9:$O$1882,8,0) -> 7.666605089 | N129: =+VLOOKUP(C129,'Anexo_GL '!$B$9:$O$1882,9,0) -> Cumple | P129: =+VLOOKUP(C129,'Anexo_GL '!$B$9:$O$1882,11,0) -> 5274.55861 | Q129: =+VLOOKUP(C129,'Anexo_GL '!$B$9:$O$1882,12,0) -> 2682.64861 | R129: =+VLOOKUP(C129,'Anexo_GL '!$B$9:$O$1882,13,0) -> 2591.91 | S129: =+VLOOKUP(C129,'Anexo_GL '!$B$9:$O$1882,14,0) -> Cumple
A130: 020302 : MD DE ACSO | B130: 103 | C130: 020302 | D130: ANCASH | E130: MD DE ACSO | F130: =+VLOOKUP(C130,'Anexo_GL '!$B$9:$O$1882,4,0) -> 57.18643 | H130: =+VLOOKUP(C130,'Anexo_GL '!$B$9:$O$1882,5,0) -> 1517.214785 | I130: =+VLOOKUP(C130,'Anexo_GL '!$B$9:$O$1882,6,0) -> 1711.4275 | J130: =+VLOOKUP(C130,'Anexo_GL '!$B$9:$O$1882,7,0) -> 1654.24107 | L130: =+VLOOKUP(C130,'Anexo_GL '!$B$9:$O$1882,8,0) -> 3.341446249 | N130: =+VLOOKUP(C130,'Anexo_GL '!$B$9:$O$1882,9,0) -> Cumple | P130: =+VLOOKUP(C130,'Anexo_GL '!$B$9:$O$1882,11,0) -> 2041.2035 | Q130: =+VLOOKUP(C130,'Anexo_GL '!$B$9:$O$1882,12,0) -> 1170.83379 | R130: =+VLOOKUP(C130,'Anexo_GL '!$B$9:$O$1882,13,0) -> 870.36971 | S130: =+VLOOKUP(C130,'Anexo_GL '!$B$9:$O$1882,14,0) -> Cumple
A131: 020303 : MD DE CHACCHO | B131: 104 | C131: 020303 | D131: ANCASH | E131: MD DE CHACCHO | F131: =+VLOOKUP(C131,'Anexo_GL '!$B$9:$O$1882,4,0) -> 379.35427 | H131: =+VLOOKUP(C131,'Anexo_GL '!$B$9:$O$1882,5,0) -> 1269.033635 | I131: =+VLOOKUP(C131,'Anexo_GL '!$B$9:$O$1882,6,0) -> 1573.94675 | J131: =+VLOOKUP(C131,'Anexo_GL '!$B$9:$O$1882,7,0) -> 1194.59248 | L131: =+VLOOKUP(C131,'Anexo_GL '!$B$9:$O$1882,8,0) -> 24.1021032 | N131: =+VLOOKUP(C131,'Anexo_GL '!$B$9:$O$1882,9,0) -> Cumple | P131: =+VLOOKUP(C131,'Anexo_GL '!$B$9:$O$1882,11,0) -> 1887.24429 | Q131: =+VLOOKUP(C131,'Anexo_GL '!$B$9:$O$1882,12,0) -> 535.9271 | R131: =+VLOOKUP(C131,'Anexo_GL '!$B$9:$O$1882,13,0) -> 1351.31719 | S131: =+VLOOKUP(C131,'Anexo_GL '!$B$9:$O$1882,14,0) -> Cumple
A132: 020304 : MD DE CHINGAS | B132: 105 | C132: 020304 | D132: ANCASH | E132: MD DE CHINGAS | F132: =+VLOOKUP(C132,'Anexo_GL '!$B$9:$O$1882,4,0) -> 65.40111 | H132: =+VLOOKUP(C132,'Anexo_GL '!$B$9:$O$1882,5,0) -> 1257.69329 | I132: =+VLOOKUP(C132,'Anexo_GL '!$B$9:$O$1882,6,0) -> 1531.09463 | J132: =+VLOOKUP(C132,'Anexo_GL '!$B$9:$O$1882,7,0) -> 1465.69352 | L132: =+VLOOKUP(C132,'Anexo_GL '!$B$9:$O$1882,8,0) -> 4.271526313 | N132: =+VLOOKUP(C132,'Anexo_GL '!$B$9:$O$1882,9,0) -> Cumple | P132: =+VLOOKUP(C132,'Anexo_GL '!$B$9:$O$1882,11,0) -> 1904.08226 | Q132: =+VLOOKUP(C132,'Anexo_GL '!$B$9:$O$1882,12,0) -> 855.38046 | R132: =+VLOOKUP(C132,'Anexo_GL '!$B$9:$O$1882,13,0) -> 1048.7018 | S132: =+VLOOKUP(C132,'Anexo_GL '!$B$9:$O$1882,14,0) -> Cumple
A133: 020305 : MD DE MIRGAS | B133: 106 | C133: 020305 | D133: ANCASH | E133: MD DE MIRGAS | F133: =+VLOOKUP(C133,'Anexo_GL '!$B$9:$O$1882,4,0) -> 133.03946 | H133: =+VLOOKUP(C133,'Anexo_GL '!$B$9:$O$1882,5,0) -> 3636.507092 | I133: =+VLOOKUP(C133,'Anexo_GL '!$B$9:$O$1882,6,0) -> 5335.48871 | J133: =+VLOOKUP(C133,'Anexo_GL '!$B$9:$O$1882,7,0) -> 5202.44925 | L133: =+VLOOKUP(C133,'Anexo_GL '!$B$9:$O$1882,8,0) -> 2.493482176 | N133: =+VLOOKUP(C133,'Anexo_GL '!$B$9:$O$1882,9,0) -> Cumple | P133: =+VLOOKUP(C133,'Anexo_GL '!$B$9:$O$1882,11,0) -> 5955.45557 | Q133: =+VLOOKUP(C133,'Anexo_GL '!$B$9:$O$1882,12,0) -> 1699.05672 | R133: =+VLOOKUP(C133,'Anexo_GL '!$B$9:$O$1882,13,0) -> 4256.39885 | S133: =+VLOOKUP(C133,'Anexo_GL '!$B$9:$O$1882,14,0) -> Cumple
A134: 020306 : MD DE SAN JUAN DE RONTOY | B134: 107 | C134: 020306 | D134: ANCASH | E134: MD DE SAN JUAN DE RONTOY | F134: =+VLOOKUP(C134,'Anexo_GL '!$B$9:$O$1882,4,0) -> 4.96712 | H134: =+VLOOKUP(C134,'Anexo_GL '!$B$9:$O$1882,5,0) -> 1204.684368 | I134: =+VLOOKUP(C134,'Anexo_GL '!$B$9:$O$1882,6,0) -> 1517.35902 | J134: =+VLOOKUP(C134,'Anexo_GL '!$B$9:$O$1882,7,0) -> 1512.3919 | L134: =+VLOOKUP(C134,'Anexo_GL '!$B$9:$O$1882,8,0) -> 0.327352982 | N134: =+VLOOKUP(C134,'Anexo_GL '!$B$9:$O$1882,9,0) -> Cumple | P134: =+VLOOKUP(C134,'Anexo_GL '!$B$9:$O$1882,11,0) -> 1827.71539 | Q134: =+VLOOKUP(C134,'Anexo_GL '!$B$9:$O$1882,12,0) -> 778.00026 | R134: =+VLOOKUP(C134,'Anexo_GL '!$B$9:$O$1882,13,0) -> 1049.71513 | S134: =+VLOOKUP(C134,'Anexo_GL '!$B$9:$O$1882,14,0) -> Cumple
A135: 020401 : MP DE ASUNCION - CHACAS | B135: 108 | C135: 020401 | D135: ANCASH | E135: MP DE ASUNCION - CHACAS | F135: =+VLOOKUP(C135,'Anexo_GL '!$B$9:$O$1882,4,0) -> 1361.94343 | H135: =+VLOOKUP(C135,'Anexo_GL '!$B$9:$O$1882,5,0) -> 4440.34044 | I135: =+VLOOKUP(C135,'Anexo_GL '!$B$9:$O$1882,6,0) -> 3932.11294 | J135: =+VLOOKUP(C135,'Anexo_GL '!$B$9:$O$1882,7,0) -> 3078.39701 | L135: =+VLOOKUP(C135,'Anexo_GL '!$B$9:$O$1882,8,0) -> 30.67204978 | N135: =+VLOOKUP(C135,'Anexo_GL '!$B$9:$O$1882,9,0) -> Cumple | P135: =+VLOOKUP(C135,'Anexo_GL '!$B$9:$O$1882,11,0) -> 6516.52709 | Q135: =+VLOOKUP(C135,'Anexo_GL '!$B$9:$O$1882,12,0) -> 2652.57818 | R135: =+VLOOKUP(C135,'Anexo_GL '!$B$9:$O$1882,13,0) -> 3863.94891 | S135: =+VLOOKUP(C135,'Anexo_GL '!$B$9:$O$1882,14,0) -> Cumple
A136: 020402 : MD DE ACOCHACA | B136: 109 | C136: 020402 | D136: ANCASH | E136: MD DE ACOCHACA | F136: =+VLOOKUP(C136,'Anexo_GL '!$B$9:$O$1882,4,0) -> 61.9902 | H136: =+VLOOKUP(C136,'Anexo_GL '!$B$9:$O$1882,5,0) -> 2385.952445 | I136: =+VLOOKUP(C136,'Anexo_GL '!$B$9:$O$1882,6,0) -> 3146.17545 | J136: =+VLOOKUP(C136,'Anexo_GL '!$B$9:$O$1882,7,0) -> 3084.18525 | L136: =+VLOOKUP(C136,'Anexo_GL '!$B$9:$O$1882,8,0) -> 1.970335125 | N136: =+VLOOKUP(C136,'Anexo_GL '!$B$9:$O$1882,9,0) -> Cumple | P136: =+VLOOKUP(C136,'Anexo_GL '!$B$9:$O$1882,11,0) -> 3610.92402 | Q136: =+VLOOKUP(C136,'Anexo_GL '!$B$9:$O$1882,12,0) -> 1716.26418 | R136: =+VLOOKUP(C136,'Anexo_GL '!$B$9:$O$1882,13,0) -> 1894.65984 | S136: =+VLOOKUP(C136,'Anexo_GL '!$B$9:$O$1882,14,0) -> Cumple
A137: 020501 : MP DE BOLOGNESI - CHIQUIAN | B137: 110 | C137: 020501 | D137: ANCASH | E137: MP DE BOLOGNESI - CHIQUIAN | F137: =+VLOOKUP(C137,'Anexo_GL '!$B$9:$O$1882,4,0) -> 1480.022 | H137: =+VLOOKUP(C137,'Anexo_GL '!$B$9:$O$1882,5,0) -> 4103.301685 | I137: =+VLOOKUP(C137,'Anexo_GL '!$B$9:$O$1882,6,0) -> 1885.82364 | J137: =+VLOOKUP(C137,'Anexo_GL '!$B$9:$O$1882,7,0) -> 2623.279685 | L137: =+VLOOKUP(C137,'Anexo_GL '!$B$9:$O$1882,8,0) -> 36.06905155 | N137: =+VLOOKUP(C137,'Anexo_GL '!$B$9:$O$1882,9,0) -> Cumple | P137: =+VLOOKUP(C137,'Anexo_GL '!$B$9:$O$1882,11,0) -> 5199.34626 | Q137: =+VLOOKUP(C137,'Anexo_GL '!$B$9:$O$1882,12,0) -> 3168.27445 | R137: =+VLOOKUP(C137,'Anexo_GL '!$B$9:$O$1882,13,0) -> 2031.07181 | S137: =+VLOOKUP(C137,'Anexo_GL '!$B$9:$O$1882,14,0) -> Cumple
A138: 020502 : MD DE ABELARDO PARDO LAZAMETA | B138: 111 | C138: 020502 | D138: ANCASH | E138: MD DE ABELARDO PARDO LAZAMETA | F138: =+VLOOKUP(C138,'Anexo_GL '!$B$9:$O$1882,4,0) -> 136.81984 | H138: =+VLOOKUP(C138,'Anexo_GL '!$B$9:$O$1882,5,0) -> 1521.36221 | I138: =+VLOOKUP(C138,'Anexo_GL '!$B$9:$O$1882,6,0) -> 1531.50225 | J138: =+VLOOKUP(C138,'Anexo_GL '!$B$9:$O$1882,7,0) -> 1394.68241 | L138: =+VLOOKUP(C138,'Anexo_GL '!$B$9:$O$1882,8,0) -> 8.933701534 | N138: =+VLOOKUP(C138,'Anexo_GL '!$B$9:$O$1882,9,0) -> Cumple | P138: =+VLOOKUP(C138,'Anexo_GL '!$B$9:$O$1882,11,0) -> 2108.73751 | Q138: =+VLOOKUP(C138,'Anexo_GL '!$B$9:$O$1882,12,0) -> 521.62788 | R138: =+VLOOKUP(C138,'Anexo_GL '!$B$9:$O$1882,13,0) -> 1587.10963 | S138: =+VLOOKUP(C138,'Anexo_GL '!$B$9:$O$1882,14,0) -> Cumple
A139: 020503 : MD DE ANTONIO RAYMONDI | B139: 112 | C139: 020503 | D139: ANCASH | E139: MD DE ANTONIO RAYMONDI | F139: =+VLOOKUP(C139,'Anexo_GL '!$B$9:$O$1882,4,0) -> 916.11011 | H139: =+VLOOKUP(C139,'Anexo_GL '!$B$9:$O$1882,5,0) -> 1306.70487 | I139: =+VLOOKUP(C139,'Anexo_GL '!$B$9:$O$1882,6,0) -> 1021.77972 | J139: =+VLOOKUP(C139,'Anexo_GL '!$B$9:$O$1882,7,0) -> 390.59476 | L139: =+VLOOKUP(C139,'Anexo_GL '!$B$9:$O$1882,8,0) -> 70.10841783 | N139: =+VLOOKUP(C139,'Anexo_GL '!$B$9:$O$1882,9,0) -> Cumple | P139: =+VLOOKUP(C139,'Anexo_GL '!$B$9:$O$1882,11,0) -> 2243.9496 | Q139: =+VLOOKUP(C139,'Anexo_GL '!$B$9:$O$1882,12,0) -> 801.93515 | R139: =+VLOOKUP(C139,'Anexo_GL '!$B$9:$O$1882,13,0) -> 1442.01445 | S139: =+VLOOKUP(C139,'Anexo_GL '!$B$9:$O$1882,14,0) -> Cumple
A140: 020504 : MD DE AQUIA | B140: 113 | C140: 020504 | D140: ANCASH | E140: MD DE AQUIA | F140: =+VLOOKUP(C140,'Anexo_GL '!$B$9:$O$1882,4,0) -> 354.89528 | H140: =+VLOOKUP(C140,'Anexo_GL '!$B$9:$O$1882,5,0) -> 2521.914985 | I140: =+VLOOKUP(C140,'Anexo_GL '!$B$9:$O$1882,6,0) -> 2521.55822 | J140: =+VLOOKUP(C140,'Anexo_GL '!$B$9:$O$1882,7,0) -> 2167.019705 | L140: =+VLOOKUP(C140,'Anexo_GL '!$B$9:$O$1882,8,0) -> 14.07245217 | N140: =+VLOOKUP(C140,'Anexo_GL '!$B$9:$O$1882,9,0) -> Cumple | P140: =+VLOOKUP(C140,'Anexo_GL '!$B$9:$O$1882,11,0) -> 3704.14285 | Q140: =+VLOOKUP(C140,'Anexo_GL '!$B$9:$O$1882,12,0) -> 643.59519 | R140: =+VLOOKUP(C140,'Anexo_GL '!$B$9:$O$1882,13,0) -> 3060.54766 | S140: =+VLOOKUP(C140,'Anexo_GL '!$B$9:$O$1882,14,0) -> Cumple
A141: 020505 : MD DE CAJACAY | B141: 114 | C141: 020505 | D141: ANCASH | E141: MD DE CAJACAY | F141: =+VLOOKUP(C141,'Anexo_GL '!$B$9:$O$1882,4,0) -> 40.75733 | H141: =+VLOOKUP(C141,'Anexo_GL '!$B$9:$O$1882,5,0) -> 1510.332238 | I141: =+VLOOKUP(C141,'Anexo_GL '!$B$9:$O$1882,6,0) -> 1566.1308 | J141: =+VLOOKUP(C141,'Anexo_GL '!$B$9:$O$1882,7,0) -> 1525.37347 | L141: =+VLOOKUP(C141,'Anexo_GL '!$B$9:$O$1882,8,0) -> 2.602421841 | N141: =+VLOOKUP(C141,'Anexo_GL '!$B$9:$O$1882,9,0) -> Cumple | P141: =+VLOOKUP(C141,'Anexo_GL '!$B$9:$O$1882,11,0) -> 2235.81517 | Q141: =+VLOOKUP(C141,'Anexo_GL '!$B$9:$O$1882,12,0) -> 668.5631 | R141: =+VLOOKUP(C141,'Anexo_GL '!$B$9:$O$1882,13,0) -> 1567.25207 | S141: =+VLOOKUP(C141,'Anexo_GL '!$B$9:$O$1882,14,0) -> Cumple
A142: 020506 : MD DE CANIS | B142: 115 | C142: 020506 | D142: ANCASH | E142: MD DE CANIS | F142: =+VLOOKUP(C142,'Anexo_GL '!$B$9:$O$1882,4,0) -> 135.12538 | H142: =+VLOOKUP(C142,'Anexo_GL '!$B$9:$O$1882,5,0) -> 1282.048937 | I142: =+VLOOKUP(C142,'Anexo_GL '!$B$9:$O$1882,6,0) -> 1574.48507 | J142: =+VLOOKUP(C142,'Anexo_GL '!$B$9:$O$1882,7,0) -> 1439.35969 | L142: =+VLOOKUP(C142,'Anexo_GL '!$B$9:$O$1882,8,0) -> 8.582195066 | N142: =+VLOOKUP(C142,'Anexo_GL '!$B$9:$O$1882,9,0) -> Cumple | P142: =+VLOOKUP(C142,'Anexo_GL '!$B$9:$O$1882,11,0) -> 2129.20668 | Q142: =+VLOOKUP(C142,'Anexo_GL '!$B$9:$O$1882,12,0) -> 614.55837 | R142: =+VLOOKUP(C142,'Anexo_GL '!$B$9:$O$1882,13,0) -> 1514.64831 | S142: =+VLOOKUP(C142,'Anexo_GL '!$B$9:$O$1882,14,0) -> Cumple
A143: 020507 : MD DE COLQUIOC | B143: 116 | C143: 020507 | D143: ANCASH | E143: MD DE COLQUIOC | F143: =+VLOOKUP(C143,'Anexo_GL '!$B$9:$O$1882,4,0) -> 3134.259 | H143: =+VLOOKUP(C143,'Anexo_GL '!$B$9:$O$1882,5,0) -> 2549.178833 | I143: =+VLOOKUP(C143,'Anexo_GL '!$B$9:$O$1882,6,0) -> 3267.66657 | J143: =+VLOOKUP(C143,'Anexo_GL '!$B$9:$O$1882,7,0) -> 133.40757 | L143: =+VLOOKUP(C143,'Anexo_GL '!$B$9:$O$1882,8,0) -> 95.91734447 | N143: =+VLOOKUP(C143,'Anexo_GL '!$B$9:$O$1882,9,0) -> Cumple | P143: =+VLOOKUP(C143,'Anexo_GL '!$B$9:$O$1882,11,0) -> 4486.44185 | Q143: =+VLOOKUP(C143,'Anexo_GL '!$B$9:$O$1882,12,0) -> 1115.30518 | R143: =+VLOOKUP(C143,'Anexo_GL '!$B$9:$O$1882,13,0) -> 3371.13667 | S143: =+VLOOKUP(C143,'Anexo_GL '!$B$9:$O$1882,14,0) -> Cumple
A144: 020508 : MD DE HUALLANCA | B144: 117 | C144: 020508 | D144: ANCASH | E144: MD DE HUALLANCA | F144: =+VLOOKUP(C144,'Anexo_GL '!$B$9:$O$1882,4,0) -> 569.23664 | H144: =+VLOOKUP(C144,'Anexo_GL '!$B$9:$O$1882,5,0) -> 7443.478108 | I144: =+VLOOKUP(C144,'Anexo_GL '!$B$9:$O$1882,6,0) -> 8480.80374 | J144: =+VLOOKUP(C144,'Anexo_GL '!$B$9:$O$1882,7,0) -> 7911.5671 | L144: =+VLOOKUP(C144,'Anexo_GL '!$B$9:$O$1882,8,0) -> 6.712060053 | N144: =+VLOOKUP(C144,'Anexo_GL '!$B$9:$O$1882,9,0) -> Cumple | P144: =+VLOOKUP(C144,'Anexo_GL '!$B$9:$O$1882,11,0) -> 13207.3382 | Q144: =+VLOOKUP(C144,'Anexo_GL '!$B$9:$O$1882,12,0) -> 6230.27189 | R144: =+VLOOKUP(C144,'Anexo_GL '!$B$9:$O$1882,13,0) -> 6977.06631 | S144: =+VLOOKUP(C144,'Anexo_GL '!$B$9:$O$1882,14,0) -> Cumple
A145: 020509 : MD DE HUASTA | B145: 118 | C145: 020509 | D145: ANCASH | E145: MD DE HUASTA | F145: =+VLOOKUP(C145,'Anexo_GL '!$B$9:$O$1882,4,0) -> 50.67744 | H145: =+VLOOKUP(C145,'Anexo_GL '!$B$9:$O$1882,5,0) -> 2901.030638 | I145: =+VLOOKUP(C145,'Anexo_GL '!$B$9:$O$1882,6,0) -> 3147.12607 | J145: =+VLOOKUP(C145,'Anexo_GL '!$B$9:$O$1882,7,0) -> 3096.44863 | L145: =+VLOOKUP(C145,'Anexo_GL '!$B$9:$O$1882,8,0) -> 1.610276769 | N145: =+VLOOKUP(C145,'Anexo_GL '!$B$9:$O$1882,9,0) -> Cumple | P145: =+VLOOKUP(C145,'Anexo_GL '!$B$9:$O$1882,11,0) -> 4746.81983 | Q145: =+VLOOKUP(C145,'Anexo_GL '!$B$9:$O$1882,12,0) -> 706.15393 | R145: =+VLOOKUP(C145,'Anexo_GL '!$B$9:$O$1882,13,0) -> 4040.6659 | S145: =+VLOOKUP(C145,'Anexo_GL '!$B$9:$O$1882,14,0) -> Cumple
A146: 020510 : MD DE HUAYLLACAYAN | B146: 119 | C146: 020510 | D146: ANCASH | E146: MD DE HUAYLLACAYAN | F146: =+VLOOKUP(C146,'Anexo_GL '!$B$9:$O$1882,4,0) -> 1198.34206 | H146: =+VLOOKUP(C146,'Anexo_GL '!$B$9:$O$1882,5,0) -> 1221.433683 | I146: =+VLOOKUP(C146,'Anexo_GL '!$B$9:$O$1882,6,0) -> 1260.29079 | J146: =+VLOOKUP(C146,'Anexo_GL '!$B$9:$O$1882,7,0) -> 61.94873 | L146: =+VLOOKUP(C146,'Anexo_GL '!$B$9:$O$1882,8,0) -> 95.08456854 | N146: =+VLOOKUP(C146,'Anexo_GL '!$B$9:$O$1882,9,0) -> Cumple | P146: =+VLOOKUP(C146,'Anexo_GL '!$B$9:$O$1882,11,0) -> 1782.53171 | Q146: =+VLOOKUP(C146,'Anexo_GL '!$B$9:$O$1882,12,0) -> 537.977 | R146: =+VLOOKUP(C146,'Anexo_GL '!$B$9:$O$1882,13,0) -> 1244.55471 | S146: =+VLOOKUP(C146,'Anexo_GL '!$B$9:$O$1882,14,0) -> Cumple
A147: 020511 : MD DE LA PRIMAVERA | B147: 120 | C147: 020511 | D147: ANCASH | E147: MD DE LA PRIMAVERA | F147: =+VLOOKUP(C147,'Anexo_GL '!$B$9:$O$1882,4,0) -> 77.38245 | H147: =+VLOOKUP(C147,'Anexo_GL '!$B$9:$O$1882,5,0) -> 1115.615788 | I147: =+VLOOKUP(C147,'Anexo_GL '!$B$9:$O$1882,6,0) -> 842.10294 | J147: =+VLOOKUP(C147,'Anexo_GL '!$B$9:$O$1882,7,0) -> 1038.233338 | L147: =+VLOOKUP(C147,'Anexo_GL '!$B$9:$O$1882,8,0) -> 6.936299295 | N147: =+VLOOKUP(C147,'Anexo_GL '!$B$9:$O$1882,9,0) -> Cumple | P147: =+VLOOKUP(C147,'Anexo_GL '!$B$9:$O$1882,11,0) -> 2009.90961 | Q147: =+VLOOKUP(C147,'Anexo_GL '!$B$9:$O$1882,12,0) -> 463.98169 | R147: =+VLOOKUP(C147,'Anexo_GL '!$B$9:$O$1882,13,0) -> 1545.92792 | S147: =+VLOOKUP(C147,'Anexo_GL '!$B$9:$O$1882,14,0) -> Cumple
A148: 020512 : MD DE MANGAS | B148: 121 | C148: 020512 | D148: ANCASH | E148: MD DE MANGAS | F148: =+VLOOKUP(C148,'Anexo_GL '!$B$9:$O$1882,4,0) -> 66.78068 | H148: =+VLOOKUP(C148,'Anexo_GL '!$B$9:$O$1882,5,0) -> 848.1032675 | I148: =+VLOOKUP(C148,'Anexo_GL '!$B$9:$O$1882,6,0) -> 690.20223 | J148: =+VLOOKUP(C148,'Anexo_GL '!$B$9:$O$1882,7,0) -> 781.3225875 | L148: =+VLOOKUP(C148,'Anexo_GL '!$B$9:$O$1882,8,0) -> 7.874121296 | N148: =+VLOOKUP(C148,'Anexo_GL '!$B$9:$O$1882,9,0) -> Cumple | P148: =+VLOOKUP(C148,'Anexo_GL '!$B$9:$O$1882,11,0) -> 1173.83454 | Q148: =+VLOOKUP(C148,'Anexo_GL '!$B$9:$O$1882,12,0) -> 480.27129 | R148: =+VLOOKUP(C148,'Anexo_GL '!$B$9:$O$1882,13,0) -> 693.56325 | S148: =+VLOOKUP(C148,'Anexo_GL '!$B$9:$O$1882,14,0) -> Cumple
A149: 020513 : MD DE PACLLON | B149: 122 | C149: 020513 | D149: ANCASH | E149: MD DE PACLLON | F149: =+VLOOKUP(C149,'Anexo_GL '!$B$9:$O$1882,4,0) -> 2449.63832 | H149: =+VLOOKUP(C149,'Anexo_GL '!$B$9:$O$1882,5,0) -> 1881.302982 | I149: =+VLOOKUP(C149,'Anexo_GL '!$B$9:$O$1882,6,0) -> 1977.2477 | J149: =+VLOOKUP(C149,'Anexo_GL '!$B$9:$O$1882,7,0) -> 0 | L149: =+VLOOKUP(C149,'Anexo_GL '!$B$9:$O$1882,8,0) -> 123.8913223 | N149: =+VLOOKUP(C149,'Anexo_GL '!$B$9:$O$1882,9,0) -> No Cumple | P149: =+VLOOKUP(C149,'Anexo_GL '!$B$9:$O$1882,11,0) -> 3347.79483 | Q149: =+VLOOKUP(C149,'Anexo_GL '!$B$9:$O$1882,12,0) -> 601.17669 | R149: =+VLOOKUP(C149,'Anexo_GL '!$B$9:$O$1882,13,0) -> 2746.61814 | S149: =+VLOOKUP(C149,'Anexo_GL '!$B$9:$O$1882,14,0) -> Cumple
A150: 020514 : MD DE SAN MIGUEL DE CORPANQUI | B150: 123 | C150: 020514 | D150: ANCASH | E150: MD DE SAN MIGUEL DE CORPANQUI | F150: =+VLOOKUP(C150,'Anexo_GL '!$B$9:$O$1882,4,0) -> 70.53841 | H150: =+VLOOKUP(C150,'Anexo_GL '!$B$9:$O$1882,5,0) -> 1076.517085 | I150: =+VLOOKUP(C150,'Anexo_GL '!$B$9:$O$1882,6,0) -> 1217.60979 | J150: =+VLOOKUP(C150,'Anexo_GL '!$B$9:$O$1882,7,0) -> 1147.07138 | L150: =+VLOOKUP(C150,'Anexo_GL '!$B$9:$O$1882,8,0) -> 5.79318683 | N150: =+VLOOKUP(C150,'Anexo_GL '!$B$9:$O$1882,9,0) -> Cumple | P150: =+VLOOKUP(C150,'Anexo_GL '!$B$9:$O$1882,11,0) -> 1746.2714 | Q150: =+VLOOKUP(C150,'Anexo_GL '!$B$9:$O$1882,12,0) -> 466.03864 | R150: =+VLOOKUP(C150,'Anexo_GL '!$B$9:$O$1882,13,0) -> 1280.23276 | S150: =+VLOOKUP(C150,'Anexo_GL '!$B$9:$O$1882,14,0) -> Cumple
A151: 020515 : MD DE TICLLOS | B151: 124 | C151: 020515 | D151: ANCASH | E151: MD DE TICLLOS | F151: =+VLOOKUP(C151,'Anexo_GL '!$B$9:$O$1882,4,0) -> 1763.94787 | H151: =+VLOOKUP(C151,'Anexo_GL '!$B$9:$O$1882,5,0) -> 1173.788535 | I151: =+VLOOKUP(C151,'Anexo_GL '!$B$9:$O$1882,6,0) -> 1317.84369 | J151: =+VLOOKUP(C151,'Anexo_GL '!$B$9:$O$1882,7,0) -> 0 | L151: =+VLOOKUP(C151,'Anexo_GL '!$B$9:$O$1882,8,0) -> 133.8510692 | N151: =+VLOOKUP(C151,'Anexo_GL '!$B$9:$O$1882,9,0) -> No Cumple | P151: =+VLOOKUP(C151,'Anexo_GL '!$B$9:$O$1882,11,0) -> 1854.53101 | Q151: =+VLOOKUP(C151,'Anexo_GL '!$B$9:$O$1882,12,0) -> 608.93289 | R151: =+VLOOKUP(C151,'Anexo_GL '!$B$9:$O$1882,13,0) -> 1245.59812 | S151: =+VLOOKUP(C151,'Anexo_GL '!$B$9:$O$1882,14,0) -> Cumple
A152: 020601 : MP DE CARHUAZ | B152: 125 | C152: 020601 | D152: ANCASH | E152: MP DE CARHUAZ | F152: =+VLOOKUP(C152,'Anexo_GL '!$B$9:$O$1882,4,0) -> 1926.81956 | H152: =+VLOOKUP(C152,'Anexo_GL '!$B$9:$O$1882,5,0) -> 12370.56868 | I152: =+VLOOKUP(C152,'Anexo_GL '!$B$9:$O$1882,6,0) -> 10331.1638 | J152: =+VLOOKUP(C152,'Anexo_GL '!$B$9:$O$1882,7,0) -> 10443.74912 | L152: =+VLOOKUP(C152,'Anexo_GL '!$B$9:$O$1882,8,0) -> 15.57583657 | N152: =+VLOOKUP(C152,'Anexo_GL '!$B$9:$O$1882,9,0) -> Cumple | P152: =+VLOOKUP(C152,'Anexo_GL '!$B$9:$O$1882,11,0) -> 18516.95853 | Q152: =+VLOOKUP(C152,'Anexo_GL '!$B$9:$O$1882,12,0) -> 7996.24398 | R152: =+VLOOKUP(C152,'Anexo_GL '!$B$9:$O$1882,13,0) -> 10520.71455 | S152: =+VLOOKUP(C152,'Anexo_GL '!$B$9:$O$1882,14,0) -> Cumple
A153: 020602 : MD DE ACOPAMPA | B153: 126 | C153: 020602 | D153: ANCASH | E153: MD DE ACOPAMPA | F153: =+VLOOKUP(C153,'Anexo_GL '!$B$9:$O$1882,4,0) -> 78.02589 | H153: =+VLOOKUP(C153,'Anexo_GL '!$B$9:$O$1882,5,0) -> 1415.919818 | I153: =+VLOOKUP(C153,'Anexo_GL '!$B$9:$O$1882,6,0) -> 1610.77634 | J153: =+VLOOKUP(C153,'Anexo_GL '!$B$9:$O$1882,7,0) -> 1532.75045 | L153: =+VLOOKUP(C153,'Anexo_GL '!$B$9:$O$1882,8,0) -> 4.843992804 | N153: =+VLOOKUP(C153,'Anexo_GL '!$B$9:$O$1882,9,0) -> Cumple | P153: =+VLOOKUP(C153,'Anexo_GL '!$B$9:$O$1882,11,0) -> 1971.36887 | Q153: =+VLOOKUP(C153,'Anexo_GL '!$B$9:$O$1882,12,0) -> 725.69972 | R153: =+VLOOKUP(C153,'Anexo_GL '!$B$9:$O$1882,13,0) -> 1245.66915 | S153: =+VLOOKUP(C153,'Anexo_GL '!$B$9:$O$1882,14,0) -> Cumple
A154: 020603 : MD DE AMASHCA | B154: 127 | C154: 020603 | D154: ANCASH | E154: MD DE AMASHCA | F154: =+VLOOKUP(C154,'Anexo_GL '!$B$9:$O$1882,4,0) -> 87.44076 | H154: =+VLOOKUP(C154,'Anexo_GL '!$B$9:$O$1882,5,0) -> 1290.328423 | I154: =+VLOOKUP(C154,'Anexo_GL '!$B$9:$O$1882,6,0) -> 1442.91971 | J154: =+VLOOKUP(C154,'Anexo_GL '!$B$9:$O$1882,7,0) -> 1355.47895 | L154: =+VLOOKUP(C154,'Anexo_GL '!$B$9:$O$1882,8,0) -> 6.059987912 | N154: =+VLOOKUP(C154,'Anexo_GL '!$B$9:$O$1882,9,0) -> Cumple | P154: =+VLOOKUP(C154,'Anexo_GL '!$B$9:$O$1882,11,0) -> 1799.71196 | Q154: =+VLOOKUP(C154,'Anexo_GL '!$B$9:$O$1882,12,0) -> 634.37825 | R154: =+VLOOKUP(C154,'Anexo_GL '!$B$9:$O$1882,13,0) -> 1165.33371 | S154: =+VLOOKUP(C154,'Anexo_GL '!$B$9:$O$1882,14,0) -> Cumple
A155: 020604 : MD DE ANTA | B155: 128 | C155: 020604 | D155: ANCASH | E155: MD DE ANTA | F155: =+VLOOKUP(C155,'Anexo_GL '!$B$9:$O$1882,4,0) -> 12.48591 | H155: =+VLOOKUP(C155,'Anexo_GL '!$B$9:$O$1882,5,0) -> 1914.943212 | I155: =+VLOOKUP(C155,'Anexo_GL '!$B$9:$O$1882,6,0) -> 1940.82779 | J155: =+VLOOKUP(C155,'Anexo_GL '!$B$9:$O$1882,7,0) -> 1928.34188 | L155: =+VLOOKUP(C155,'Anexo_GL '!$B$9:$O$1882,8,0) -> 0.6433291024 | N155: =+VLOOKUP(C155,'Anexo_GL '!$B$9:$O$1882,9,0) -> Cumple | P155: =+VLOOKUP(C155,'Anexo_GL '!$B$9:$O$1882,11,0) -> 3566.80841 | Q155: =+VLOOKUP(C155,'Anexo_GL '!$B$9:$O$1882,12,0) -> 916.41454 | R155: =+VLOOKUP(C155,'Anexo_GL '!$B$9:$O$1882,13,0) -> 2650.39387 | S155: =+VLOOKUP(C155,'Anexo_GL '!$B$9:$O$1882,14,0) -> Cumple
A156: 020605 : MD DE ATAQUERO | B156: 129 | C156: 020605 | D156: ANCASH | E156: MD DE ATAQUERO | F156: =+VLOOKUP(C156,'Anexo_GL '!$B$9:$O$1882,4,0) -> 118.18069 | H156: =+VLOOKUP(C156,'Anexo_GL '!$B$9:$O$1882,5,0) -> 1104.86363 | I156: =+VLOOKUP(C156,'Anexo_GL '!$B$9:$O$1882,6,0) -> 1298.23339 | J156: =+VLOOKUP(C156,'Anexo_GL '!$B$9:$O$1882,7,0) -> 1180.0527 | L156: =+VLOOKUP(C156,'Anexo_GL '!$B$9:$O$1882,8,0) -> 9.103192917 | N156: =+VLOOKUP(C156,'Anexo_GL '!$B$9:$O$1882,9,0) -> Cumple | P156: =+VLOOKUP(C156,'Anexo_GL '!$B$9:$O$1882,11,0) -> 1643.45208 | Q156: =+VLOOKUP(C156,'Anexo_GL '!$B$9:$O$1882,12,0) -> 632.5061 | R156: =+VLOOKUP(C156,'Anexo_GL '!$B$9:$O$1882,13,0) -> 1010.94598 | S156: =+VLOOKUP(C156,'Anexo_GL '!$B$9:$O$1882,14,0) -> Cumple
A157: 020606 : MD DE MARCARA | B157: 130 | C157: 020606 | D157: ANCASH | E157: MD DE MARCARA | F157: =+VLOOKUP(C157,'Anexo_GL '!$B$9:$O$1882,4,0) -> 574.87602 | H157: =+VLOOKUP(C157,'Anexo_GL '!$B$9:$O$1882,5,0) -> 6041.634627 | I157: =+VLOOKUP(C157,'Anexo_GL '!$B$9:$O$1882,6,0) -> 7540.95889 | J157: =+VLOOKUP(C157,'Anexo_GL '!$B$9:$O$1882,7,0) -> 6966.08287 | L157: =+VLOOKUP(C157,'Anexo_GL '!$B$9:$O$1882,8,0) -> 7.623380904 | N157: =+VLOOKUP(C157,'Anexo_GL '!$B$9:$O$1882,9,0) -> Cumple | P157: =+VLOOKUP(C157,'Anexo_GL '!$B$9:$O$1882,11,0) -> 10264.53249 | Q157: =+VLOOKUP(C157,'Anexo_GL '!$B$9:$O$1882,12,0) -> 3303.35273 | R157: =+VLOOKUP(C157,'Anexo_GL '!$B$9:$O$1882,13,0) -> 6961.17976 | S157: =+VLOOKUP(C157,'Anexo_GL '!$B$9:$O$1882,14,0) -> Cumple
A158: 020607 : MD DE PARIAHUANCA | B158: 131 | C158: 020607 | D158: ANCASH | E158: MD DE PARIAHUANCA | F158: =+VLOOKUP(C158,'Anexo_GL '!$B$9:$O$1882,4,0) -> 40.59907 | H158: =+VLOOKUP(C158,'Anexo_GL '!$B$9:$O$1882,5,0) -> 1571.307815 | I158: =+VLOOKUP(C158,'Anexo_GL '!$B$9:$O$1882,6,0) -> 1171.64344 | J158: =+VLOOKUP(C158,'Anexo_GL '!$B$9:$O$1882,7,0) -> 1530.708745 | L158: =+VLOOKUP(C158,'Anexo_GL '!$B$9:$O$1882,8,0) -> 2.583775732 | N158: =+VLOOKUP(C158,'Anexo_GL '!$B$9:$O$1882,9,0) -> Cumple | P158: =+VLOOKUP(C158,'Anexo_GL '!$B$9:$O$1882,11,0) -> 2384.97236 | Q158: =+VLOOKUP(C158,'Anexo_GL '!$B$9:$O$1882,12,0) -> 755.17275 | R158: =+VLOOKUP(C158,'Anexo_GL '!$B$9:$O$1882,13,0) -> 1629.79961 | S158: =+VLOOKUP(C158,'Anexo_GL '!$B$9:$O$1882,14,0) -> Cumple
A159: 020608 : MD DE SAN MIGUEL DE ACO | B159: 132 | C159: 020608 | D159: ANCASH | E159: MD DE SAN MIGUEL DE ACO | F159: =+VLOOKUP(C159,'Anexo_GL '!$B$9:$O$1882,4,0) -> 65.35734 | H159: =+VLOOKUP(C159,'Anexo_GL '!$B$9:$O$1882,5,0) -> 1466.019132 | I159: =+VLOOKUP(C159,'Anexo_GL '!$B$9:$O$1882,6,0) -> 1563.74048 | J159: =+VLOOKUP(C159,'Anexo_GL '!$B$9:$O$1882,7,0) -> 1498.38314 | L159: =+VLOOKUP(C159,'Anexo_GL '!$B$9:$O$1882,8,0) -> 4.179551584 | N159: =+VLOOKUP(C159,'Anexo_GL '!$B$9:$O$1882,9,0) -> Cumple | P159: =+VLOOKUP(C159,'Anexo_GL '!$B$9:$O$1882,11,0) -> 2181.85801 | Q159: =+VLOOKUP(C159,'Anexo_GL '!$B$9:$O$1882,12,0) -> 876.44593 | R159: =+VLOOKUP(C159,'Anexo_GL '!$B$9:$O$1882,13,0) -> 1305.41208 | S159: =+VLOOKUP(C159,'Anexo_GL '!$B$9:$O$1882,14,0) -> Cumple
A160: 020609 : MD DE SHILLA | B160: 133 | C160: 020609 | D160: ANCASH | E160: MD DE SHILLA | F160: =+VLOOKUP(C160,'Anexo_GL '!$B$9:$O$1882,4,0) -> 58.8857 | H160: =+VLOOKUP(C160,'Anexo_GL '!$B$9:$O$1882,5,0) -> 2585.014262 | I160: =+VLOOKUP(C160,'Anexo_GL '!$B$9:$O$1882,6,0) -> 2362.12598 | J160: =+VLOOKUP(C160,'Anexo_GL '!$B$9:$O$1882,7,0) -> 2526.128562 | L160: =+VLOOKUP(C160,'Anexo_GL '!$B$9:$O$1882,8,0) -> 2.277964221 | N160: =+VLOOKUP(C160,'Anexo_GL '!$B$9:$O$1882,9,0) -> Cumple | P160: =+VLOOKUP(C160,'Anexo_GL '!$B$9:$O$1882,11,0) -> 2850.2456 | Q160: =+VLOOKUP(C160,'Anexo_GL '!$B$9:$O$1882,12,0) -> 963.71191 | R160: =+VLOOKUP(C160,'Anexo_GL '!$B$9:$O$1882,13,0) -> 1886.53369 | S160: =+VLOOKUP(C160,'Anexo_GL '!$B$9:$O$1882,14,0) -> Cumple
A161: 020610 : MD DE TINCO | B161: 134 | C161: 020610 | D161: ANCASH | E161: MD DE TINCO | F161: =+VLOOKUP(C161,'Anexo_GL '!$B$9:$O$1882,4,0) -> 2301.48189 | H161: =+VLOOKUP(C161,'Anexo_GL '!$B$9:$O$1882,5,0) -> 2164.718025 | I161: =+VLOOKUP(C161,'Anexo_GL '!$B$9:$O$1882,6,0) -> 1773.37805 | J161: =+VLOOKUP(C161,'Anexo_GL '!$B$9:$O$1882,7,0) -> 0 | L161: =+VLOOKUP(C161,'Anexo_GL '!$B$9:$O$1882,8,0) -> 106.3178605 | N161: =+VLOOKUP(C161,'Anexo_GL '!$B$9:$O$1882,9,0) -> No Cumple | P161: =+VLOOKUP(C161,'Anexo_GL '!$B$9:$O$1882,11,0) -> 2241.19716 | Q161: =+VLOOKUP(C161,'Anexo_GL '!$B$9:$O$1882,12,0) -> 1089.33358 | R161: =+VLOOKUP(C161,'Anexo_GL '!$B$9:$O$1882,13,0) -> 1151.86358 | S161: =+VLOOKUP(C161,'Anexo_GL '!$B$9:$O$1882,14,0) -> Cumple
A162: 020611 : MD DE YUNGAR | B162: 135 | C162: 020611 | D162: ANCASH | E162: MD DE YUNGAR | F162: =+VLOOKUP(C162,'Anexo_GL '!$B$9:$O$1882,4,0) -> 230.61392 | H162: =+VLOOKUP(C162,'Anexo_GL '!$B$9:$O$1882,5,0) -> 1925.244933 | I162: =+VLOOKUP(C162,'Anexo_GL '!$B$9:$O$1882,6,0) -> 2333.09138 | J162: =+VLOOKUP(C162,'Anexo_GL '!$B$9:$O$1882,7,0) -> 2102.47746 | L162: =+VLOOKUP(C162,'Anexo_GL '!$B$9:$O$1882,8,0) -> 9.884478678 | N162: =+VLOOKUP(C162,'Anexo_GL '!$B$9:$O$1882,9,0) -> Cumple | P162: =+VLOOKUP(C162,'Anexo_GL '!$B$9:$O$1882,11,0) -> 2910.95865 | Q162: =+VLOOKUP(C162,'Anexo_GL '!$B$9:$O$1882,12,0) -> 1151.20228 | R162: =+VLOOKUP(C162,'Anexo_GL '!$B$9:$O$1882,13,0) -> 1759.75637 | S162: =+VLOOKUP(C162,'Anexo_GL '!$B$9:$O$1882,14,0) -> Cumple
A163: 020701 : MP DE CARLOS FERMIN FITZCARRALD | B163: 136 | C163: 020701 | D163: ANCASH | E163: MP DE CARLOS FERMIN FITZCARRALD | F163: =+VLOOKUP(C163,'Anexo_GL '!$B$9:$O$1882,4,0) -> 3834.33128 | H163: =+VLOOKUP(C163,'Anexo_GL '!$B$9:$O$1882,5,0) -> 13310.50986 | I163: =+VLOOKUP(C163,'Anexo_GL '!$B$9:$O$1882,6,0) -> 13818.47123 | J163: =+VLOOKUP(C163,'Anexo_GL '!$B$9:$O$1882,7,0) -> 9984.13995 | L163: =+VLOOKUP(C163,'Anexo_GL '!$B$9:$O$1882,8,0) -> 27.74786889 | N163: =+VLOOKUP(C163,'Anexo_GL '!$B$9:$O$1882,9,0) -> Cumple | P163: =+VLOOKUP(C163,'Anexo_GL '!$B$9:$O$1882,11,0) -> 19865.12746 | Q163: =+VLOOKUP(C163,'Anexo_GL '!$B$9:$O$1882,12,0) -> 9682.5188 | R163: =+VLOOKUP(C163,'Anexo_GL '!$B$9:$O$1882,13,0) -> 10182.60866 | S163: =+VLOOKUP(C163,'Anexo_GL '!$B$9:$O$1882,14,0) -> Cumple
A164: 020702 : MD DE SAN NICOLAS | B164: 137 | C164: 020702 | D164: ANCASH | E164: MD DE SAN NICOLAS | F164: =+VLOOKUP(C164,'Anexo_GL '!$B$9:$O$1882,4,0) -> 64.81869 | H164: =+VLOOKUP(C164,'Anexo_GL '!$B$9:$O$1882,5,0) -> 3540.56947 | I164: =+VLOOKUP(C164,'Anexo_GL '!$B$9:$O$1882,6,0) -> 4020.68893 | J164: =+VLOOKUP(C164,'Anexo_GL '!$B$9:$O$1882,7,0) -> 3955.87024 | L164: =+VLOOKUP(C164,'Anexo_GL '!$B$9:$O$1882,8,0) -> 1.612128944 | N164: =+VLOOKUP(C164,'Anexo_GL '!$B$9:$O$1882,9,0) -> Cumple | P164: =+VLOOKUP(C164,'Anexo_GL '!$B$9:$O$1882,11,0) -> 5221.37345 | Q164: =+VLOOKUP(C164,'Anexo_GL '!$B$9:$O$1882,12,0) -> 2221.35179 | R164: =+VLOOKUP(C164,'Anexo_GL '!$B$9:$O$1882,13,0) -> 3000.02166 | S164: =+VLOOKUP(C164,'Anexo_GL '!$B$9:$O$1882,14,0) -> Cumple
A165: 020703 : MD DE YAUYA | B165: 138 | C165: 020703 | D165: ANCASH | E165: MD DE YAUYA | F165: =+VLOOKUP(C165,'Anexo_GL '!$B$9:$O$1882,4,0) -> 366.20226 | H165: =+VLOOKUP(C165,'Anexo_GL '!$B$9:$O$1882,5,0) -> 5136.180017 | I165: =+VLOOKUP(C165,'Anexo_GL '!$B$9:$O$1882,6,0) -> 5928.16487 | J165: =+VLOOKUP(C165,'Anexo_GL '!$B$9:$O$1882,7,0) -> 5561.96261 | L165: =+VLOOKUP(C165,'Anexo_GL '!$B$9:$O$1882,8,0) -> 6.177329208 | N165: =+VLOOKUP(C165,'Anexo_GL '!$B$9:$O$1882,9,0) -> Cumple | P165: =+VLOOKUP(C165,'Anexo_GL '!$B$9:$O$1882,11,0) -> 7668.93689 | Q165: =+VLOOKUP(C165,'Anexo_GL '!$B$9:$O$1882,12,0) -> 3294.4283 | R165: =+VLOOKUP(C165,'Anexo_GL '!$B$9:$O$1882,13,0) -> 4374.50859 | S165: =+VLOOKUP(C165,'Anexo_GL '!$B$9:$O$1882,14,0) -> Cumple
A166: 020801 : MP DE CASMA | B166: 139 | C166: 020801 | D166: ANCASH | E166: MP DE CASMA | F166: =+VLOOKUP(C166,'Anexo_GL '!$B$9:$O$1882,4,0) -> 8874.9011 | H166: =+VLOOKUP(C166,'Anexo_GL '!$B$9:$O$1882,5,0) -> 18725.57758 | I166: =+VLOOKUP(C166,'Anexo_GL '!$B$9:$O$1882,6,0) -> 17529.22744 | J166: =+VLOOKUP(C166,'Anexo_GL '!$B$9:$O$1882,7,0) -> 9850.676485 | L166: =+VLOOKUP(C166,'Anexo_GL '!$B$9:$O$1882,8,0) -> 47.39453862 | N166: =+VLOOKUP(C166,'Anexo_GL '!$B$9:$O$1882,9,0) -> Cumple | P166: =+VLOOKUP(C166,'Anexo_GL '!$B$9:$O$1882,11,0) -> 28238.80664 | Q166: =+VLOOKUP(C166,'Anexo_GL '!$B$9:$O$1882,12,0) -> 19766.72043 | R166: =+VLOOKUP(C166,'Anexo_GL '!$B$9:$O$1882,13,0) -> 8472.08621 | S166: =+VLOOKUP(C166,'Anexo_GL '!$B$9:$O$1882,14,0) -> Cumple
A167: 020802 : MD DE BUENA VISTA ALTA | B167: 140 | C167: 020802 | D167: ANCASH | E167: MD DE BUENA VISTA ALTA | F167: =+VLOOKUP(C167,'Anexo_GL '!$B$9:$O$1882,4,0) -> 511.86966 | H167: =+VLOOKUP(C167,'Anexo_GL '!$B$9:$O$1882,5,0) -> 3049.73211 | I167: =+VLOOKUP(C167,'Anexo_GL '!$B$9:$O$1882,6,0) -> 3690.82616 | J167: =+VLOOKUP(C167,'Anexo_GL '!$B$9:$O$1882,7,0) -> 3178.9565 | L167: =+VLOOKUP(C167,'Anexo_GL '!$B$9:$O$1882,8,0) -> 13.86870142 | N167: =+VLOOKUP(C167,'Anexo_GL '!$B$9:$O$1882,9,0) -> Cumple | P167: =+VLOOKUP(C167,'Anexo_GL '!$B$9:$O$1882,11,0) -> 4728.29722 | Q167: =+VLOOKUP(C167,'Anexo_GL '!$B$9:$O$1882,12,0) -> 1822.88281 | R167: =+VLOOKUP(C167,'Anexo_GL '!$B$9:$O$1882,13,0) -> 2905.41441 | S167: =+VLOOKUP(C167,'Anexo_GL '!$B$9:$O$1882,14,0) -> Cumple
A168: 020803 : MD DE COMANDANTE NOEL | B168: 141 | C168: 020803 | D168: ANCASH | E168: MD DE COMANDANTE NOEL | F168: =+VLOOKUP(C168,'Anexo_GL '!$B$9:$O$1882,4,0) -> 380.18301 | H168: =+VLOOKUP(C168,'Anexo_GL '!$B$9:$O$1882,5,0) -> 2138.5447 | I168: =+VLOOKUP(C168,'Anexo_GL '!$B$9:$O$1882,6,0) -> 2255.0766 | J168: =+VLOOKUP(C168,'Anexo_GL '!$B$9:$O$1882,7,0) -> 1874.89359 | L168: =+VLOOKUP(C168,'Anexo_GL '!$B$9:$O$1882,8,0) -> 16.8589843 | N168: =+VLOOKUP(C168,'Anexo_GL '!$B$9:$O$1882,9,0) -> Cumple | P168: =+VLOOKUP(C168,'Anexo_GL '!$B$9:$O$1882,11,0) -> 3306.1722 | Q168: =+VLOOKUP(C168,'Anexo_GL '!$B$9:$O$1882,12,0) -> 1722.62203 | R168: =+VLOOKUP(C168,'Anexo_GL '!$B$9:$O$1882,13,0) -> 1583.55017 | S168: =+VLOOKUP(C168,'Anexo_GL '!$B$9:$O$1882,14,0) -> Cumple
A169: 020804 : MD DE YAUTAN | B169: 142 | C169: 020804 | D169: ANCASH | E169: MD DE YAUTAN | F169: =+VLOOKUP(C169,'Anexo_GL '!$B$9:$O$1882,4,0) -> 494.45525 | H169: =+VLOOKUP(C169,'Anexo_GL '!$B$9:$O$1882,5,0) -> 4279.198623 | I169: =+VLOOKUP(C169,'Anexo_GL '!$B$9:$O$1882,6,0) -> 5118.61422 | J169: =+VLOOKUP(C169,'Anexo_GL '!$B$9:$O$1882,7,0) -> 4624.15897 | L169: =+VLOOKUP(C169,'Anexo_GL '!$B$9:$O$1882,8,0) -> 9.659943663 | N169: =+VLOOKUP(C169,'Anexo_GL '!$B$9:$O$1882,9,0) -> Cumple | P169: =+VLOOKUP(C169,'Anexo_GL '!$B$9:$O$1882,11,0) -> 6651.75342 | Q169: =+VLOOKUP(C169,'Anexo_GL '!$B$9:$O$1882,12,0) -> 2889.25629 | R169: =+VLOOKUP(C169,'Anexo_GL '!$B$9:$O$1882,13,0) -> 3762.49713 | S169: =+VLOOKUP(C169,'Anexo_GL '!$B$9:$O$1882,14,0) -> Cumple
A170: 020901 : MP DE CORONGO | B170: 143 | C170: 020901 | D170: ANCASH | E170: MP DE CORONGO | F170: =+VLOOKUP(C170,'Anexo_GL '!$B$9:$O$1882,4,0) -> 119.2978 | H170: =+VLOOKUP(C170,'Anexo_GL '!$B$9:$O$1882,5,0) -> 2301.597377 | I170: =+VLOOKUP(C170,'Anexo_GL '!$B$9:$O$1882,6,0) -> 879.91157 | J170: =+VLOOKUP(C170,'Anexo_GL '!$B$9:$O$1882,7,0) -> 2182.299577 | L170: =+VLOOKUP(C170,'Anexo_GL '!$B$9:$O$1882,8,0) -> 5.183261033 | N170: =+VLOOKUP(C170,'Anexo_GL '!$B$9:$O$1882,9,0) -> Cumple | P170: =+VLOOKUP(C170,'Anexo_GL '!$B$9:$O$1882,11,0) -> 2079.22063 | Q170: =+VLOOKUP(C170,'Anexo_GL '!$B$9:$O$1882,12,0) -> 1409.05982 | R170: =+VLOOKUP(C170,'Anexo_GL '!$B$9:$O$1882,13,0) -> 670.16081 | S170: =+VLOOKUP(C170,'Anexo_GL '!$B$9:$O$1882,14,0) -> Cumple
A171: 020902 : MD DE ACO | B171: 144 | C171: 020902 | D171: ANCASH | E171: MD DE ACO | F171: =+VLOOKUP(C171,'Anexo_GL '!$B$9:$O$1882,4,0) -> 236.05316 | H171: =+VLOOKUP(C171,'Anexo_GL '!$B$9:$O$1882,5,0) -> 733.07823 | I171: =+VLOOKUP(C171,'Anexo_GL '!$B$9:$O$1882,6,0) -> 489.86425 | J171: =+VLOOKUP(C171,'Anexo_GL '!$B$9:$O$1882,7,0) -> 497.02507 | L171: =+VLOOKUP(C171,'Anexo_GL '!$B$9:$O$1882,8,0) -> 32.20026872 | N171: =+VLOOKUP(C171,'Anexo_GL '!$B$9:$O$1882,9,0) -> Cumple | P171: =+VLOOKUP(C171,'Anexo_GL '!$B$9:$O$1882,11,0) -> 910.67889 | Q171: =+VLOOKUP(C171,'Anexo_GL '!$B$9:$O$1882,12,0) -> 500.81513 | R171: =+VLOOKUP(C171,'Anexo_GL '!$B$9:$O$1882,13,0) -> 409.86376 | S171: =+VLOOKUP(C171,'Anexo_GL '!$B$9:$O$1882,14,0) -> Cumple
A172: 020903 : MD DE BAMBAS | B172: 145 | C172: 020903 | D172: ANCASH | E172: MD DE BAMBAS | F172: =+VLOOKUP(C172,'Anexo_GL '!$B$9:$O$1882,4,0) -> 15.90855 | H172: =+VLOOKUP(C172,'Anexo_GL '!$B$9:$O$1882,5,0) -> 831.94408 | I172: =+VLOOKUP(C172,'Anexo_GL '!$B$9:$O$1882,6,0) -> 600.00081 | J172: =+VLOOKUP(C172,'Anexo_GL '!$B$9:$O$1882,7,0) -> 816.03553 | L172: =+VLOOKUP(C172,'Anexo_GL '!$B$9:$O$1882,8,0) -> 1.912213859 | N172: =+VLOOKUP(C172,'Anexo_GL '!$B$9:$O$1882,9,0) -> Cumple | P172: =+VLOOKUP(C172,'Anexo_GL '!$B$9:$O$1882,11,0) -> 1098.74465 | Q172: =+VLOOKUP(C172,'Anexo_GL '!$B$9:$O$1882,12,0) -> 556.50881 | R172: =+VLOOKUP(C172,'Anexo_GL '!$B$9:$O$1882,13,0) -> 542.23584 | S172: =+VLOOKUP(C172,'Anexo_GL '!$B$9:$O$1882,14,0) -> Cumple
A173: 020904 : MD DE CUSCA | B173: 146 | C173: 020904 | D173: ANCASH | E173: MD DE CUSCA | F173: =+VLOOKUP(C173,'Anexo_GL '!$B$9:$O$1882,4,0) -> 425.21705 | H173: =+VLOOKUP(C173,'Anexo_GL '!$B$9:$O$1882,5,0) -> 2685.37164 | I173: =+VLOOKUP(C173,'Anexo_GL '!$B$9:$O$1882,6,0) -> 2519.96482 | J173: =+VLOOKUP(C173,'Anexo_GL '!$B$9:$O$1882,7,0) -> 2260.15459 | L173: =+VLOOKUP(C173,'Anexo_GL '!$B$9:$O$1882,8,0) -> 15.83456992 | N173: =+VLOOKUP(C173,'Anexo_GL '!$B$9:$O$1882,9,0) -> Cumple | P173: =+VLOOKUP(C173,'Anexo_GL '!$B$9:$O$1882,11,0) -> 3292.40792 | Q173: =+VLOOKUP(C173,'Anexo_GL '!$B$9:$O$1882,12,0) -> 1377.12975 | R173: =+VLOOKUP(C173,'Anexo_GL '!$B$9:$O$1882,13,0) -> 1915.27817 | S173: =+VLOOKUP(C173,'Anexo_GL '!$B$9:$O$1882,14,0) -> Cumple
A174: 020905 : MD DE LA PAMPA | B174: 147 | C174: 020905 | D174: ANCASH | E174: MD DE LA PAMPA | F174: =+VLOOKUP(C174,'Anexo_GL '!$B$9:$O$1882,4,0) -> 442.14045 | H174: =+VLOOKUP(C174,'Anexo_GL '!$B$9:$O$1882,5,0) -> 871.77905 | I174: =+VLOOKUP(C174,'Anexo_GL '!$B$9:$O$1882,6,0) -> 558.11651 | J174: =+VLOOKUP(C174,'Anexo_GL '!$B$9:$O$1882,7,0) -> 429.6386 | L174: =+VLOOKUP(C174,'Anexo_GL '!$B$9:$O$1882,8,0) -> 50.71703088 | N174: =+VLOOKUP(C174,'Anexo_GL '!$B$9:$O$1882,9,0) -> Cumple | P174: =+VLOOKUP(C174,'Anexo_GL '!$B$9:$O$1882,11,0) -> 965.01297 | Q174: =+VLOOKUP(C174,'Anexo_GL '!$B$9:$O$1882,12,0) -> 443.15767 | R174: =+VLOOKUP(C174,'Anexo_GL '!$B$9:$O$1882,13,0) -> 521.8553 | S174: =+VLOOKUP(C174,'Anexo_GL '!$B$9:$O$1882,14,0) -> Cumple
A175: 020906 : MD DE YANAC | B175: 148 | C175: 020906 | D175: ANCASH | E175: MD DE YANAC | F175: =+VLOOKUP(C175,'Anexo_GL '!$B$9:$O$1882,4,0) -> 34.26918 | H175: =+VLOOKUP(C175,'Anexo_GL '!$B$9:$O$1882,5,0) -> 784.265965 | I175: =+VLOOKUP(C175,'Anexo_GL '!$B$9:$O$1882,6,0) -> 479.38718 | J175: =+VLOOKUP(C175,'Anexo_GL '!$B$9:$O$1882,7,0) -> 749.996785 | L175: =+VLOOKUP(C175,'Anexo_GL '!$B$9:$O$1882,8,0) -> 4.369586534 | N175: =+VLOOKUP(C175,'Anexo_GL '!$B$9:$O$1882,9,0) -> Cumple | P175: =+VLOOKUP(C175,'Anexo_GL '!$B$9:$O$1882,11,0) -> 952.28773 | Q175: =+VLOOKUP(C175,'Anexo_GL '!$B$9:$O$1882,12,0) -> 685.45997 | R175: =+VLOOKUP(C175,'Anexo_GL '!$B$9:$O$1882,13,0) -> 266.82776 | S175: =+VLOOKUP(C175,'Anexo_GL '!$B$9:$O$1882,14,0) -> Cumple
A176: 020907 : MD DE YUPAN | B176: 149 | C176: 020907 | D176: ANCASH | E176: MD DE YUPAN | F176: =+VLOOKUP(C176,'Anexo_GL '!$B$9:$O$1882,4,0) -> 67.30903 | H176: =+VLOOKUP(C176,'Anexo_GL '!$B$9:$O$1882,5,0) -> 668.7436175 | I176: =+VLOOKUP(C176,'Anexo_GL '!$B$9:$O$1882,6,0) -> 413.45893 | J176: =+VLOOKUP(C176,'Anexo_GL '!$B$9:$O$1882,7,0) -> 601.4345875 | L176: =+VLOOKUP(C176,'Anexo_GL '!$B$9:$O$1882,8,0) -> 10.06499774 | N176: =+VLOOKUP(C176,'Anexo_GL '!$B$9:$O$1882,9,0) -> Cumple | P176: =+VLOOKUP(C176,'Anexo_GL '!$B$9:$O$1882,11,0) -> 879.25685 | Q176: =+VLOOKUP(C176,'Anexo_GL '!$B$9:$O$1882,12,0) -> 427.79451 | R176: =+VLOOKUP(C176,'Anexo_GL '!$B$9:$O$1882,13,0) -> 451.46234 | S176: =+VLOOKUP(C176,'Anexo_GL '!$B$9:$O$1882,14,0) -> Cumple
A177: 021001 : MP DE HUARI | B177: 150 | C177: 021001 | D177: ANCASH | E177: MP DE HUARI | F177: =+VLOOKUP(C177,'Anexo_GL '!$B$9:$O$1882,4,0) -> 7761.56902 | H177: =+VLOOKUP(C177,'Anexo_GL '!$B$9:$O$1882,5,0) -> 32914.95633 | I177: =+VLOOKUP(C177,'Anexo_GL '!$B$9:$O$1882,6,0) -> 51184.25685 | J177: =+VLOOKUP(C177,'Anexo_GL '!$B$9:$O$1882,7,0) -> 43422.68783 | L177: =+VLOOKUP(C177,'Anexo_GL '!$B$9:$O$1882,8,0) -> 15.16397716 | N177: =+VLOOKUP(C177,'Anexo_GL '!$B$9:$O$1882,9,0) -> Cumple | P177: =+VLOOKUP(C177,'Anexo_GL '!$B$9:$O$1882,11,0) -> 56552.34748 | Q177: =+VLOOKUP(C177,'Anexo_GL '!$B$9:$O$1882,12,0) -> 11344.61396 | R177: =+VLOOKUP(C177,'Anexo_GL '!$B$9:$O$1882,13,0) -> 45207.73352 | S177: =+VLOOKUP(C177,'Anexo_GL '!$B$9:$O$1882,14,0) -> Cumple
A178: 021002 : MD DE ANRA | B178: 151 | C178: 021002 | D178: ANCASH | E178: MD DE ANRA | F178: =+VLOOKUP(C178,'Anexo_GL '!$B$9:$O$1882,4,0) -> 678.69513 | H178: =+VLOOKUP(C178,'Anexo_GL '!$B$9:$O$1882,5,0) -> 6009.413138 | I178: =+VLOOKUP(C178,'Anexo_GL '!$B$9:$O$1882,6,0) -> 11067.0251 | J178: =+VLOOKUP(C178,'Anexo_GL '!$B$9:$O$1882,7,0) -> 10388.32997 | L178: =+VLOOKUP(C178,'Anexo_GL '!$B$9:$O$1882,8,0) -> 6.132588694 | N178: =+VLOOKUP(C178,'Anexo_GL '!$B$9:$O$1882,9,0) -> Cumple | P178: =+VLOOKUP(C178,'Anexo_GL '!$B$9:$O$1882,11,0) -> 10907.23124 | Q178: =+VLOOKUP(C178,'Anexo_GL '!$B$9:$O$1882,12,0) -> 3320.30553 | R178: =+VLOOKUP(C178,'Anexo_GL '!$B$9:$O$1882,13,0) -> 7586.92571 | S178: =+VLOOKUP(C178,'Anexo_GL '!$B$9:$O$1882,14,0) -> Cumple
A179: 021003 : MD DE CAJAY | B179: 152 | C179: 021003 | D179: ANCASH | E179: MD DE CAJAY | F179: =+VLOOKUP(C179,'Anexo_GL '!$B$9:$O$1882,4,0) -> 398.42824 | H179: =+VLOOKUP(C179,'Anexo_GL '!$B$9:$O$1882,5,0) -> 9741.37503 | I179: =+VLOOKUP(C179,'Anexo_GL '!$B$9:$O$1882,6,0) -> 18723.1223 | J179: =+VLOOKUP(C179,'Anexo_GL '!$B$9:$O$1882,7,0) -> 18324.69406 | L179: =+VLOOKUP(C179,'Anexo_GL '!$B$9:$O$1882,8,0) -> 2.128001055 | N179: =+VLOOKUP(C179,'Anexo_GL '!$B$9:$O$1882,9,0) -> Cumple | P179: =+VLOOKUP(C179,'Anexo_GL '!$B$9:$O$1882,11,0) -> 18230.4966 | Q179: =+VLOOKUP(C179,'Anexo_GL '!$B$9:$O$1882,12,0) -> 3621.46867 | R179: =+VLOOKUP(C179,'Anexo_GL '!$B$9:$O$1882,13,0) -> 14609.02793 | S179: =+VLOOKUP(C179,'Anexo_GL '!$B$9:$O$1882,14,0) -> Cumple
A180: 021004 : MD DE CHAVIN DE HUANTAR | B180: 153 | C180: 021004 | D180: ANCASH | E180: MD DE CHAVIN DE HUANTAR | F180: =+VLOOKUP(C180,'Anexo_GL '!$B$9:$O$1882,4,0) -> 7004.05206 | H180: =+VLOOKUP(C180,'Anexo_GL '!$B$9:$O$1882,5,0) -> 32002.87826 | I180: =+VLOOKUP(C180,'Anexo_GL '!$B$9:$O$1882,6,0) -> 61882.32792 | J180: =+VLOOKUP(C180,'Anexo_GL '!$B$9:$O$1882,7,0) -> 54878.27586 | L180: =+VLOOKUP(C180,'Anexo_GL '!$B$9:$O$1882,8,0) -> 11.31833965 | N180: =+VLOOKUP(C180,'Anexo_GL '!$B$9:$O$1882,9,0) -> Cumple | P180: =+VLOOKUP(C180,'Anexo_GL '!$B$9:$O$1882,11,0) -> 61455.08031 | Q180: =+VLOOKUP(C180,'Anexo_GL '!$B$9:$O$1882,12,0) -> 12369.01525 | R180: =+VLOOKUP(C180,'Anexo_GL '!$B$9:$O$1882,13,0) -> 49086.06506 | S180: =+VLOOKUP(C180,'Anexo_GL '!$B$9:$O$1882,14,0) -> Cumple
A181: 021005 : MD DE HUACACHI | B181: 154 | C181: 021005 | D181: ANCASH | E181: MD DE HUACACHI | F181: =+VLOOKUP(C181,'Anexo_GL '!$B$9:$O$1882,4,0) -> 768.07131 | H181: =+VLOOKUP(C181,'Anexo_GL '!$B$9:$O$1882,5,0) -> 6713.917105 | I181: =+VLOOKUP(C181,'Anexo_GL '!$B$9:$O$1882,6,0) -> 12820.17206 | J181: =+VLOOKUP(C181,'Anexo_GL '!$B$9:$O$1882,7,0) -> 12052.10075 | L181: =+VLOOKUP(C181,'Anexo_GL '!$B$9:$O$1882,8,0) -> 5.991115458 | N181: =+VLOOKUP(C181,'Anexo_GL '!$B$9:$O$1882,9,0) -> Cumple | P181: =+VLOOKUP(C181,'Anexo_GL '!$B$9:$O$1882,11,0) -> 12600.32776 | Q181: =+VLOOKUP(C181,'Anexo_GL '!$B$9:$O$1882,12,0) -> 2461.80409 | R181: =+VLOOKUP(C181,'Anexo_GL '!$B$9:$O$1882,13,0) -> 10138.52367 | S181: =+VLOOKUP(C181,'Anexo_GL '!$B$9:$O$1882,14,0) -> Cumple
A182: 021006 : MD DE HUACCHIS | B182: 155 | C182: 021006 | D182: ANCASH | E182: MD DE HUACCHIS | F182: =+VLOOKUP(C182,'Anexo_GL '!$B$9:$O$1882,4,0) -> 437.39086 | H182: =+VLOOKUP(C182,'Anexo_GL '!$B$9:$O$1882,5,0) -> 7090.178295 | I182: =+VLOOKUP(C182,'Anexo_GL '!$B$9:$O$1882,6,0) -> 13395.23019 | J182: =+VLOOKUP(C182,'Anexo_GL '!$B$9:$O$1882,7,0) -> 12957.83933 | L182: =+VLOOKUP(C182,'Anexo_GL '!$B$9:$O$1882,8,0) -> 3.265273189 | N182: =+VLOOKUP(C182,'Anexo_GL '!$B$9:$O$1882,9,0) -> Cumple | P182: =+VLOOKUP(C182,'Anexo_GL '!$B$9:$O$1882,11,0) -> 13334.33012 | Q182: =+VLOOKUP(C182,'Anexo_GL '!$B$9:$O$1882,12,0) -> 4584.30146 | R182: =+VLOOKUP(C182,'Anexo_GL '!$B$9:$O$1882,13,0) -> 8750.02866 | S182: =+VLOOKUP(C182,'Anexo_GL '!$B$9:$O$1882,14,0) -> Cumple
A183: 021007 : MD DE HUACHIS | B183: 156 | C183: 021007 | D183: ANCASH | E183: MD DE HUACHIS | F183: =+VLOOKUP(C183,'Anexo_GL '!$B$9:$O$1882,4,0) -> 1617.47088 | H183: =+VLOOKUP(C183,'Anexo_GL '!$B$9:$O$1882,5,0) -> 14333.78436 | I183: =+VLOOKUP(C183,'Anexo_GL '!$B$9:$O$1882,6,0) -> 27416.44628 | J183: =+VLOOKUP(C183,'Anexo_GL '!$B$9:$O$1882,7,0) -> 25798.9754 | L183: =+VLOOKUP(C183,'Anexo_GL '!$B$9:$O$1882,8,0) -> 5.89963726 | N183: =+VLOOKUP(C183,'Anexo_GL '!$B$9:$O$1882,9,0) -> Cumple | P183: =+VLOOKUP(C183,'Anexo_GL '!$B$9:$O$1882,11,0) -> 26536.05004 | Q183: =+VLOOKUP(C183,'Anexo_GL '!$B$9:$O$1882,12,0) -> 5852.20507 | R183: =+VLOOKUP(C183,'Anexo_GL '!$B$9:$O$1882,13,0) -> 20683.84497 | S183: =+VLOOKUP(C183,'Anexo_GL '!$B$9:$O$1882,14,0) -> Cumple
A184: 021008 : MD DE HUANTAR | B184: 157 | C184: 021008 | D184: ANCASH | E184: MD DE HUANTAR | F184: =+VLOOKUP(C184,'Anexo_GL '!$B$9:$O$1882,4,0) -> 4173.56732 | H184: =+VLOOKUP(C184,'Anexo_GL '!$B$9:$O$1882,5,0) -> 9076.820668 | I184: =+VLOOKUP(C184,'Anexo_GL '!$B$9:$O$1882,6,0) -> 17684.23848 | J184: =+VLOOKUP(C184,'Anexo_GL '!$B$9:$O$1882,7,0) -> 13510.67116 | L184: =+VLOOKUP(C184,'Anexo_GL '!$B$9:$O$1882,8,0) -> 23.60049218 | N184: =+VLOOKUP(C184,'Anexo_GL '!$B$9:$O$1882,9,0) -> Cumple | P184: =+VLOOKUP(C184,'Anexo_GL '!$B$9:$O$1882,11,0) -> 17699.47208 | Q184: =+VLOOKUP(C184,'Anexo_GL '!$B$9:$O$1882,12,0) -> 1903.07079 | R184: =+VLOOKUP(C184,'Anexo_GL '!$B$9:$O$1882,13,0) -> 15796.40129 | S184: =+VLOOKUP(C184,'Anexo_GL '!$B$9:$O$1882,14,0) -> Cumple
A185: 021009 : MD DE MASIN | B185: 158 | C185: 021009 | D185: ANCASH | E185: MD DE MASIN | F185: =+VLOOKUP(C185,'Anexo_GL '!$B$9:$O$1882,4,0) -> 447.96518 | H185: =+VLOOKUP(C185,'Anexo_GL '!$B$9:$O$1882,5,0) -> 6154.790263 | I185: =+VLOOKUP(C185,'Anexo_GL '!$B$9:$O$1882,6,0) -> 11556.21119 | J185: =+VLOOKUP(C185,'Anexo_GL '!$B$9:$O$1882,7,0) -> 11108.24601 | L185: =+VLOOKUP(C185,'Anexo_GL '!$B$9:$O$1882,8,0) -> 3.876401812 | N185: =+VLOOKUP(C185,'Anexo_GL '!$B$9:$O$1882,9,0) -> Cumple | P185: =+VLOOKUP(C185,'Anexo_GL '!$B$9:$O$1882,11,0) -> 11384.44036 | Q185: =+VLOOKUP(C185,'Anexo_GL '!$B$9:$O$1882,12,0) -> 1577.03344 | R185: =+VLOOKUP(C185,'Anexo_GL '!$B$9:$O$1882,13,0) -> 9807.40692 | S185: =+VLOOKUP(C185,'Anexo_GL '!$B$9:$O$1882,14,0) -> Cumple
A186: 021010 : MD DE PAUCAS | B186: 159 | C186: 021010 | D186: ANCASH | E186: MD DE PAUCAS | F186: =+VLOOKUP(C186,'Anexo_GL '!$B$9:$O$1882,4,0) -> 17.36258 | H186: =+VLOOKUP(C186,'Anexo_GL '!$B$9:$O$1882,5,0) -> 6998.84923 | I186: =+VLOOKUP(C186,'Anexo_GL '!$B$9:$O$1882,6,0) -> 13255.5815 | J186: =+VLOOKUP(C186,'Anexo_GL '!$B$9:$O$1882,7,0) -> 13238.21892 | L186: =+VLOOKUP(C186,'Anexo_GL '!$B$9:$O$1882,8,0) -> 0.1309831636 | N186: =+VLOOKUP(C186,'Anexo_GL '!$B$9:$O$1882,9,0) -> Cumple | P186: =+VLOOKUP(C186,'Anexo_GL '!$B$9:$O$1882,11,0) -> 13126.92702 | Q186: =+VLOOKUP(C186,'Anexo_GL '!$B$9:$O$1882,12,0) -> 2435.94214 | R186: =+VLOOKUP(C186,'Anexo_GL '!$B$9:$O$1882,13,0) -> 10690.98488 | S186: =+VLOOKUP(C186,'Anexo_GL '!$B$9:$O$1882,14,0) -> Cumple
A187: 021011 : MD DE PONTO | B187: 160 | C187: 021011 | D187: ANCASH | E187: MD DE PONTO | F187: =+VLOOKUP(C187,'Anexo_GL '!$B$9:$O$1882,4,0) -> 625.17105 | H187: =+VLOOKUP(C187,'Anexo_GL '!$B$9:$O$1882,5,0) -> 13396.41489 | I187: =+VLOOKUP(C187,'Anexo_GL '!$B$9:$O$1882,6,0) -> 25922.16688 | J187: =+VLOOKUP(C187,'Anexo_GL '!$B$9:$O$1882,7,0) -> 25296.99583 | L187: =+VLOOKUP(C187,'Anexo_GL '!$B$9:$O$1882,8,0) -> 2.41172373 | N187: =+VLOOKUP(C187,'Anexo_GL '!$B$9:$O$1882,9,0) -> Cumple | P187: =+VLOOKUP(C187,'Anexo_GL '!$B$9:$O$1882,11,0) -> 25244.95234 | Q187: =+VLOOKUP(C187,'Anexo_GL '!$B$9:$O$1882,12,0) -> 4828.67853 | R187: =+VLOOKUP(C187,'Anexo_GL '!$B$9:$O$1882,13,0) -> 20416.27381 | S187: =+VLOOKUP(C187,'Anexo_GL '!$B$9:$O$1882,14,0) -> Cumple
A188: 021012 : MD DE RAHUAPAMPA | B188: 161 | C188: 021012 | D188: ANCASH | E188: MD DE RAHUAPAMPA | F188: =+VLOOKUP(C188,'Anexo_GL '!$B$9:$O$1882,4,0) -> 513.3838 | H188: =+VLOOKUP(C188,'Anexo_GL '!$B$9:$O$1882,5,0) -> 2413.362628 | I188: =+VLOOKUP(C188,'Anexo_GL '!$B$9:$O$1882,6,0) -> 3861.94346 | J188: =+VLOOKUP(C188,'Anexo_GL '!$B$9:$O$1882,7,0) -> 3348.55966 | L188: =+VLOOKUP(C188,'Anexo_GL '!$B$9:$O$1882,8,0) -> 13.29340539 | N188: =+VLOOKUP(C188,'Anexo_GL '!$B$9:$O$1882,9,0) -> Cumple | P188: =+VLOOKUP(C188,'Anexo_GL '!$B$9:$O$1882,11,0) -> 4229.697 | Q188: =+VLOOKUP(C188,'Anexo_GL '!$B$9:$O$1882,12,0) -> 971.04962 | R188: =+VLOOKUP(C188,'Anexo_GL '!$B$9:$O$1882,13,0) -> 3258.64738 | S188: =+VLOOKUP(C188,'Anexo_GL '!$B$9:$O$1882,14,0) -> Cumple
A189: 021013 : MD DE RAPAYAN | B189: 162 | C189: 021013 | D189: ANCASH | E189: MD DE RAPAYAN | F189: =+VLOOKUP(C189,'Anexo_GL '!$B$9:$O$1882,4,0) -> 941.58643 | H189: =+VLOOKUP(C189,'Anexo_GL '!$B$9:$O$1882,5,0) -> 7045.689637 | I189: =+VLOOKUP(C189,'Anexo_GL '!$B$9:$O$1882,6,0) -> 13349.53881 | J189: =+VLOOKUP(C189,'Anexo_GL '!$B$9:$O$1882,7,0) -> 12407.95238 | L189: =+VLOOKUP(C189,'Anexo_GL '!$B$9:$O$1882,8,0) -> 7.053325537 | N189: =+VLOOKUP(C189,'Anexo_GL '!$B$9:$O$1882,9,0) -> Cumple | P189: =+VLOOKUP(C189,'Anexo_GL '!$B$9:$O$1882,11,0) -> 13345.98436 | Q189: =+VLOOKUP(C189,'Anexo_GL '!$B$9:$O$1882,12,0) -> 4273.88462 | R189: =+VLOOKUP(C189,'Anexo_GL '!$B$9:$O$1882,13,0) -> 9072.09974 | S189: =+VLOOKUP(C189,'Anexo_GL '!$B$9:$O$1882,14,0) -> Cumple
A190: 021014 : MD DE SAN MARCOS | B190: 163 | C190: 021014 | D190: ANCASH | E190: MD DE SAN MARCOS | F190: =+VLOOKUP(C190,'Anexo_GL '!$B$9:$O$1882,4,0) -> 6636.63677 | H190: =+VLOOKUP(C190,'Anexo_GL '!$B$9:$O$1882,5,0) -> 131054.0047 | I190: =+VLOOKUP(C190,'Anexo_GL '!$B$9:$O$1882,6,0) -> 284042.0894 | J190: =+VLOOKUP(C190,'Anexo_GL '!$B$9:$O$1882,7,0) -> 277405.4527 | L190: =+VLOOKUP(C190,'Anexo_GL '!$B$9:$O$1882,8,0) -> 2.336497659 | N190: =+VLOOKUP(C190,'Anexo_GL '!$B$9:$O$1882,9,0) -> Cumple | P190: =+VLOOKUP(C190,'Anexo_GL '!$B$9:$O$1882,11,0) -> 250278.1451 | Q190: =+VLOOKUP(C190,'Anexo_GL '!$B$9:$O$1882,12,0) -> 40771.93757 | R190: =+VLOOKUP(C190,'Anexo_GL '!$B$9:$O$1882,13,0) -> 209506.2075 | S190: =+VLOOKUP(C190,'Anexo_GL '!$B$9:$O$1882,14,0) -> Cumple
A191: 021015 : MD DE SAN PEDRO DE CHANA | B191: 164 | C191: 021015 | D191: ANCASH | E191: MD DE SAN PEDRO DE CHANA | F191: =+VLOOKUP(C191,'Anexo_GL '!$B$9:$O$1882,4,0) -> 165.19874 | H191: =+VLOOKUP(C191,'Anexo_GL '!$B$9:$O$1882,5,0) -> 11851.25156 | I191: =+VLOOKUP(C191,'Anexo_GL '!$B$9:$O$1882,6,0) -> 21208.84503 | J191: =+VLOOKUP(C191,'Anexo_GL '!$B$9:$O$1882,7,0) -> 21043.64629 | L191: =+VLOOKUP(C191,'Anexo_GL '!$B$9:$O$1882,8,0) -> 0.7789143622 | N191: =+VLOOKUP(C191,'Anexo_GL '!$B$9:$O$1882,9,0) -> Cumple | P191: =+VLOOKUP(C191,'Anexo_GL '!$B$9:$O$1882,11,0) -> 21388.14458 | Q191: =+VLOOKUP(C191,'Anexo_GL '!$B$9:$O$1882,12,0) -> 3375.32269 | R191: =+VLOOKUP(C191,'Anexo_GL '!$B$9:$O$1882,13,0) -> 18012.82189 | S191: =+VLOOKUP(C191,'Anexo_GL '!$B$9:$O$1882,14,0) -> Cumple
A192: 021016 : MD DE UCO | B192: 165 | C192: 021016 | D192: ANCASH | E192: MD DE UCO | F192: =+VLOOKUP(C192,'Anexo_GL '!$B$9:$O$1882,4,0) -> 335.6592 | H192: =+VLOOKUP(C192,'Anexo_GL '!$B$9:$O$1882,5,0) -> 5996.275635 | I192: =+VLOOKUP(C192,'Anexo_GL '!$B$9:$O$1882,6,0) -> 10866.57469 | J192: =+VLOOKUP(C192,'Anexo_GL '!$B$9:$O$1882,7,0) -> 10530.91549 | L192: =+VLOOKUP(C192,'Anexo_GL '!$B$9:$O$1882,8,0) -> 3.088914488 | N192: =+VLOOKUP(C192,'Anexo_GL '!$B$9:$O$1882,9,0) -> Cumple | P192: =+VLOOKUP(C192,'Anexo_GL '!$B$9:$O$1882,11,0) -> 11542.12997 | Q192: =+VLOOKUP(C192,'Anexo_GL '!$B$9:$O$1882,12,0) -> 1767.36111 | R192: =+VLOOKUP(C192,'Anexo_GL '!$B$9:$O$1882,13,0) -> 9774.76886 | S192: =+VLOOKUP(C192,'Anexo_GL '!$B$9:$O$1882,14,0) -> Cumple
A193: 021101 : MP DE HUARMEY | B193: 166 | C193: 021101 | D193: ANCASH | E193: MP DE HUARMEY | F193: =+VLOOKUP(C193,'Anexo_GL '!$B$9:$O$1882,4,0) -> 19083.24406 | H193: =+VLOOKUP(C193,'Anexo_GL '!$B$9:$O$1882,5,0) -> 17566.22566 | I193: =+VLOOKUP(C193,'Anexo_GL '!$B$9:$O$1882,6,0) -> 15346.77702 | J193: =+VLOOKUP(C193,'Anexo_GL '!$B$9:$O$1882,7,0) -> 0 | L193: =+VLOOKUP(C193,'Anexo_GL '!$B$9:$O$1882,8,0) -> 108.6359952 | N193: =+VLOOKUP(C193,'Anexo_GL '!$B$9:$O$1882,9,0) -> No Cumple | P193: =+VLOOKUP(C193,'Anexo_GL '!$B$9:$O$1882,11,0) -> 23378.60633 | Q193: =+VLOOKUP(C193,'Anexo_GL '!$B$9:$O$1882,12,0) -> 12037.42241 | R193: =+VLOOKUP(C193,'Anexo_GL '!$B$9:$O$1882,13,0) -> 11341.18392 | S193: =+VLOOKUP(C193,'Anexo_GL '!$B$9:$O$1882,14,0) -> Cumple
A194: 021102 : MD DE COCHAPETI | B194: 167 | C194: 021102 | D194: ANCASH | E194: MD DE COCHAPETI | F194: =+VLOOKUP(C194,'Anexo_GL '!$B$9:$O$1882,4,0) -> 8.0676 | H194: =+VLOOKUP(C194,'Anexo_GL '!$B$9:$O$1882,5,0) -> 901.1432225 | I194: =+VLOOKUP(C194,'Anexo_GL '!$B$9:$O$1882,6,0) -> 842.30999 | J194: =+VLOOKUP(C194,'Anexo_GL '!$B$9:$O$1882,7,0) -> 893.0756225 | L194: =+VLOOKUP(C194,'Anexo_GL '!$B$9:$O$1882,8,0) -> 0.8952627949 | N194: =+VLOOKUP(C194,'Anexo_GL '!$B$9:$O$1882,9,0) -> Cumple | P194: =+VLOOKUP(C194,'Anexo_GL '!$B$9:$O$1882,11,0) -> 1151.34848 | Q194: =+VLOOKUP(C194,'Anexo_GL '!$B$9:$O$1882,12,0) -> 449.63871 | R194: =+VLOOKUP(C194,'Anexo_GL '!$B$9:$O$1882,13,0) -> 701.70977 | S194: =+VLOOKUP(C194,'Anexo_GL '!$B$9:$O$1882,14,0) -> Cumple
A195: 021103 : MD DE CULEBRAS | B195: 168 | C195: 021103 | D195: ANCASH | E195: MD DE CULEBRAS | F195: =+VLOOKUP(C195,'Anexo_GL '!$B$9:$O$1882,4,0) -> 4692.08981 | H195: =+VLOOKUP(C195,'Anexo_GL '!$B$9:$O$1882,5,0) -> 2972.456415 | I195: =+VLOOKUP(C195,'Anexo_GL '!$B$9:$O$1882,6,0) -> 4774.25868 | J195: =+VLOOKUP(C195,'Anexo_GL '!$B$9:$O$1882,7,0) -> 82.16887 | L195: =+VLOOKUP(C195,'Anexo_GL '!$B$9:$O$1882,8,0) -> 98.27891877 | N195: =+VLOOKUP(C195,'Anexo_GL '!$B$9:$O$1882,9,0) -> Cumple | P195: =+VLOOKUP(C195,'Anexo_GL '!$B$9:$O$1882,11,0) -> 3887.62767 | Q195: =+VLOOKUP(C195,'Anexo_GL '!$B$9:$O$1882,12,0) -> 1624.39204 | R195: =+VLOOKUP(C195,'Anexo_GL '!$B$9:$O$1882,13,0) -> 2263.23563 | S195: =+VLOOKUP(C195,'Anexo_GL '!$B$9:$O$1882,14,0) -> Cumple
A196: 021104 : MD DE HUAYAN | B196: 169 | C196: 021104 | D196: ANCASH | E196: MD DE HUAYAN | F196: =+VLOOKUP(C196,'Anexo_GL '!$B$9:$O$1882,4,0) -> 39.16782 | H196: =+VLOOKUP(C196,'Anexo_GL '!$B$9:$O$1882,5,0) -> 952.2961325 | I196: =+VLOOKUP(C196,'Anexo_GL '!$B$9:$O$1882,6,0) -> 1046.45725 | J196: =+VLOOKUP(C196,'Anexo_GL '!$B$9:$O$1882,7,0) -> 1007.28943 | L196: =+VLOOKUP(C196,'Anexo_GL '!$B$9:$O$1882,8,0) -> 3.742897285 | N196: =+VLOOKUP(C196,'Anexo_GL '!$B$9:$O$1882,9,0) -> Cumple | P196: =+VLOOKUP(C196,'Anexo_GL '!$B$9:$O$1882,11,0) -> 1307.31123 | Q196: =+VLOOKUP(C196,'Anexo_GL '!$B$9:$O$1882,12,0) -> 851.05068 | R196: =+VLOOKUP(C196,'Anexo_GL '!$B$9:$O$1882,13,0) -> 456.26055 | S196: =+VLOOKUP(C196,'Anexo_GL '!$B$9:$O$1882,14,0) -> Cumple
A197: 021105 : MD DE MALVAS | B197: 170 | C197: 021105 | D197: ANCASH | E197: MD DE MALVAS | F197: =+VLOOKUP(C197,'Anexo_GL '!$B$9:$O$1882,4,0) -> 278.79103 | H197: =+VLOOKUP(C197,'Anexo_GL '!$B$9:$O$1882,5,0) -> 959.14931 | I197: =+VLOOKUP(C197,'Anexo_GL '!$B$9:$O$1882,6,0) -> 878.37221 | J197: =+VLOOKUP(C197,'Anexo_GL '!$B$9:$O$1882,7,0) -> 680.35828 | L197: =+VLOOKUP(C197,'Anexo_GL '!$B$9:$O$1882,8,0) -> 29.06648914 | N197: =+VLOOKUP(C197,'Anexo_GL '!$B$9:$O$1882,9,0) -> Cumple | P197: =+VLOOKUP(C197,'Anexo_GL '!$B$9:$O$1882,11,0) -> 1211.61662 | Q197: =+VLOOKUP(C197,'Anexo_GL '!$B$9:$O$1882,12,0) -> 320.37234 | R197: =+VLOOKUP(C197,'Anexo_GL '!$B$9:$O$1882,13,0) -> 891.24428 | S197: =+VLOOKUP(C197,'Anexo_GL '!$B$9:$O$1882,14,0) -> Cumple
A198: 021201 : MP DE HUAYLAS - CARAZ | B198: 171 | C198: 021201 | D198: ANCASH | E198: MP DE HUAYLAS - CARAZ | F198: =+VLOOKUP(C198,'Anexo_GL '!$B$9:$O$1882,4,0) -> 1628.34688 | H198: =+VLOOKUP(C198,'Anexo_GL '!$B$9:$O$1882,5,0) -> 19578.88424 | I198: =+VLOOKUP(C198,'Anexo_GL '!$B$9:$O$1882,6,0) -> 18632.5657 | J198: =+VLOOKUP(C198,'Anexo_GL '!$B$9:$O$1882,7,0) -> 17950.53736 | L198: =+VLOOKUP(C198,'Anexo_GL '!$B$9:$O$1882,8,0) -> 8.316852279 | N198: =+VLOOKUP(C198,'Anexo_GL '!$B$9:$O$1882,9,0) -> Cumple | P198: =+VLOOKUP(C198,'Anexo_GL '!$B$9:$O$1882,11,0) -> 24051.58611 | Q198: =+VLOOKUP(C198,'Anexo_GL '!$B$9:$O$1882,12,0) -> 9843.06002 | R198: =+VLOOKUP(C198,'Anexo_GL '!$B$9:$O$1882,13,0) -> 14208.52609 | S198: =+VLOOKUP(C198,'Anexo_GL '!$B$9:$O$1882,14,0) -> Cumple
A199: 021202 : MD DE HUALLANCA | B199: 172 | C199: 021202 | D199: ANCASH | E199: MD DE HUALLANCA | F199: =+VLOOKUP(C199,'Anexo_GL '!$B$9:$O$1882,4,0) -> 18.62074 | H199: =+VLOOKUP(C199,'Anexo_GL '!$B$9:$O$1882,5,0) -> 3325.05421 | I199: =+VLOOKUP(C199,'Anexo_GL '!$B$9:$O$1882,6,0) -> 4066.86511 | J199: =+VLOOKUP(C199,'Anexo_GL '!$B$9:$O$1882,7,0) -> 4048.24437 | L199: =+VLOOKUP(C199,'Anexo_GL '!$B$9:$O$1882,8,0) -> 0.4578647065 | N199: =+VLOOKUP(C199,'Anexo_GL '!$B$9:$O$1882,9,0) -> Cumple | P199: =+VLOOKUP(C199,'Anexo_GL '!$B$9:$O$1882,11,0) -> 3641.81959 | Q199: =+VLOOKUP(C199,'Anexo_GL '!$B$9:$O$1882,12,0) -> 674.59037 | R199: =+VLOOKUP(C199,'Anexo_GL '!$B$9:$O$1882,13,0) -> 2967.22922 | S199: =+VLOOKUP(C199,'Anexo_GL '!$B$9:$O$1882,14,0) -> Cumple
A200: 021203 : MD DE HUATA | B200: 173 | C200: 021203 | D200: ANCASH | E200: MD DE HUATA | F200: =+VLOOKUP(C200,'Anexo_GL '!$B$9:$O$1882,4,0) -> 242.89896 | H200: =+VLOOKUP(C200,'Anexo_GL '!$B$9:$O$1882,5,0) -> 1388.047532 | I200: =+VLOOKUP(C200,'Anexo_GL '!$B$9:$O$1882,6,0) -> 1632.22981 | J200: =+VLOOKUP(C200,'Anexo_GL '!$B$9:$O$1882,7,0) -> 1389.33085 | L200: =+VLOOKUP(C200,'Anexo_GL '!$B$9:$O$1882,8,0) -> 14.88141918 | N200: =+VLOOKUP(C200,'Anexo_GL '!$B$9:$O$1882,9,0) -> Cumple | P200: =+VLOOKUP(C200,'Anexo_GL '!$B$9:$O$1882,11,0) -> 1790.04678 | Q200: =+VLOOKUP(C200,'Anexo_GL '!$B$9:$O$1882,12,0) -> 681.00172 | R200: =+VLOOKUP(C200,'Anexo_GL '!$B$9:$O$1882,13,0) -> 1109.04506 | S200: =+VLOOKUP(C200,'Anexo_GL '!$B$9:$O$1882,14,0) -> Cumple
... 1701 more rows

Sheet Anexo_GR
B1: Anexo N° 2: Cumplimiento de las Reglas Fiscales Subnacionales 2018
B2: Gobiernos Regionales
B5: N° | C5: UBIGEO | D5: Gobiernos Regional | E5: R1: Regla Fiscal del Saldo de Deuda Total | L5: R2: Regla Fiscal de Ahorro en Cuenta Corriente
E6: 2018 | L6: 2018
E7: S/ Miles | I7: SDT/Prom. ICT 2015-2018 % | J7: Cumple R1 | L7: S/ Miles | O7: Cumple R2
E8: Saldo de Deuda Total 1/ | F8: Prom. ICT 2015-2018 | G8: Límite Ley N° 29230 2/ | H8: Espacio Total | L8: Ingreso Corriente Total | M8: Gasto Corriente Total | N8: Ahorro en Cuenta Corriente
B9: 1 | C9: 010000 | D9: AMAZONAS | E9: 396337.7304 | F9: 548821.9276 | G9: 4.56198 | H9: 152484.1973 | I9: 72.21608875 | J9: Cumple | L9: 642811.8062 | M9: 635692.8015 | N9: 7119.00472 | O9: Cumple
B10: 2 | C10: 020000 | D10: ANCASH | E10: 578083.4422 | F10: 1328138.789 | G10: 324314.3632 | H10: 750055.3466 | I10: 43.52583082 | J10: Cumple | L10: 1634363.308 | M10: 1382300.177 | N10: 252063.1311 | O10: Cumple
B11: 3 | C11: 030000 | D11: APURIMAC | E11: 628086.142 | F11: 697059.0931 | G11: 64571.57428 | H11: 68972.95111 | I11: 90.10515008 | J11: Cumple | L11: 800675.5859 | M11: 770540.3846 | N11: 30135.2013 | O11: Cumple
B12: 4 | C12: 040000 | D12: AREQUIPA | E12: 1527489.836 | F12: 1255177.631 | G12: 243356.3318 | H12: 0 | I12: 121.695113 | J12: No Cumple | L12: 1480492.169 | M12: 1319208.253 | N12: 161283.9162 | O12: Cumple
B13: 5 | C13: 050000 | D13: AYACUCHO | E13: 645022.071 | F13: 975724.7973 | G13: 78543.27508 | H13: 330702.7263 | I13: 66.10696713 | J13: Cumple | L13: 1122596.39 | M13: 1087190.934 | N13: 35405.45559 | O13: Cumple
B14: 6 | C14: 060000 | D14: CAJAMARCA | E14: 1569539.896 | F14: 1556626.252 | G14: 136385.8685 | H14: 0 | I14: 100.8295919 | J14: No Cumple | L14: 1776692.748 | M14: 1725186.047 | N14: 51506.70087 | O14: Cumple
B15: 7 | C15: 070000 | D15: CALLAO | E15: 552871.4551 | F15: 911038.7462 | G15: 683824.6884 | H15: 358167.2911 | I15: 60.68583333 | J15: Cumple | L15: 1007099.806 | M15: 927474.949 | N15: 79624.85709 | O15: Cumple
B16: 8 | C16: 080000 | D16: CUSCO | E16: 1387146.554 | F16: 1619694.967 | G16: 880874.3049 | H16: 232548.4128 | I16: 85.64245629 | J16: Cumple | L16: 1861646.753 | M16: 1453160.222 | N16: 408486.5309 | O16: Cumple
B17: 9 | C17: 090000 | D17: HUANCAVELICA | E17: 262294.8289 | F17: 719926.4828 | G17: 93945.67433 | H17: 457631.6539 | I17: 36.43355748 | J17: Cumple | L17: 812766.791 | M17: 783340.9494 | N17: 29425.84163 | O17: Cumple
B18: 10 | C18: 100000 | D18: HUANUCO | E18: 256550.7805 | F18: 803319.9955 | G18: 2148.02378 | H18: 546769.2151 | I18: 31.93631204 | J18: Cumple | L18: 939987.5429 | M18: 932919.3693 | N18: 7068.17353 | O18: Cumple
B19: 11 | C19: 110000 | D19: ICA | E19: 233014.0738 | F19: 824943.1236 | G19: 111349.0152 | H19: 591929.0498 | I19: 28.24607747 | J19: Cumple | L19: 936692.5707 | M19: 874649.0201 | N19: 62043.55058 | O19: Cumple
B20: 12 | C20: 120000 | D20: JUNIN | E20: 843420.0765 | F20: 1262223.756 | G20: 44458.64268 | H20: 418803.6795 | I20: 66.82017134 | J20: Cumple | L20: 1490435.259 | M20: 1435863.966 | N20: 54571.29337 | O20: Cumple
B21: 13 | C21: 130000 | D21: LA LIBERTAD | E21: 1543327.284 | F21: 1529088.866 | G21: 163627.1163 | H21: 0 | I21: 100.9311701 | J21: No Cumple | L21: 1764779.588 | M21: 1638702.133 | N21: 126077.4548 | O21: Cumple
B22: 14 | C22: 140000 | D22: LAMBAYEQUE | E22: 607950.2101 | F22: 915086.4797 | G22: 7.75708 | H22: 307136.2696 | I22: 66.43636679 | J22: Cumple | L22: 1029049.205 | M22: 1002613.258 | N22: 26435.9473 | O22: Cumple
B23: 15 | C23: 150000 | D23: LIMA | E23: 192890.4306 | F23: 1016789.8 | G23: 123361.3261 | H23: 823899.3692 | I23: 18.97053163 | J23: Cumple | L23: 1112719.715 | M23: 1097911.006 | N23: 14808.70858 | O23: Cumple
B24: 16 | C24: 160000 | D24: LORETO | E24: 487639.4887 | F24: 1237555.658 | G24: 68078.28517 | H24: 749916.1698 | I24: 39.40343898 | J24: Cumple | L24: 1445869.621 | M24: 1403154.927 | N24: 42714.69412 | O24: Cumple
B25: 17 | C25: 170000 | D25: MADRE DE DIOS | E25: 131772.9026 | F25: 203804.5059 | G25: 461.36884 | H25: 72031.60334 | I25: 64.65652071 | J25: Cumple | L25: 238447.3043 | M25: 232738.743 | N25: 5708.56125 | O25: Cumple
B26: 18 | C26: 180000 | D26: MOQUEGUA | E26: 442570.6372 | F26: 310579.4264 | G26: 90747.22613 | H26: 0 | I26: 142.4983755 | J26: No Cumple | L26: 351937.4353 | M26: 317461.6211 | N26: 34475.8142 | O26: Cumple
B27: 19 | C27: 190000 | D27: PASCO | E27: 307936.7504 | F27: 361517.5883 | G27: 28508.24556 | H27: 53580.83785 | I27: 85.17891257 | J27: Cumple | L27: 423706.3496 | M27: 398047.487 | N27: 25658.86259 | O27: Cumple
B28: 20 | C28: 200000 | D28: PIURA | E28: 1837407.294 | F28: 1487496.872 | G28: 195954.8462 | H28: 0 | I28: 123.5234392 | J28: No Cumple | L28: 1692998.865 | M28: 1601227.658 | N28: 91771.20684 | O28: Cumple
B29: 21 | C29: 210000 | D29: PUNO | E29: 1524241.857 | F29: 1329370.385 | G29: 66805.87353 | H29: 0 | I29: 114.6589298 | J29: No Cumple | L29: 1513051.653 | M29: 1476620.169 | N29: 36431.48445 | O29: Cumple
B30: 22 | C30: 260000 | D30: REGIÓN LIMA METROPOLITANA | E30: 2696.69669 | F30: 21878.00667 | G30: 7106.95294 | H30: 19181.30998 | I30: 12.32606211 | J30: Cumple | L30: 16883.42735 | M30: 20694.74001 | N30: -3811.31266 | O30: No Cumple
B31: 23 | C31: 220000 | D31: SAN MARTIN | E31: 590929.8039 | F31: 923717.1006 | G31: 1198.14807 | H31: 332787.2968 | I31: 63.97302848 | J31: Cumple | L31: 1075962.213 | M31: 1000953.142 | N31: 75009.0711 | O31: Cumple
B32: 24 | C32: 230000 | D32: TACNA | E32: 370139.1404 | F32: 425783.4559 | G32: 89307.64346 | H32: 55644.31551 | I32: 86.93131104 | J32: Cumple | L32: 475288.34 | M32: 422026.4702 | N32: 53261.8697 | O32: Cumple
B33: 25 | C33: 240000 | D33: TUMBES | E33: 187090.0485 | F33: 369738.2331 | G33: 72768.68037 | H33: 182648.1847 | I33: 50.60067683 | J33: Cumple | L33: 406817.8744 | M33: 382253.3116 | N33: 24564.56287 | O33: Cumple
B34: 26 | C34: 250000 | D34: UCAYALI | E34: 355041.8951 | F34: 556774.8206 | G34: 51203.07898 | H34: 201732.9255 | I34: 63.76759185 | J34: Cumple | L34: 668443.81 | M34: 637836.3291 | N34: 30607.48098 | O34: Cumple
B36: TOTAL | E36: =+SUM(E9:E34) -> 17461491.33 | G36: =+SUM(G9:G34) -> 3622912.873 | H36: =+SUM(H9:H34) -> 6706622.806 | L36: =+SUM(L9:L34) -> 26722216.13 | M36: =+SUM(M9:M34) -> 24959768.07 | N36: =+SUM(N9:N34) -> 1762448.063
B38: 1/ El Saldo de Deuda Total esta compuesta por la información disponible del Saldo de Pasivos, Deuda Exigible con entidades del Estado y Deuda Real con el Sistema Privado de Pensiones a diciembre del 2018.
B39: 2/ Corresponde a la suma de los flujos transferidos por concepto de Recursos Determinados provenientes de Canon, Sobrecanon, Regalías, Renta de Aduanas y Participaciones de los años 2016 y 2017, más el tope presupuestal por el mismo concepto incluido en el Presupuesto Institucional de Apertura 2018, aprobado mediante Ley N° 30693 – Ley de Presupuesto del Sector Público para el Año Fiscal 2018, informado a través de Memorando N° 179-2018-EF/50.03 por la Dirección General de Presupuesto Público del Ministerio de Economía y Finanzas.
B40: Fuente: MEF-DGCP, SUNAT, SBS y AFP.

Sheet Anexo_GL
A1: Anexo N° 2: Cumplimiento de las Reglas Fiscales Subnacionales 2018
A2: Gobiernos Locales
A5: N° | B5: Ubigeo | C5: Departamento | D5: Municipalidad | E5: R1: Regla Fiscal del Saldo de Deuda Total | L5: R2: Regla Fiscal de Ahorro en Cuenta Corriente
E6: 2018 | L6: 2018
E7: S/ Miles | I7: SDT/Prom. ICT 2015-2018 ó SDT/ Lím Ley N° 29230 ó SDT/ ICT 2018 % 3/ | J7: Cumple R1 | L7: S/ Miles | O7: Cumple R2
E8: Saldo de Deuda Total 1/ | F8: Prom. ICT 2015-2018 ó ICT 2018 | G8: Límite Ley N° 29230 2/ | H8: Espacio Total | L8: Ingreso Corriente Total | M8: Gasto Corriente Total | N8: Ahorro en Cuenta Corriente
A9: 1 | B9: 010101 | C9: AMAZONAS | D9: MUNICIPALIDAD PROVINCIAL DE CHACHAPOYAS | E9: 8932.37871 | F9: 14148.75029 | G9: 0.93111 | H9: 5216.371582 | I9: 63.13192703 | J9: Cumple | L9: 14578.70908 | M9: 12620.77663 | N9: 1957.93245 | O9: Cumple
A10: 2 | B10: 010102 | C10: AMAZONAS | D10: MUNICIPALIDAD DISTRITAL DE ASUNCION | E10: 9.20036 | F10: 693.6245525 | G10: 0.00032 | H10: 684.4241925 | I10: 1.326417868 | J10: Cumple | L10: 464.26104 | M10: 393.20905 | N10: 71.05199 | O10: Cumple
A11: 3 | B11: 010103 | C11: AMAZONAS | D11: MUNICIPALIDAD DISTRITAL DE BALSAS | E11: 16.60208 | F11: 663.2906675 | G11: 0.02982 | H11: 646.6885875 | I11: 2.502987124 | J11: Cumple | L11: 697.76259 | M11: 351.74372 | N11: 346.01887 | O11: Cumple
A12: 4 | B12: 010104 | C12: AMAZONAS | D12: MUNICIPALIDAD DISTRITAL DE CHETO | E12: 13.50545 | F12: 460.6604025 | G12: 0.00075 | H12: 447.1549525 | I12: 2.93175839 | J12: Cumple | L12: 454.7453 | M12: 265.75919 | N12: 188.98611 | O12: Cumple
A13: 5 | B13: 010105 | C13: AMAZONAS | D13: MUNICIPALIDAD DISTRITAL DE CHILIQUIN | E13: 11.83626 | F13: 801.77467 | G13: 0.0008 | H13: 789.93841 | I13: 1.476257662 | J13: Cumple | L13: 483.08161 | M13: 258.13374 | N13: 224.94787 | O13: Cumple
A14: 6 | B14: 010106 | C14: AMAZONAS | D14: MUNICIPALIDAD DISTRITAL DE CHUQUIBAMBA | E14: 97.81772 | F14: 616.6218625 | G14: 0.00138 | H14: 518.8041425 | I14: 15.86348554 | J14: Cumple | L14: 684.37508 | M14: 581.52715 | N14: 102.84793 | O14: Cumple
A15: 7 | B15: 010107 | C15: AMAZONAS | D15: MUNICIPALIDAD DISTRITAL DE GRANADA | E15: 196.78598 | F15: 550.3218225 | G15: 0.0004 | H15: 353.5358425 | I15: 35.75834575 | J15: Cumple | L15: 471.95265 | M15: 381.20862 | N15: 90.74403 | O15: Cumple
A16: 8 | B16: 010108 | C16: AMAZONAS | D16: MUNICIPALIDAD DISTRITAL DE HUANCAS | E16: 101.56395 | F16: 730.6253775 | G16: 0.00155 | H16: 629.0614275 | I16: 13.90096117 | J16: Cumple | L16: 668.09018 | M16: 471.9573 | N16: 196.13288 | O16: Cumple
A17: 9 | B17: 010109 | C17: AMAZONAS | D17: MUNICIPALIDAD DISTRITAL DE JALCA GRANDE | E17: 16.78628 | F17: 1240.123623 | G17: 0.97817 | H17: 1223.337342 | I17: 1.35359731 | J17: Cumple | L17: 1286.64271 | M17: 967.17353 | N17: 319.46918 | O17: Cumple
A18: 10 | B18: 010110 | C18: AMAZONAS | D18: MUNICIPALIDAD DISTRITAL DE LEIMEBAMBA | E18: 6.18499 | F18: 987.7897 | G18: 0.00213 | H18: 981.60471 | I18: 0.6261444111 | J18: Cumple | L18: 997.20115 | M18: 756.62159 | N18: 240.57956 | O18: Cumple
A19: 11 | B19: 010111 | C19: AMAZONAS | D19: MUNICIPALIDAD DISTRITAL DE LEVANTO | E19: 33.4159 | F19: 608.1165125 | G19: 0.00106 | H19: 574.7006125 | I19: 5.494983167 | J19: Cumple | L19: 546.99594 | M19: 537.4228 | N19: 9.57314 | O19: Cumple
A20: 12 | B20: 010112 | C20: AMAZONAS | D20: MUNICIPALIDAD DISTRITAL DE MAGDALENA | E20: 2293.89849 | F20: 670.42187 | G20: 0.00098 | H20: 0 | I20: 342.1574672 | J20: No Cumple | L20: 489.80003 | M20: 499.89144 | N20: -10.09141 | O20: No Cumple
A21: 13 | B21: 010113 | C21: AMAZONAS | D21: MUNICIPALIDAD DISTRITAL DE MARISCAL CASTILLA | E21: 1.47769 | F21: 566.8748475 | G21: 0.00044 | H21: 565.3971575 | I21: 0.260673058 | J21: Cumple | L21: 504.17402 | M21: 233.78995 | N21: 270.38407 | O21: Cumple
A22: 14 | B22: 010114 | C22: AMAZONAS | D22: MUNICIPALIDAD DISTRITAL DE MOLINOPAMPA | E22: 23.53768 | F22: 963.2033175 | G22: 0.00231 | H22: 939.6656375 | I22: 2.443687597 | J22: Cumple | L22: 1017.74054 | M22: 481.44319 | N22: 536.29735 | O22: Cumple
A23: 15 | B23: 010115 | C23: AMAZONAS | D23: MUNICIPALIDAD DISTRITAL DE MONTEVIDEO | E23: 15.75396 | F23: 546.76491 | G23: 0.00074 | H23: 531.01095 | I23: 2.881304142 | J23: Cumple | L23: 487.59646 | M23: 403.40381 | N23: 84.19265 | O23: Cumple
A24: 16 | B24: 010116 | C24: AMAZONAS | D24: MUNICIPALIDAD DISTRITAL DE OLLEROS | E24: 72.14376 | F24: 535.9451825 | G24: 0.00036 | H24: 463.8014225 | I24: 13.4610334 | J24: Cumple | L24: 506.82774 | M24: 351.17468 | N24: 155.65306 | O24: Cumple
A25: 17 | B25: 010117 | C25: AMAZONAS | D25: MUNICIPALIDAD DISTRITAL DE QUINJALCA | E25: 448.76224 | F25: 558.497295 | G25: 0.0009 | H25: 109.735055 | I25: 80.35173026 | J25: Cumple | L25: 495.4623 | M25: 264.81211 | N25: 230.65019 | O25: Cumple
A26: 18 | B26: 010118 | C26: AMAZONAS | D26: MUNICIPALIDAD DISTRITAL DE SAN FRANCISCO DE DAGUAS | E26: 5.405 | F26: 558.21893 | G26: 0.00034 | H26: 552.81393 | I26: 0.968258099 | J26: Cumple | L26: 515.26155 | M26: 277.07952 | N26: 238.18203 | O26: Cumple
A27: 19 | B27: 010119 | C27: AMAZONAS | D27: MUNICIPALIDAD DISTRITAL DE SAN ISIDRO DE MAYNO | E27: 118.47145 | F27: 669.694565 | G27: 0.00088 | H27: 551.223115 | I27: 17.69037053 | J27: Cumple | L27: 1131.90054 | M27: 285.34216 | N27: 846.55838 | O27: Cumple
A28: 20 | B28: 010120 | C28: AMAZONAS | D28: MUNICIPALIDAD DISTRITAL DE SOLOCO | E28: 1971.6089 | F28: 879.1439475 | G28: 0.00084 | H28: 0 | I28: 224.2646276 | J28: No Cumple | L28: 543.62524 | M28: 452.7745 | N28: 90.85074 | O28: Cumple
A29: 21 | B29: 010121 | C29: AMAZONAS | D29: MUNICIPALIDAD DISTRITAL DE SONCHE | E29: 15.18356 | F29: 466.22453 | G29: 0.00022 | H29: 451.04097 | I29: 3.256705519 | J29: Cumple | L29: 450.20869 | M29: 291.7244 | N29: 158.48429 | O29: Cumple
A30: 22 | B30: 010201 | C30: AMAZONAS | D30: MUNICIPALIDAD PROVINCIAL DE BAGUA - LA PECA | E30: 1552.12109 | F30: 12079.87524 | G30: 0.79891 | H30: 10527.75415 | I30: 12.84881722 | J30: Cumple | L30: 12868.10887 | M30: 11251.25894 | N30: 1616.84993 | O30: Cumple
A31: 23 | B31: 010202 | C31: AMAZONAS | D31: MUNICIPALIDAD DISTRITAL DE ARAMANGO | E31: 872.69311 | F31: 3713.399565 | G31: 1.10553 | H31: 2840.706455 | I31: 23.50119061 | J31: Cumple | L31: 3817.72853 | M31: 2121.68207 | N31: 1696.04646 | O31: Cumple
A32: 24 | B32: 010203 | C32: AMAZONAS | D32: MUNICIPALIDAD DISTRITAL DE COPALLIN | E32: 482.84215 | F32: 2310.795562 | G32: 0.00088 | H32: 1827.953413 | I32: 20.89506133 | J32: Cumple | L32: 3682.57791 | M32: 1807.10896 | N32: 1875.46895 | O32: Cumple
A33: 25 | B33: 010204 | C33: AMAZONAS | D33: MUNICIPALIDAD DISTRITAL DE EL PARCO | E33: 275.13401 | F33: 1980.054805 | G33: 0.00023 | H33: 1704.920795 | I33: 13.89527246 | J33: Cumple | L33: 5939.4557 | M33: 581.804 | N33: 5357.6517 | O33: Cumple
A34: 26 | B34: 010205 | C34: AMAZONAS | D34: MUNICIPALIDAD DISTRITAL DE IMAZA | E34: 6405.24581 | F34: 8258.87881 | G34: 2.1932 | H34: 1853.633 | I34: 77.55587601 | J34: Cumple | L34: 9011.45923 | M34: 5480.92665 | N34: 3530.53258 | O34: Cumple
A35: 27 | B35: 010206 | C35: AMAZONAS | D35: MUNICIPALIDAD DISTRITAL DE LA PECA | E35: 154.562 | F35: 2207.469545 | G35: 0.00127 | H35: 2052.907545 | I35: 7.001772702 | J35: Cumple | L35: 2278.38104 | M35: 1603.38429 | N35: 674.99675 | O35: Cumple
A36: 28 | B36: 010301 | C36: AMAZONAS | D36: MUNICIPALIDAD PROVINCIAL DE BONGARA - JUMBILLA | E36: 1826.37306 | F36: 3226.53999 | G36: 0.00029 | H36: 1400.16693 | I36: 56.60469313 | J36: Cumple | L36: 3199.63101 | M36: 2236.67604 | N36: 962.95497 | O36: Cumple
A37: 29 | B37: 010302 | C37: AMAZONAS | D37: MUNICIPALIDAD DISTRITAL DE CHISQUILLA | E37: 11.84246 | F37: 1003.881195 | G37: 2e-05 | H37: 992.038735 | I37: 1.17966748 | J37: Cumple | L37: 440.49743 | M37: 528.77235 | N37: -88.27492 | O37: No Cumple
A38: 30 | B38: 010303 | C38: AMAZONAS | D38: MUNICIPALIDAD DISTRITAL DE CHURUJA | E38: 1.89122 | F38: 3262.144095 | G38: 2e-05 | H38: 3260.252875 | I38: 0.05797475356 | J38: Cumple | L38: 476.28592 | M38: 315.2466 | N38: 161.03932 | O38: Cumple
A39: 31 | B39: 010304 | C39: AMAZONAS | D39: MUNICIPALIDAD DISTRITAL DE COROSHA | E39: 40.3983 | F39: 490.854605 | G39: 0.00018 | H39: 450.456305 | I39: 8.230196801 | J39: Cumple | L39: 449.66695 | M39: 411.75462 | N39: 37.91233 | O39: Cumple
A40: 32 | B40: 010305 | C40: AMAZONAS | D40: MUNICIPALIDAD DISTRITAL DE CUISPES | E40: 82.0499 | F40: 522.5199675 | G40: 0.00012 | H40: 440.4700675 | I40: 15.70273006 | J40: Cumple | L40: 488.00116 | M40: 218.81234 | N40: 269.18882 | O40: Cumple
A41: 33 | B41: 010306 | C41: AMAZONAS | D41: MUNICIPALIDAD DISTRITAL DE FLORIDA | E41: 203.38235 | F41: 1861.554725 | G41: 0.00122 | H41: 1658.172375 | I41: 10.92540269 | J41: Cumple | L41: 1949.73505 | M41: 1751.69413 | N41: 198.04092 | O41: Cumple
A42: 34 | B42: 010307 | C42: AMAZONAS | D42: MUNICIPALIDAD DISTRITAL DE JAZAN | E42: 1106.45381 | F42: 2390.105845 | G42: 0.00078 | H42: 1283.652035 | I42: 46.29308833 | J42: Cumple | L42: 2482.45489 | M42: 1824.58235 | N42: 657.87254 | O42: Cumple
A43: 35 | B43: 010308 | C43: AMAZONAS | D43: MUNICIPALIDAD DISTRITAL DE RECTA | E43: 18.44273 | F43: 433.040575 | G43: 1e-05 | H43: 414.597845 | I43: 4.258891906 | J43: Cumple | L43: 450.12161 | M43: 294.69985 | N43: 155.42176 | O43: Cumple
A44: 36 | B44: 010309 | C44: AMAZONAS | D44: MUNICIPALIDAD DISTRITAL DE SAN CARLOS | E44: 78.8032 | F44: 491.791175 | G44: 1e-05 | H44: 412.987975 | I44: 16.02371169 | J44: Cumple | L44: 458.27861 | M44: 397.46126 | N44: 60.81735 | O44: Cumple
A45: 37 | B45: 010310 | C45: AMAZONAS | D45: MUNICIPALIDAD DISTRITAL DE SHIPASBAMBA | E45: 5.90365 | F45: 730.5492625 | G45: 0.00029 | H45: 724.6456125 | I45: 0.8081111436 | J45: Cumple | L45: 731.48711 | M45: 505.49633 | N45: 225.99078 | O45: Cumple
A46: 38 | B46: 010311 | C46: AMAZONAS | D46: MUNICIPALIDAD DISTRITAL DE VALERA | E46: 11.5335 | F46: 573.61906 | G46: 0.00021 | H46: 562.08556 | I46: 2.010654946 | J46: Cumple | L46: 654.71313 | M46: 382.22447 | N46: 272.48866 | O46: Cumple
A47: 39 | B47: 010312 | C47: AMAZONAS | D47: MUNICIPALIDAD DISTRITAL DE YAMBRASBAMBA | E47: 451.74617 | F47: 2530.222915 | G47: 0.00145 | H47: 2078.476745 | I47: 17.85400675 | J47: Cumple | L47: 3187.95305 | M47: 2154.63212 | N47: 1033.32093 | O47: Cumple
A48: 40 | B48: 010401 | C48: AMAZONAS | D48: MUNICIPALIDAD PROVINCIAL DE CONDORCANQUI - NIEVA | E48: 1934.79743 | F48: 16874.42729 | G48: 2.38616 | H48: 14939.62986 | I48: 11.46585538 | J48: Cumple | L48: 18450.34409 | M48: 12180.17864 | N48: 6270.16545 | O48: Cumple
A49: 41 | B49: 010402 | C49: AMAZONAS | D49: MUNICIPALIDAD DISTRITAL DE EL CENEPA | E49: 58.16352 | F49: 4113.224318 | G49: 0.60467 | H49: 4055.060797 | I49: 1.414061464 | J49: Cumple | L49: 4259.37282 | M49: 3065.91964 | N49: 1193.45318 | O49: Cumple
A50: 42 | B50: 010403 | C50: AMAZONAS | D50: MUNICIPALIDAD DISTRITAL DE RIO SANTIAGO | E50: 1696.88588 | F50: 7027.894098 | G50: 1.03501 | H50: 5331.008218 | I50: 24.1450121 | J50: Cumple | L50: 8027.44869 | M50: 5205.38935 | N50: 2822.05934 | O50: Cumple
A51: 43 | B51: 010501 | C51: AMAZONAS | D51: MUNICIPALIDAD PROVINCIAL DE LUYA - LAMUD | E51: 1475.7151 | F51: 5659.619935 | G51: 0.00021 | H51: 4183.904835 | I51: 26.07445583 | J51: Cumple | L51: 5614.1492 | M51: 3175.96156 | N51: 2438.18764 | O51: Cumple
A52: 44 | B52: 010502 | C52: AMAZONAS | D52: MUNICIPALIDAD DISTRITAL DE CAMPORREDONDO | E52: 19.76181 | F52: 1998.121585 | G52: 0.00126 | H52: 1978.359775 | I52: 0.9890193944 | J52: Cumple | L52: 1771.17585 | M52: 1241.63471 | N52: 529.54114 | O52: Cumple
A53: 45 | B53: 010503 | C53: AMAZONAS | D53: MUNICIPALIDAD DISTRITAL DE COCABAMBA | E53: 1666.02324 | F53: 939.12593 | G53: 0.00041 | H53: 0 | I53: 177.4014737 | J53: No Cumple | L53: 965.94255 | M53: 442.20109 | N53: 523.74146 | O53: Cumple
A54: 46 | B54: 010504 | C54: AMAZONAS | D54: MUNICIPALIDAD DISTRITAL DE COLCAMAR | E54: 1229.33119 | F54: 691.750835 | G54: 0.00024 | H54: 0 | I54: 177.7130041 | J54: No Cumple | L54: 682.28864 | M54: 389.13435 | N54: 293.15429 | O54: Cumple
A55: 47 | B55: 010505 | C55: AMAZONAS | D55: MUNICIPALIDAD DISTRITAL DE CONILA | E55: 371.41637 | F55: 821.8343525 | G55: 0.00032 | H55: 450.4179825 | I55: 45.19358054 | J55: Cumple | L55: 650.59031 | M55: 481.02853 | N55: 169.56178 | O55: Cumple
A56: 48 | B56: 010506 | C56: AMAZONAS | D56: MUNICIPALIDAD DISTRITAL DE INGUILPATA | E56: 22.307 | F56: 555.0337625 | G56: 4e-05 | H56: 532.7267625 | I56: 4.019034788 | J56: Cumple | L56: 481.73412 | M56: 314.05049 | N56: 167.68363 | O56: Cumple
A57: 49 | B57: 010507 | C57: AMAZONAS | D57: MUNICIPALIDAD DISTRITAL DE LONGUITA | E57: 4.90058 | F57: 710.816245 | G57: 0.00021 | H57: 705.915665 | I57: 0.6894299384 | J57: Cumple | L57: 1135.94575 | M57: 582.64669 | N57: 553.29906 | O57: Cumple
A58: 50 | B58: 010508 | C58: AMAZONAS | D58: MUNICIPALIDAD DISTRITAL DE LONYA CHICO | E58: 18.70898 | F58: 683.4731625 | G58: 8e-05 | H58: 664.7641825 | I58: 2.737339376 | J58: Cumple | L58: 617.74725 | M58: 416.78051 | N58: 200.96674 | O58: Cumple
A59: 51 | B59: 010509 | C59: AMAZONAS | D59: MUNICIPALIDAD DISTRITAL DE LUYA | E59: 134.90663 | F59: 1203.197727 | G59: 0.00041 | H59: 1068.291097 | I59: 11.21234082 | J59: Cumple | L59: 1333.2725 | M59: 955.06657 | N59: 378.20593 | O59: Cumple
A60: 52 | B60: 010510 | C60: AMAZONAS | D60: MUNICIPALIDAD DISTRITAL DE LUYA VIEJO | E60: 46.85612 | F60: 501.07823 | G60: 6e-05 | H60: 454.22211 | I60: 9.351058816 | J60: Cumple | L60: 475.65484 | M60: 314.33154 | N60: 161.3233 | O60: Cumple
A61: 53 | B61: 010511 | C61: AMAZONAS | D61: MUNICIPALIDAD DISTRITAL DE MARIA | E61: 27.26865 | F61: 557.70505 | G61: 6e-05 | H61: 530.4364 | I61: 4.889439319 | J61: Cumple | L61: 482.07325 | M61: 303.52987 | N61: 178.54338 | O61: Cumple
A62: 54 | B62: 010512 | C62: AMAZONAS | D62: MUNICIPALIDAD DISTRITAL DE OCALLI | E62: 117.40369 | F62: 1398.937468 | G62: 0.00082 | H62: 1281.533778 | I62: 8.392347244 | J62: Cumple | L62: 2225.73091 | M62: 1079.85448 | N62: 1145.87643 | O62: Cumple
A63: 55 | B63: 010513 | C63: AMAZONAS | D63: MUNICIPALIDAD DISTRITAL DE OCUMAL | E63: 1200.24741 | F63: 1415.402645 | G63: 0.00078 | H63: 215.155235 | I63: 84.79900855 | J63: Cumple | L63: 1421.80515 | M63: 753.00896 | N63: 668.79619 | O63: Cumple
A64: 56 | B64: 010514 | C64: AMAZONAS | D64: MUNICIPALIDAD DISTRITAL DE PIZUQUIA | E64: 164.80834 | F64: 2155.064175 | G64: 0.00095 | H64: 1990.255835 | I64: 7.647491054 | J64: Cumple | L64: 2147.38089 | M64: 1230.13955 | N64: 917.24134 | O64: Cumple
A65: 57 | B65: 010515 | C65: AMAZONAS | D65: MUNICIPALIDAD DISTRITAL DE PROVIDENCIA | E65: 81.54603 | F65: 527.1899725 | G65: 0.00023 | H65: 445.6439425 | I65: 15.46805407 | J65: Cumple | L65: 545.51109 | M65: 419.29288 | N65: 126.21821 | O65: Cumple
A66: 58 | B66: 010516 | C66: AMAZONAS | D66: MUNICIPALIDAD DISTRITAL DE SAN CRISTOBAL DE OLTO | E66: 25.60458 | F66: 523.9875425 | G66: 0.00012 | H66: 498.3829625 | I66: 4.8864864 | J66: Cumple | L66: 487.87812 | M66: 304.8237 | N66: 183.05442 | O66: Cumple
A67: 59 | B67: 010517 | C67: AMAZONAS | D67: MUNICIPALIDAD DISTRITAL DE SAN FRANCISCO DE YESO | E67: 20.41101 | F67: 519.3250625 | G67: 0.00014 | H67: 498.9140525 | I67: 3.930295584 | J67: Cumple | L67: 482.90019 | M67: 350.64465 | N67: 132.25554 | O67: Cumple
A68: 60 | B68: 010518 | C68: AMAZONAS | D68: MUNICIPALIDAD DISTRITAL DE SAN JERONIMO DE PACLAS | E68: 37.6389 | F68: 537.13394 | G68: 0.00014 | H68: 499.49504 | I68: 7.007358351 | J68: Cumple | L68: 488.11258 | M68: 291.18793 | N68: 196.92465 | O68: Cumple
A69: 61 | B69: 010519 | C69: AMAZONAS | D69: MUNICIPALIDAD DISTRITAL DE SAN JUAN DE LOPECANCHA | E69: 76.69028 | F69: 626.684385 | G69: 8e-05 | H69: 549.994105 | I69: 12.23746464 | J69: Cumple | L69: 486.81921 | M69: 277.95846 | N69: 208.86075 | O69: Cumple
A70: 62 | B70: 010520 | C70: AMAZONAS | D70: MUNICIPALIDAD DISTRITAL DE SANTA CATALINA | E70: 49.48033 | F70: 713.821325 | G70: 0.00023 | H70: 664.340995 | I70: 6.931752844 | J70: Cumple | L70: 683.23478 | M70: 408.20281 | N70: 275.03197 | O70: Cumple
A71: 63 | B71: 010521 | C71: AMAZONAS | D71: MUNICIPALIDAD DISTRITAL DE SANTO TOMAS | E71: 56.23903 | F71: 1165.085648 | G71: 0.00057 | H71: 1108.846617 | I71: 4.82702968 | J71: Cumple | L71: 1150.97218 | M71: 997.92996 | N71: 153.04222 | O71: Cumple
A72: 64 | B72: 010522 | C72: AMAZONAS | D72: MUNICIPALIDAD DISTRITAL DE TINGO | E72: 2.55005 | F72: 583.186285 | G72: 0.00014 | H72: 580.636235 | I72: 0.4372616547 | J72: Cumple | L72: 535.80595 | M72: 678.42561 | N72: -142.61966 | O72: No Cumple
A73: 65 | B73: 010523 | C73: AMAZONAS | D73: MUNICIPALIDAD DISTRITAL DE TRITA | E73: 3.80012 | F73: 503.2200775 | G73: 0.00021 | H73: 499.4199575 | I73: 0.7551606484 | J73: Cumple | L73: 485.77996 | M73: 337.99143 | N73: 147.78853 | O73: Cumple
A74: 66 | B74: 010601 | C74: AMAZONAS | D74: MUNICIPALIDAD PROVINCIAL DE RODRIGUEZ DE MENDOZA - SAN NICOLAS | E74: 5148.2629 | F74: 5705.311132 | G74: 0.00029 | H74: 557.0482325 | I74: 90.23632157 | J74: Cumple | L74: 3956.13473 | M74: 3270.56186 | N74: 685.57287 | O74: Cumple
A75: 67 | B75: 010602 | C75: AMAZONAS | D75: MUNICIPALIDAD DISTRITAL DE CHIRIMOTO | E75: 2108.40831 | F75: 1096.641455 | G75: 0.00032 | H75: 0 | I75: 192.2604968 | J75: No Cumple | L75: 1431.0588 | M75: 1172.13733 | N75: 258.92147 | O75: Cumple
A76: 68 | B76: 010603 | C76: AMAZONAS | D76: MUNICIPALIDAD DISTRITAL DE COCHAMAL | E76: 36.83625 | F76: 457.7212825 | G76: 8e-05 | H76: 420.8850325 | I76: 8.047746829 | J76: Cumple | L76: 477.24939 | M76: 321.76128 | N76: 155.48811 | O76: Cumple
A77: 69 | B77: 010604 | C77: AMAZONAS | D77: MUNICIPALIDAD DISTRITAL DE HUAMBO | E77: 347.15913 | F77: 720.5273675 | G77: 0.00041 | H77: 373.3682375 | I77: 48.18125524 | J77: Cumple | L77: 779.17996 | M77: 566.97804 | N77: 212.20192 | O77: Cumple
A78: 70 | B78: 010605 | C78: AMAZONAS | D78: MUNICIPALIDAD DISTRITAL DE LIMABAMBA | E78: 5800.25143 | F78: 858.19513 | G78: 0.00049 | H78: 0 | I78: 675.8662718 | J78: No Cumple | L78: 937.4163 | M78: 648.37674 | N78: 289.03956 | O78: Cumple
A79: 71 | B79: 010606 | C79: AMAZONAS | D79: MUNICIPALIDAD DISTRITAL DE LONGAR | E79: 2168.82127 | F79: 543.9113025 | G79: 0.00017 | H79: 0 | I79: 398.7453947 | J79: No Cumple | L79: 503.79832 | M79: 431.3321 | N79: 72.46622 | O79: Cumple
A80: 72 | B80: 010607 | C80: AMAZONAS | D80: MUNICIPALIDAD DISTRITAL DE MARISCAL BENAVIDES | E80: 750.21224 | F80: 1015.908298 | G80: 8e-05 | H80: 265.6960575 | I80: 73.84645266 | J80: Cumple | L80: 574.32427 | M80: 362.97328 | N80: 211.35099 | O80: Cumple
A81: 73 | B81: 010608 | C81: AMAZONAS | D81: MUNICIPALIDAD DISTRITAL DE MILPUC | E81: 99.54424 | F81: 508.39947 | G81: 0.0001 | H81: 408.85523 | I81: 19.579926 | J81: Cumple | L81: 475.93492 | M81: 366.22296 | N81: 109.71196 | O81: Cumple
A82: 74 | B82: 010609 | C82: AMAZONAS | D82: MUNICIPALIDAD DISTRITAL DE OMIA | E82: 62.36749 | F82: 3986.36158 | G82: 0.0015 | H82: 3923.99409 | I82: 1.564521651 | J82: Cumple | L82: 4363.66839 | M82: 2211.1356 | N82: 2152.53279 | O82: Cumple
A83: 75 | B83: 010610 | C83: AMAZONAS | D83: MUNICIPALIDAD DISTRITAL DE SANTA ROSA | E83: 7.81594 | F83: 482.216245 | G83: 6e-05 | H83: 474.400305 | I83: 1.620837141 | J83: Cumple | L83: 495.96433 | M83: 344.8014 | N83: 151.16293 | O83: Cumple
A84: 76 | B84: 010611 | C84: AMAZONAS | D84: MUNICIPALIDAD DISTRITAL DE TOTORA | E84: 0.017 | F84: 559.3329 | G84: 6e-05 | H84: 559.3159 | I84: 0.003039334893 | J84: Cumple | L84: 512.70605 | M84: 297.44277 | N84: 215.26328 | O84: Cumple
A85: 77 | B85: 010612 | C85: AMAZONAS | D85: MUNICIPALIDAD DISTRITAL DE VISTA ALEGRE | E85: 51.03813 | F85: 1140.267942 | G85: 0.00061 | H85: 1089.229812 | I85: 4.475976926 | J85: Cumple | L85: 1111.28585 | M85: 567.30547 | N85: 543.98038 | O85: Cumple
A86: 78 | B86: 010701 | C86: AMAZONAS | D86: MUNICIPALIDAD PROVINCIA DE UTCUBAMBA - BAGUA GRANDE | E86: 3908.94999 | F86: 26129.47681 | G86: 0.98475 | H86: 22220.52682 | I86: 14.95992445 | J86: Cumple | L86: 27094.40268 | M86: 16548.64113 | N86: 10545.76155 | O86: Cumple
A87: 79 | B87: 010702 | C87: AMAZONAS | D87: MUNICIPALIDAD DISTRITAL DE CAJARURO | E87: 1927.16287 | F87: 9815.739677 | G87: 0.79954 | H87: 7888.576808 | I87: 19.63339426 | J87: Cumple | L87: 10402.31297 | M87: 5923.64098 | N87: 4478.67199 | O87: Cumple
A88: 80 | B88: 010703 | C88: AMAZONAS | D88: MUNICIPALIDAD DISTRITAL DE CUMBA | E88: 432.9226 | F88: 2971.57159 | G88: 0.00157 | H88: 2538.64899 | I88: 14.56880936 | J88: Cumple | L88: 3048.66091 | M88: 2030.68011 | N88: 1017.9808 | O88: Cumple
A89: 81 | B89: 010704 | C89: AMAZONAS | D89: MUNICIPALIDAD DISTRITAL DE EL MILAGRO | E89: 81.58861 | F89: 2618.22332 | G89: 0.0009 | H89: 2536.63471 | I89: 3.116182236 | J89: Cumple | L89: 2791.7479 | M89: 2143.97401 | N89: 647.77389 | O89: Cumple
A90: 82 | B90: 010705 | C90: AMAZONAS | D90: MUNICIPALIDAD DISTRITAL DE JAMALCA | E90: 757.95748 | F90: 3501.896265 | G90: 0.00138 | H90: 2743.938785 | I90: 21.64420139 | J90: Cumple | L90: 3386.24502 | M90: 2124.74956 | N90: 1261.49546 | O90: Cumple
A91: 83 | B91: 010706 | C91: AMAZONAS | D91: MUNICIPALIDAD DISTRITAL DE LONYA GRANDE | E91: 895.88496 | F91: 3380.54842 | G91: 0.00179 | H91: 2484.66346 | I91: 26.50117226 | J91: Cumple | L91: 3687.83622 | M91: 1961.20463 | N91: 1726.63159 | O91: Cumple
A92: 84 | B92: 010707 | C92: AMAZONAS | D92: MUNICIPALIDAD DISTRITAL DE YAMON | E92: 730.9356 | F92: 1392.966575 | G92: 0.00044 | H92: 662.030975 | I92: 52.47330504 | J92: Cumple | L92: 1395.1987 | M92: 1012.22176 | N92: 382.97694 | O92: Cumple
A93: 85 | B93: 020101 | C93: ANCASH | D93: MUNICIPALIDAD PROVINCIAL DE HUARAZ | E93: 19326.22811 | F93: 37808.65706 | G93: 26591.10715 | H93: 18482.42895 | I93: 51.11588089 | J93: Cumple | L93: 49524.80939 | M93: 27101.1135 | N93: 22423.69589 | O93: Cumple
A94: 86 | B94: 020102 | C94: ANCASH | D94: MUNICIPALIDAD DISTRITAL DE COCHABAMBA | E94: 127.96829 | F94: 1852.681885 | G94: 2558.84951 | H94: 2430.88122 | I94: 5.001008832 | J94: Cumple | L94: 2924.80551 | M94: 809.23965 | N94: 2115.56586 | O94: Cumple
A95: 87 | B95: 020103 | C95: ANCASH | D95: MUNICIPALIDAD DISTRITAL DE COLCABAMBA | E95: 54.65027 | F95: 837.1203225 | G95: 773.51017 | H95: 782.4700525 | I95: 6.528364983 | J95: Cumple | L95: 1188.73924 | M95: 568.36346 | N95: 620.37578 | O95: Cumple
A96: 88 | B96: 020104 | C96: ANCASH | D96: MUNICIPALIDAD DISTRITAL DE HUANCHAY | E96: 65.98023 | F96: 1688.535162 | G96: 2226.51157 | H96: 2160.53134 | I96: 2.963390395 | J96: Cumple | L96: 2534.67335 | M96: 634.47369 | N96: 1900.19966 | O96: Cumple
A97: 89 | B97: 020105 | C97: ANCASH | D97: MUNICIPALIDAD DISTRITAL DE INDEPENDENCIA | E97: 3780.94272 | F97: 31078.82221 | G97: 39138.78392 | H97: 35357.8412 | I97: 9.660347975 | J97: Cumple | L97: 48484.60471 | M97: 15710.4913 | N97: 32774.11341 | O97: Cumple
A98: 90 | B98: 020106 | C98: ANCASH | D98: MUNICIPALIDAD DISTRITAL DE JANGAS | E98: 83.43778 | F98: 3639.37289 | G98: 6326.31549 | H98: 6242.87771 | I98: 1.318900079 | J98: Cumple | L98: 5413.86212 | M98: 2074.41611 | N98: 3339.44601 | O98: Cumple
A99: 91 | B99: 020107 | C99: ANCASH | D99: MUNICIPALIDAD DISTRITAL DE LA LIBERTAD | E99: 51.65966 | F99: 1327.870158 | G99: 1153.4342 | H99: 1276.210498 | I99: 3.890415016 | J99: Cumple | L99: 1631.01314 | M99: 773.10976 | N99: 857.90338 | O99: Cumple
A100: 92 | B100: 020108 | C100: ANCASH | D100: MUNICIPALIDAD DISTRITAL DE OLLEROS | E100: 874.02506 | F100: 1401.986392 | G100: 1730.49839 | H100: 856.47333 | I100: 50.50712934 | J100: Cumple | L100: 2089.96117 | M100: 851.20856 | N100: 1238.75261 | O100: Cumple
A101: 93 | B101: 020109 | C101: ANCASH | D101: MUNICIPALIDAD DISTRITAL DE PAMPAS | E101: 1.24517 | F101: 1465.189048 | G101: 1499.92944 | H101: 1498.68427 | I101: 0.08301523837 | J101: Cumple | L101: 1855.55616 | M101: 619.92631 | N101: 1235.62985 | O101: Cumple
A102: 94 | B102: 020110 | C102: ANCASH | D102: MUNICIPALIDAD DISTRITAL DE PARIACOTO | E102: 303.47976 | F102: 2977.01639 | G102: 3968.18645 | H102: 3664.70669 | I102: 7.647820077 | J102: Cumple | L102: 4617.79074 | M102: 3325.92925 | N102: 1291.86149 | O102: Cumple
A103: 95 | B103: 020111 | C103: ANCASH | D103: MUNICIPALIDAD DISTRITAL DE PIRA | E103: 483.84488 | F103: 3432.500783 | G103: 4807.0046 | H103: 4323.15972 | I103: 10.06541329 | J103: Cumple | L103: 6040.04412 | M103: 1496.71722 | N103: 4543.3269 | O103: Cumple
A104: 96 | B104: 020112 | C104: ANCASH | D104: MUNICIPALIDAD DISTRITAL DE TARICA | E104: 600.85656 | F104: 3214.303643 | G104: 4200.26662 | H104: 3599.41006 | I104: 14.30520046 | J104: Cumple | L104: 4936.50084 | M104: 1931.12528 | N104: 3005.37556 | O104: Cumple
A105: 97 | B105: 020201 | C105: ANCASH | D105: MUNICIPALIDAD PROVINCIAL DE AIJA | E105: 121.98271 | F105: 2771.536472 | G105: 1404.19305 | H105: 2649.553763 | I105: 4.401266634 | J105: Cumple | L105: 3884.71342 | M105: 1507.75912 | N105: 2376.9543 | O105: Cumple
A106: 98 | B106: 020202 | C106: ANCASH | D106: MUNICIPALIDAD DISTRITAL DE CORIS | E106: 23.18924 | F106: 1996.218983 | G106: 2579.49563 | H106: 2556.30639 | I106: 0.8989834962 | J106: Cumple | L106: 3372.97748 | M106: 1106.6114 | N106: 2266.36608 | O106: Cumple
A107: 99 | B107: 020203 | C107: ANCASH | D107: MUNICIPALIDAD DISTRITAL DE HUACLLAN | E107: 34.84227 | F107: 867.92379 | G107: 760.64043 | H107: 833.08152 | I107: 4.014438871 | J107: Cumple | L107: 1241.44281 | M107: 462.01376 | N107: 779.42905 | O107: Cumple
A108: 100 | B108: 020204 | C108: ANCASH | D108: MUNICIPALIDAD DISTRITAL DE LA MERCED | E108: 58.04175 | F108: 2336.728675 | G108: 2731.11341 | H108: 2673.07166 | I108: 2.12520468 | J108: Cumple | L108: 3841.68637 | M108: 1216.17545 | N108: 2625.51092 | O108: Cumple
A109: 101 | B109: 020205 | C109: ANCASH | D109: MUNICIPALIDAD DISTRITAL DE SUCCHA | E109: 5.97655 | F109: 985.7383025 | G109: 782.72367 | H109: 979.7617525 | I109: 0.6063018942 | J109: Cumple | L109: 1330.3963 | M109: 508.28721 | N109: 822.10909 | O109: Cumple
A110: 102 | B110: 020301 | C110: ANCASH | D110: MUNICIPALIDAD PROVINCIAL DE ANTONIO RAYMONDI - LLAMELLIN | E110: 290.38674 | F110: 3787.683553 | G110: 2505.85749 | H110: 3497.296813 | I110: 7.666605089 | J110: Cumple | L110: 5274.55861 | M110: 2682.64861 | N110: 2591.91 | O110: Cumple
A111: 103 | B111: 020302 | C111: ANCASH | D111: MUNICIPALIDAD DISTRITAL DE ACSO | E111: 57.18643 | F111: 1517.214785 | G111: 1711.4275 | H111: 1654.24107 | I111: 3.341446249 | J111: Cumple | L111: 2041.2035 | M111: 1170.83379 | N111: 870.36971 | O111: Cumple
A112: 104 | B112: 020303 | C112: ANCASH | D112: MUNICIPALIDAD DISTRITAL DE CHACCHO | E112: 379.35427 | F112: 1269.033635 | G112: 1573.94675 | H112: 1194.59248 | I112: 24.1021032 | J112: Cumple | L112: 1887.24429 | M112: 535.9271 | N112: 1351.31719 | O112: Cumple
A113: 105 | B113: 020304 | C113: ANCASH | D113: MUNICIPALIDAD DISTRITAL DE CHINGAS | E113: 65.40111 | F113: 1257.69329 | G113: 1531.09463 | H113: 1465.69352 | I113: 4.271526313 | J113: Cumple | L113: 1904.08226 | M113: 855.38046 | N113: 1048.7018 | O113: Cumple
A114: 106 | B114: 020305 | C114: ANCASH | D114: MUNICIPALIDAD DISTRITAL DE MIRGAS | E114: 133.03946 | F114: 3636.507092 | G114: 5335.48871 | H114: 5202.44925 | I114: 2.493482176 | J114: Cumple | L114: 5955.45557 | M114: 1699.05672 | N114: 4256.39885 | O114: Cumple
A115: 107 | B115: 020306 | C115: ANCASH | D115: MUNICIPALIDAD DISTRITAL DE SAN JUAN DE RONTOY | E115: 4.96712 | F115: 1204.684368 | G115: 1517.35902 | H115: 1512.3919 | I115: 0.327352982 | J115: Cumple | L115: 1827.71539 | M115: 778.00026 | N115: 1049.71513 | O115: Cumple
A116: 108 | B116: 020401 | C116: ANCASH | D116: MUNICIPALIDAD PROVINCIAL DE ASUNCION - CHACAS | E116: 1361.94343 | F116: 4440.34044 | G116: 3932.11294 | H116: 3078.39701 | I116: 30.67204978 | J116: Cumple | L116: 6516.52709 | M116: 2652.57818 | N116: 3863.94891 | O116: Cumple
A117: 109 | B117: 020402 | C117: ANCASH | D117: MUNICIPALIDAD DISTRITAL DE ACOCHACA | E117: 61.9902 | F117: 2385.952445 | G117: 3146.17545 | H117: 3084.18525 | I117: 1.970335125 | J117: Cumple | L117: 3610.92402 | M117: 1716.26418 | N117: 1894.65984 | O117: Cumple
A118: 110 | B118: 020501 | C118: ANCASH | D118: MUNICIPALIDAD PROVINCIAL DE BOLOGNESI - CHIQUIAN | E118: 1480.022 | F118: 4103.301685 | G118: 1885.82364 | H118: 2623.279685 | I118: 36.06905155 | J118: Cumple | L118: 5199.34626 | M118: 3168.27445 | N118: 2031.07181 | O118: Cumple
A119: 111 | B119: 020502 | C119: ANCASH | D119: MUNICIPALIDAD DISTRITAL DE ABELARDO PARDO LAZAMETA | E119: 136.81984 | F119: 1521.36221 | G119: 1531.50225 | H119: 1394.68241 | I119: 8.933701534 | J119: Cumple | L119: 2108.73751 | M119: 521.62788 | N119: 1587.10963 | O119: Cumple
A120: 112 | B120: 020503 | C120: ANCASH | D120: MUNICIPALIDAD DISTRITAL DE ANTONIO RAYMONDI | E120: 916.11011 | F120: 1306.70487 | G120: 1021.77972 | H120: 390.59476 | I120: 70.10841783 | J120: Cumple | L120: 2243.9496 | M120: 801.93515 | N120: 1442.01445 | O120: Cumple
A121: 113 | B121: 020504 | C121: ANCASH | D121: MUNICIPALIDAD DISTRITAL DE AQUIA | E121: 354.89528 | F121: 2521.914985 | G121: 2521.55822 | H121: 2167.019705 | I121: 14.07245217 | J121: Cumple | L121: 3704.14285 | M121: 643.59519 | N121: 3060.54766 | O121: Cumple
A122: 114 | B122: 020505 | C122: ANCASH | D122: MUNICIPALIDAD DISTRITAL DE CAJACAY | E122: 40.75733 | F122: 1510.332238 | G122: 1566.1308 | H122: 1525.37347 | I122: 2.602421841 | J122: Cumple | L122: 2235.81517 | M122: 668.5631 | N122: 1567.25207 | O122: Cumple
A123: 115 | B123: 020506 | C123: ANCASH | D123: MUNICIPALIDAD DISTRITAL DE CANIS | E123: 135.12538 | F123: 1282.048937 | G123: 1574.48507 | H123: 1439.35969 | I123: 8.582195066 | J123: Cumple | L123: 2129.20668 | M123: 614.55837 | N123: 1514.64831 | O123: Cumple
A124: 116 | B124: 020507 | C124: ANCASH | D124: MUNICIPALIDAD DISTRITAL DE COLQUIOC | E124: 3134.259 | F124: 2549.178833 | G124: 3267.66657 | H124: 133.40757 | I124: 95.91734447 | J124: Cumple | L124: 4486.44185 | M124: 1115.30518 | N124: 3371.13667 | O124: Cumple
A125: 117 | B125: 020508 | C125: ANCASH | D125: MUNICIPALIDAD DISTRITAL DE HUALLANCA | E125: 569.23664 | F125: 7443.478108 | G125: 8480.80374 | H125: 7911.5671 | I125: 6.712060053 | J125: Cumple | L125: 13207.3382 | M125: 6230.27189 | N125: 6977.06631 | O125: Cumple
A126: 118 | B126: 020509 | C126: ANCASH | D126: MUNICIPALIDAD DISTRITAL DE HUASTA | E126: 50.67744 | F126: 2901.030638 | G126: 3147.12607 | H126: 3096.44863 | I126: 1.610276769 | J126: Cumple | L126: 4746.81983 | M126: 706.15393 | N126: 4040.6659 | O126: Cumple
A127: 119 | B127: 020510 | C127: ANCASH | D127: MUNICIPALIDAD DISTRITAL DE HUAYLLACAYAN | E127: 1198.34206 | F127: 1221.433683 | G127: 1260.29079 | H127: 61.94873 | I127: 95.08456854 | J127: Cumple | L127: 1782.53171 | M127: 537.977 | N127: 1244.55471 | O127: Cumple
A128: 120 | B128: 020511 | C128: ANCASH | D128: MUNICIPALIDAD DISTRITAL DE LA PRIMAVERA | E128: 77.38245 | F128: 1115.615788 | G128: 842.10294 | H128: 1038.233338 | I128: 6.936299295 | J128: Cumple | L128: 2009.90961 | M128: 463.98169 | N128: 1545.92792 | O128: Cumple
A129: 121 | B129: 020512 | C129: ANCASH | D129: MUNICIPALIDAD DISTRITAL DE MANGAS | E129: 66.78068 | F129: 848.1032675 | G129: 690.20223 | H129: 781.3225875 | I129: 7.874121296 | J129: Cumple | L129: 1173.83454 | M129: 480.27129 | N129: 693.56325 | O129: Cumple
A130: 122 | B130: 020513 | C130: ANCASH | D130: MUNICIPALIDAD DISTRITAL DE PACLLON | E130: 2449.63832 | F130: 1881.302982 | G130: 1977.2477 | H130: 0 | I130: 123.8913223 | J130: No Cumple | L130: 3347.79483 | M130: 601.17669 | N130: 2746.61814 | O130: Cumple
A131: 123 | B131: 020514 | C131: ANCASH | D131: MUNICIPALIDAD DISTRITAL DE SAN MIGUEL DE CORPANQUI | E131: 70.53841 | F131: 1076.517085 | G131: 1217.60979 | H131: 1147.07138 | I131: 5.79318683 | J131: Cumple | L131: 1746.2714 | M131: 466.03864 | N131: 1280.23276 | O131: Cumple
A132: 124 | B132: 020515 | C132: ANCASH | D132: MUNICIPALIDAD DISTRITAL DE TICLLOS | E132: 1763.94787 | F132: 1173.788535 | G132: 1317.84369 | H132: 0 | I132: 133.8510692 | J132: No Cumple | L132: 1854.53101 | M132: 608.93289 | N132: 1245.59812 | O132: Cumple
A133: 125 | B133: 020601 | C133: ANCASH | D133: MUNICIPALIDAD PROVINCIAL DE CARHUAZ | E133: 1926.81956 | F133: 12370.56868 | G133: 10331.1638 | H133: 10443.74912 | I133: 15.57583657 | J133: Cumple | L133: 18516.95853 | M133: 7996.24398 | N133: 10520.71455 | O133: Cumple
A134: 126 | B134: 020602 | C134: ANCASH | D134: MUNICIPALIDAD DISTRITAL DE ACOPAMPA | E134: 78.02589 | F134: 1415.919818 | G134: 1610.77634 | H134: 1532.75045 | I134: 4.843992804 | J134: Cumple | L134: 1971.36887 | M134: 725.69972 | N134: 1245.66915 | O134: Cumple
A135: 127 | B135: 020603 | C135: ANCASH | D135: MUNICIPALIDAD DISTRITAL DE AMASHCA | E135: 87.44076 | F135: 1290.328423 | G135: 1442.91971 | H135: 1355.47895 | I135: 6.059987912 | J135: Cumple | L135: 1799.71196 | M135: 634.37825 | N135: 1165.33371 | O135: Cumple
A136: 128 | B136: 020604 | C136: ANCASH | D136: MUNICIPALIDAD DISTRITAL DE ANTA | E136: 12.48591 | F136: 1914.943212 | G136: 1940.82779 | H136: 1928.34188 | I136: 0.6433291024 | J136: Cumple | L136: 3566.80841 | M136: 916.41454 | N136: 2650.39387 | O136: Cumple
A137: 129 | B137: 020605 | C137: ANCASH | D137: MUNICIPALIDAD DISTRITAL DE ATAQUERO | E137: 118.18069 | F137: 1104.86363 | G137: 1298.23339 | H137: 1180.0527 | I137: 9.103192917 | J137: Cumple | L137: 1643.45208 | M137: 632.5061 | N137: 1010.94598 | O137: Cumple
A138: 130 | B138: 020606 | C138: ANCASH | D138: MUNICIPALIDAD DISTRITAL DE MARCARA | E138: 574.87602 | F138: 6041.634627 | G138: 7540.95889 | H138: 6966.08287 | I138: 7.623380904 | J138: Cumple | L138: 10264.53249 | M138: 3303.35273 | N138: 6961.17976 | O138: Cumple
A139: 131 | B139: 020607 | C139: ANCASH | D139: MUNICIPALIDAD DISTRITAL DE PARIAHUANCA | E139: 40.59907 | F139: 1571.307815 | G139: 1171.64344 | H139: 1530.708745 | I139: 2.583775732 | J139: Cumple | L139: 2384.97236 | M139: 755.17275 | N139: 1629.79961 | O139: Cumple
A140: 132 | B140: 020608 | C140: ANCASH | D140: MUNICIPALIDAD DISTRITAL DE SAN MIGUEL DE ACO | E140: 65.35734 | F140: 1466.019132 | G140: 1563.74048 | H140: 1498.38314 | I140: 4.179551584 | J140: Cumple | L140: 2181.85801 | M140: 876.44593 | N140: 1305.41208 | O140: Cumple
A141: 133 | B141: 020609 | C141: ANCASH | D141: MUNICIPALIDAD DISTRITAL DE SHILLA | E141: 58.8857 | F141: 2585.014262 | G141: 2362.12598 | H141: 2526.128562 | I141: 2.277964221 | J141: Cumple | L141: 2850.2456 | M141: 963.71191 | N141: 1886.53369 | O141: Cumple
A142: 134 | B142: 020610 | C142: ANCASH | D142: MUNICIPALIDAD DISTRITAL DE TINCO | E142: 2301.48189 | F142: 2164.718025 | G142: 1773.37805 | H142: 0 | I142: 106.3178605 | J142: No Cumple | L142: 2241.19716 | M142: 1089.33358 | N142: 1151.86358 | O142: Cumple
A143: 135 | B143: 020611 | C143: ANCASH | D143: MUNICIPALIDAD DISTRITAL DE YUNGAR | E143: 230.61392 | F143: 1925.244933 | G143: 2333.09138 | H143: 2102.47746 | I143: 9.884478678 | J143: Cumple | L143: 2910.95865 | M143: 1151.20228 | N143: 1759.75637 | O143: Cumple
A144: 136 | B144: 020701 | C144: ANCASH | D144: MUNICIPALIDAD PROVINCIAL DE CARLOS FERMIN FITZCARRALD | E144: 3834.33128 | F144: 13310.50986 | G144: 13818.47123 | H144: 9984.13995 | I144: 27.74786889 | J144: Cumple | L144: 19865.12746 | M144: 9682.5188 | N144: 10182.60866 | O144: Cumple
A145: 137 | B145: 020702 | C145: ANCASH | D145: MUNICIPALIDAD DISTRITAL DE SAN NICOLAS | E145: 64.81869 | F145: 3540.56947 | G145: 4020.68893 | H145: 3955.87024 | I145: 1.612128944 | J145: Cumple | L145: 5221.37345 | M145: 2221.35179 | N145: 3000.02166 | O145: Cumple
A146: 138 | B146: 020703 | C146: ANCASH | D146: MUNICIPALIDAD DISTRITAL DE YAUYA | E146: 366.20226 | F146: 5136.180017 | G146: 5928.16487 | H146: 5561.96261 | I146: 6.177329208 | J146: Cumple | L146: 7668.93689 | M146: 3294.4283 | N146: 4374.50859 | O146: Cumple
A147: 139 | B147: 020801 | C147: ANCASH | D147: MUNICIPALIDAD PROVINCIAL DE CASMA | E147: 8874.9011 | F147: 18725.57758 | G147: 17529.22744 | H147: 9850.676485 | I147: 47.39453862 | J147: Cumple | L147: 28238.80664 | M147: 19766.72043 | N147: 8472.08621 | O147: Cumple
A148: 140 | B148: 020802 | C148: ANCASH | D148: MUNICIPALIDAD DISTRITAL DE BUENA VISTA ALTA | E148: 511.86966 | F148: 3049.73211 | G148: 3690.82616 | H148: 3178.9565 | I148: 13.86870142 | J148: Cumple | L148: 4728.29722 | M148: 1822.88281 | N148: 2905.41441 | O148: Cumple
A149: 141 | B149: 020803 | C149: ANCASH | D149: MUNICIPALIDAD DISTRITAL DE COMANDANTE NOEL | E149: 380.18301 | F149: 2138.5447 | G149: 2255.0766 | H149: 1874.89359 | I149: 16.8589843 | J149: Cumple | L149: 3306.1722 | M149: 1722.62203 | N149: 1583.55017 | O149: Cumple
A150: 142 | B150: 020804 | C150: ANCASH | D150: MUNICIPALIDAD DISTRITAL DE YAUTAN | E150: 494.45525 | F150: 4279.198623 | G150: 5118.61422 | H150: 4624.15897 | I150: 9.659943663 | J150: Cumple | L150: 6651.75342 | M150: 2889.25629 | N150: 3762.49713 | O150: Cumple
A151: 143 | B151: 020901 | C151: ANCASH | D151: MUNICIPALIDAD PROVINCIAL DE CORONGO | E151: 119.2978 | F151: 2301.597377 | G151: 879.91157 | H151: 2182.299577 | I151: 5.183261033 | J151: Cumple | L151: 2079.22063 | M151: 1409.05982 | N151: 670.16081 | O151: Cumple
A152: 144 | B152: 020902 | C152: ANCASH | D152: MUNICIPALIDAD DISTRITAL DE ACO | E152: 236.05316 | F152: 733.07823 | G152: 489.86425 | H152: 497.02507 | I152: 32.20026872 | J152: Cumple | L152: 910.67889 | M152: 500.81513 | N152: 409.86376 | O152: Cumple
A153: 145 | B153: 020903 | C153: ANCASH | D153: MUNICIPALIDAD DISTRITAL DE BAMBAS | E153: 15.90855 | F153: 831.94408 | G153: 600.00081 | H153: 816.03553 | I153: 1.912213859 | J153: Cumple | L153: 1098.74465 | M153: 556.50881 | N153: 542.23584 | O153: Cumple
A154: 146 | B154: 020904 | C154: ANCASH | D154: MUNICIPALIDAD DISTRITAL DE CUSCA | E154: 425.21705 | F154: 2685.37164 | G154: 2519.96482 | H154: 2260.15459 | I154: 15.83456992 | J154: Cumple | L154: 3292.40792 | M154: 1377.12975 | N154: 1915.27817 | O154: Cumple
A155: 147 | B155: 020905 | C155: ANCASH | D155: MUNICIPALIDAD DISTRITAL DE LA PAMPA | E155: 442.14045 | F155: 871.77905 | G155: 558.11651 | H155: 429.6386 | I155: 50.71703088 | J155: Cumple | L155: 965.01297 | M155: 443.15767 | N155: 521.8553 | O155: Cumple
A156: 148 | B156: 020906 | C156: ANCASH | D156: MUNICIPALIDAD DISTRITAL DE YANAC | E156: 34.26918 | F156: 784.265965 | G156: 479.38718 | H156: 749.996785 | I156: 4.369586534 | J156: Cumple | L156: 952.28773 | M156: 685.45997 | N156: 266.82776 | O156: Cumple
A157: 149 | B157: 020907 | C157: ANCASH | D157: MUNICIPALIDAD DISTRITAL DE YUPAN | E157: 67.30903 | F157: 668.7436175 | G157: 413.45893 | H157: 601.4345875 | I157: 10.06499774 | J157: Cumple | L157: 879.25685 | M157: 427.79451 | N157: 451.46234 | O157: Cumple
A158: 150 | B158: 021001 | C158: ANCASH | D158: MUNICIPALIDAD PROVINCIAL DE HUARI | E158: 7761.56902 | F158: 32914.95633 | G158: 51184.25685 | H158: 43422.68783 | I158: 15.16397716 | J158: Cumple | L158: 56552.34748 | M158: 11344.61396 | N158: 45207.73352 | O158: Cumple
A159: 151 | B159: 021002 | C159: ANCASH | D159: MUNICIPALIDAD DISTRITAL DE ANRA | E159: 678.69513 | F159: 6009.413138 | G159: 11067.0251 | H159: 10388.32997 | I159: 6.132588694 | J159: Cumple | L159: 10907.23124 | M159: 3320.30553 | N159: 7586.92571 | O159: Cumple
A160: 152 | B160: 021003 | C160: ANCASH | D160: MUNICIPALIDAD DISTRITAL DE CAJAY | E160: 398.42824 | F160: 9741.37503 | G160: 18723.1223 | H160: 18324.69406 | I160: 2.128001055 | J160: Cumple | L160: 18230.4966 | M160: 3621.46867 | N160: 14609.02793 | O160: Cumple
A161: 153 | B161: 021004 | C161: ANCASH | D161: MUNICIPALIDAD DISTRITAL DE CHAVIN DE HUANTAR | E161: 7004.05206 | F161: 32002.87826 | G161: 61882.32792 | H161: 54878.27586 | I161: 11.31833965 | J161: Cumple | L161: 61455.08031 | M161: 12369.01525 | N161: 49086.06506 | O161: Cumple
A162: 154 | B162: 021005 | C162: ANCASH | D162: MUNICIPALIDAD DISTRITAL DE HUACACHI | E162: 768.07131 | F162: 6713.917105 | G162: 12820.17206 | H162: 12052.10075 | I162: 5.991115458 | J162: Cumple | L162: 12600.32776 | M162: 2461.80409 | N162: 10138.52367 | O162: Cumple
A163: 155 | B163: 021006 | C163: ANCASH | D163: MUNICIPALIDAD DISTRITAL DE HUACCHIS | E163: 437.39086 | F163: 7090.178295 | G163: 13395.23019 | H163: 12957.83933 | I163: 3.265273189 | J163: Cumple | L163: 13334.33012 | M163: 4584.30146 | N163: 8750.02866 | O163: Cumple
A164: 156 | B164: 021007 | C164: ANCASH | D164: MUNICIPALIDAD DISTRITAL DE HUACHIS | E164: 1617.47088 | F164: 14333.78436 | G164: 27416.44628 | H164: 25798.9754 | I164: 5.89963726 | J164: Cumple | L164: 26536.05004 | M164: 5852.20507 | N164: 20683.84497 | O164: Cumple
A165: 157 | B165: 021008 | C165: ANCASH | D165: MUNICIPALIDAD DISTRITAL DE HUANTAR | E165: 4173.56732 | F165: 9076.820668 | G165: 17684.23848 | H165: 13510.67116 | I165: 23.60049218 | J165: Cumple | L165: 17699.47208 | M165: 1903.07079 | N165: 15796.40129 | O165: Cumple
A166: 158 | B166: 021009 | C166: ANCASH | D166: MUNICIPALIDAD DISTRITAL DE MASIN | E166: 447.96518 | F166: 6154.790263 | G166: 11556.21119 | H166: 11108.24601 | I166: 3.876401812 | J166: Cumple | L166: 11384.44036 | M166: 1577.03344 | N166: 9807.40692 | O166: Cumple
A167: 159 | B167: 021010 | C167: ANCASH | D167: MUNICIPALIDAD DISTRITAL DE PAUCAS | E167: 17.36258 | F167: 6998.84923 | G167: 13255.5815 | H167: 13238.21892 | I167: 0.1309831636 | J167: Cumple | L167: 13126.92702 | M167: 2435.94214 | N167: 10690.98488 | O167: Cumple
A168: 160 | B168: 021011 | C168: ANCASH | D168: MUNICIPALIDAD DISTRITAL DE PONTO | E168: 625.17105 | F168: 13396.41489 | G168: 25922.16688 | H168: 25296.99583 | I168: 2.41172373 | J168: Cumple | L168: 25244.95234 | M168: 4828.67853 | N168: 20416.27381 | O168: Cumple
A169: 161 | B169: 021012 | C169: ANCASH | D169: MUNICIPALIDAD DISTRITAL DE RAHUAPAMPA | E169: 513.3838 | F169: 2413.362628 | G169: 3861.94346 | H169: 3348.55966 | I169: 13.29340539 | J169: Cumple | L169: 4229.697 | M169: 971.04962 | N169: 3258.64738 | O169: Cumple
A170: 162 | B170: 021013 | C170: ANCASH | D170: MUNICIPALIDAD DISTRITAL DE RAPAYAN | E170: 941.58643 | F170: 7045.689637 | G170: 13349.53881 | H170: 12407.95238 | I170: 7.053325537 | J170: Cumple | L170: 13345.98436 | M170: 4273.88462 | N170: 9072.09974 | O170: Cumple
A171: 163 | B171: 021014 | C171: ANCASH | D171: MUNICIPALIDAD DISTRITAL DE SAN MARCOS | E171: 6636.63677 | F171: 131054.0047 | G171: 284042.0894 | H171: 277405.4527 | I171: 2.336497659 | J171: Cumple | L171: 250278.1451 | M171: 40771.93757 | N171: 209506.2075 | O171: Cumple
A172: 164 | B172: 021015 | C172: ANCASH | D172: MUNICIPALIDAD DISTRITAL DE SAN PEDRO DE CHANA | E172: 165.19874 | F172: 11851.25156 | G172: 21208.84503 | H172: 21043.64629 | I172: 0.7789143622 | J172: Cumple | L172: 21388.14458 | M172: 3375.32269 | N172: 18012.82189 | O172: Cumple
A173: 165 | B173: 021016 | C173: ANCASH | D173: MUNICIPALIDAD DISTRITAL DE UCO | E173: 335.6592 | F173: 5996.275635 | G173: 10866.57469 | H173: 10530.91549 | I173: 3.088914488 | J173: Cumple | L173: 11542.12997 | M173: 1767.36111 | N173: 9774.76886 | O173: Cumple
A174: 166 | B174: 021101 | C174: ANCASH | D174: MUNICIPALIDAD PROVINCIAL DE HUARMEY | E174: 19083.24406 | F174: 17566.22566 | G174: 15346.77702 | H174: 0 | I174: 108.6359952 | J174: No Cumple | L174: 23378.60633 | M174: 12037.42241 | N174: 11341.18392 | O174: Cumple
A175: 167 | B175: 021102 | C175: ANCASH | D175: MUNICIPALIDAD DISTRITAL DE COCHAPETI | E175: 8.0676 | F175: 901.1432225 | G175: 842.30999 | H175: 893.0756225 | I175: 0.8952627949 | J175: Cumple | L175: 1151.34848 | M175: 449.63871 | N175: 701.70977 | O175: Cumple
A176: 168 | B176: 021103 | C176: ANCASH | D176: MUNICIPALIDAD DISTRITAL DE CULEBRAS | E176: 4692.08981 | F176: 2972.456415 | G176: 4774.25868 | H176: 82.16887 | I176: 98.27891877 | J176: Cumple | L176: 3887.62767 | M176: 1624.39204 | N176: 2263.23563 | O176: Cumple
A177: 169 | B177: 021104 | C177: ANCASH | D177: MUNICIPALIDAD DISTRITAL DE HUAYAN | E177: 39.16782 | F177: 952.2961325 | G177: 1046.45725 | H177: 1007.28943 | I177: 3.742897285 | J177: Cumple | L177: 1307.31123 | M177: 851.05068 | N177: 456.26055 | O177: Cumple
A178: 170 | B178: 021105 | C178: ANCASH | D178: MUNICIPALIDAD DISTRITAL DE MALVAS | E178: 278.79103 | F178: 959.14931 | G178: 878.37221 | H178: 680.35828 | I178: 29.06648914 | J178: Cumple | L178: 1211.61662 | M178: 320.37234 | N178: 891.24428 | O178: Cumple
A179: 171 | B179: 021201 | C179: ANCASH | D179: MUNICIPALIDAD PROVINCIAL DE HUAYLAS - CARAZ | E179: 1628.34688 | F179: 19578.88424 | G179: 18632.5657 | H179: 17950.53736 | I179: 8.316852279 | J179: Cumple | L179: 24051.58611 | M179: 9843.06002 | N179: 14208.52609 | O179: Cumple
A180: 172 | B180: 021202 | C180: ANCASH | D180: MUNICIPALIDAD DISTRITAL DE HUALLANCA | E180: 18.62074 | F180: 3325.05421 | G180: 4066.86511 | H180: 4048.24437 | I180: 0.4578647065 | J180: Cumple | L180: 3641.81959 | M180: 674.59037 | N180: 2967.22922 | O180: Cumple
A181: 173 | B181: 021203 | C181: ANCASH | D181: MUNICIPALIDAD DISTRITAL DE HUATA | E181: 242.89896 | F181: 1388.047532 | G181: 1632.22981 | H181: 1389.33085 | I181: 14.88141918 | J181: Cumple | L181: 1790.04678 | M181: 681.00172 | N181: 1109.04506 | O181: Cumple
A182: 174 | B182: 021204 | C182: ANCASH | D182: MUNICIPALIDAD DISTRITAL DE HUAYLAS | E182: 320.41082 | F182: 1555.363223 | G182: 2190.22473 | H182: 1869.81391 | I182: 14.62912986 | J182: Cumple | L182: 2019.98786 | M182: 718.66632 | N182: 1301.32154 | O182: Cumple
A183: 175 | B183: 021205 | C183: ANCASH | D183: MUNICIPALIDAD DISTRITAL DE MATO | E183: 458.187 | F183: 1325.443117 | G183: 1691.01447 | H183: 1232.82747 | I183: 27.09539203 | J183: Cumple | L183: 1737.47314 | M183: 687.4905 | N183: 1049.98264 | O183: Cumple
A184: 176 | B184: 021206 | C184: ANCASH | D184: MUNICIPALIDAD DISTRITAL DE PAMPAROMAS | E184: 1490.79193 | F184: 7854.544182 | G184: 11035.62183 | H184: 9544.8299 | I184: 13.50890736 | J184: Cumple | L184: 11991.68562 | M184: 3963.81438 | N184: 8027.87124 | O184: Cumple
A185: 177 | B185: 021207 | C185: ANCASH | D185: MUNICIPALIDAD DISTRITAL DE PUEBLO LIBRE | E185: 482.33056 | F185: 5496.66152 | G185: 8072.9196 | H185: 7590.58904 | I185: 5.974673153 | J185: Cumple | L185: 7995.32716 | M185: 2117.28014 | N185: 5878.04702 | O185: Cumple
A186: 178 | B186: 021208 | C186: ANCASH | D186: MUNICIPALIDAD DISTRITAL DE SANTA CRUZ | E186: 814.02424 | F186: 4750.328247 | G186: 7408.44714 | H186: 6594.4229 | I186: 10.98778495 | J186: Cumple | L186: 6968.15899 | M186: 2442.45035 | N186: 4525.70864 | O186: Cumple
A187: 179 | B187: 021209 | C187: ANCASH | D187: MUNICIPALIDAD DISTRITAL DE SANTO TORIBIO | E187: 277.89013 | F187: 1611.463875 | G187: 1529.11773 | H187: 1333.573745 | I187: 17.24457708 | J187: Cumple | L187: 2392.7735 | M187: 947.79258 | N187: 1444.98092 | O187: Cumple
A188: 180 | B188: 021210 | C188: ANCASH | D188: MUNICIPALIDAD DISTRITAL DE YURACMARCA | E188: 150.85702 | F188: 3294.378342 | G188: 5253.75494 | H188: 5102.89792 | I188: 2.871413336 | J188: Cumple | L188: 5440.94917 | M188: 1080.52283 | N188: 4360.42634 | O188: Cumple
A189: 181 | B189: 021301 | C189: ANCASH | D189: MUNICIPALIDAD PROVINCIAL DE MARISCAL LUZURIAGA - PISCOBAMBA | E189: 2501.77519 | F189: 5075.603415 | G189: 3226.21002 | H189: 2573.828225 | I189: 49.29020228 | J189: Cumple | L189: 6546.795 | M189: 3211.15606 | N189: 3335.63894 | O189: Cumple
A190: 182 | B190: 021302 | C190: ANCASH | D190: MUNICIPALIDAD DISTRITAL DE CASCA | E190: 168.83023 | F190: 3969.198983 | G190: 4953.48938 | H190: 4784.65915 | I190: 3.408309114 | J190: Cumple | L190: 6036.0571 | M190: 2053.54187 | N190: 3982.51523 | O190: Cumple
A191: 183 | B191: 021303 | C191: ANCASH | D191: MUNICIPALIDAD DISTRITAL DE ELEAZAR GUZMAN BARRON | E191: 51.76501 | F191: 1284.541817 | G191: 1520.97865 | H191: 1469.21364 | I191: 3.403401488 | J191: Cumple | L191: 1919.03138 | M191: 992.32785 | N191: 926.70353 | O191: Cumple
A192: 184 | B192: 021304 | C192: ANCASH | D192: MUNICIPALIDAD DISTRITAL DE FIDEL OLIVAS ESCUDERO | E192: 1.099 | F192: 1964.039908 | G192: 2351.82229 | H192: 2350.72329 | I192: 0.04672972123 | J192: Cumple | L192: 2994.71147 | M192: 1232.05331 | N192: 1762.65816 | O192: Cumple
A193: 185 | B193: 021305 | C193: ANCASH | D193: MUNICIPALIDAD DISTRITAL DE LLAMA | E193: 67.31526 | F193: 1306.561855 | G193: 1352.66775 | H193: 1285.35249 | I193: 4.976481475 | J193: Cumple | L193: 2359.13577 | M193: 727.10031 | N193: 1632.03546 | O193: Cumple
A194: 186 | B194: 021306 | C194: ANCASH | D194: MUNICIPALIDAD DISTRITAL DE LLUMPA | E194: 156.61689 | F194: 5470.345465 | G194: 6849.74367 | H194: 6693.12678 | I194: 2.286463517 | J194: Cumple | L194: 8397.78721 | M194: 1907.28581 | N194: 6490.5014 | O194: Cumple
A195: 187 | B195: 021307 | C195: ANCASH | D195: MUNICIPALIDAD DISTRITAL DE LUCMA | E195: 3.5488 | F195: 2809.341285 | G195: 3592.77429 | H195: 3589.22549 | I195: 0.09877603527 | J195: Cumple | L195: 4453.17171 | M195: 1180.39069 | N195: 3272.78102 | O195: Cumple
A196: 188 | B196: 021308 | C196: ANCASH | D196: MUNICIPALIDAD DISTRITAL DE MUSGA | E196: 502.92158 | F196: 1076.67137 | G196: 1115.47687 | H196: 612.55529 | I196: 45.08579187 | J196: Cumple | L196: 1444.89695 | M196: 571.56492 | N196: 873.33203 | O196: Cumple
A197: 189 | B197: 021401 | C197: ANCASH | D197: MUNICIPALIDAD PROVINCIAL DE OCROS | E197: 519.56117 | F197: 2644.48357 | G197: 695.61069 | H197: 2124.9224 | I197: 19.64698045 | J197: Cumple | L197: 2775.36051 | M197: 1717.55826 | N197: 1057.80225 | O197: Cumple
A198: 190 | B198: 021402 | C198: ANCASH | D198: MUNICIPALIDAD DISTRITAL DE ACAS | E198: 47.5406 | F198: 1175.369265 | G198: 1151.92849 | H198: 1127.828665 | I198: 4.044737379 | J198: Cumple | L198: 1529.02846 | M198: 546.48129 | N198: 982.54717 | O198: Cumple
A199: 191 | B199: 021403 | C199: ANCASH | D199: MUNICIPALIDAD DISTRITAL DE CAJAMARQUILLA | E199: 18.4923 | F199: 599.05268 | G199: 283.60981 | H199: 580.56038 | I199: 3.086923841 | J199: Cumple | L199: 706.89068 | M199: 306.9785 | N199: 399.91218 | O199: Cumple
A200: 192 | B200: 021404 | C200: ANCASH | D200: MUNICIPALIDAD DISTRITAL DE CARHUAPAMPA | E200: 54.2568 | F200: 1011.1441 | G200: 1017.10422 | H200: 962.84742 | I200: 5.334438589 | J200: Cumple | L200: 1346.63603 | M200: 483.72173 | N200: 862.9143 | O200: Cumple
A201: 193 | B201: 021405 | C201: ANCASH | D201: MUNICIPALIDAD DISTRITAL DE COCHAS | E201: 277.69754 | F201: 1357.50633 | G201: 1193.18132 | H201: 1079.80879 | I201: 20.45644531 | J201: Cumple | L201: 1896.74222 | M201: 971.46627 | N201: 925.27595 | O201: Cumple
A202: 194 | B202: 021406 | C202: ANCASH | D202: MUNICIPALIDAD DISTRITAL DE CONGAS | E202: 12.468 | F202: 1067.664002 | G202: 1226.88148 | H202: 1214.41348 | I202: 1.016235081 | J202: Cumple | L202: 1540.77056 | M202: 419.45354 | N202: 1121.31702 | O202: Cumple
... 1687 more rows

Sheet DPTO (hidden)
A1: -------------------- | B1: CODI_DEP | C1: DESC_DEP
A2: 01:AMAZONAS | B2: 01 | C2: AMAZONAS
A3: 02:ANCASH | B3: 02 | C3: ANCASH
A4: 03:APURIMAC | B4: 03 | C4: APURIMAC
A5: 04:AREQUIPA | B5: 04 | C5: AREQUIPA
A6: 05:AYACUCHO | B6: 05 | C6: AYACUCHO
A7: 06:CAJAMARCA | B7: 06 | C7: CAJAMARCA
A8: 07:PROV CONSTIT DEL CALLAO | B8: 07 | C8: PROV CONSTIT DEL CALLAO
A9: 08:CUSCO | B9: 08 | C9: CUSCO
A10: 09:HUANCAVELICA | B10: 09 | C10: HUANCAVELICA
A11: 10:HUANUCO | B11: 10 | C11: HUANUCO
A12: 11:ICA | B12: 11 | C12: ICA
A13: 12:JUNIN | B13: 12 | C13: JUNIN
A14: 13:LA LIBERTAD | B14: 13 | C14: LA LIBERTAD
A15: 14:LAMBAYEQUE | B15: 14 | C15: LAMBAYEQUE
A16: 15:LIMA | B16: 15 | C16: LIMA
A17: 16:LORETO | B17: 16 | C17: LORETO
A18: 17:MADRE DE DIOS | B18: 17 | C18: MADRE DE DIOS
A19: 18:MOQUEGUA | B19: 18 | C19: MOQUEGUA
A20: 19:PASCO | B20: 19 | C20: PASCO
A21: 20:PIURA | B21: 20 | C21: PIURA
A22: 21:PUNO | B22: 21 | C22: PUNO
A23: 22:SAN MARTIN | B23: 22 | C23: SAN MARTIN
A24: 23:TACNA | B24: 23 | C24: TACNA
A25: 24:TUMBES | B25: 24 | C25: TUMBES
A26: 25:UCAYALI | B26: 25 | C26: UCAYALI

Sheet PROV (hidden)
A1: PROV | B1: CODI_DEP | C1: CODI_PRO | D1: DESC_PRO
A2: 0101:CHACHAPOYAS | B2: 01 | C2: 01 | D2: CHACHAPOYAS
A3: 0102:BAGUA | B3: 01 | C3: 02 | D3: BAGUA
A4: 0103:BONGARA | B4: 01 | C4: 03 | D4: BONGARA
A5: 0104:CONDORCANQUI | B5: 01 | C5: 04 | D5: CONDORCANQUI
A6: 0105:LUYA | B6: 01 | C6: 05 | D6: LUYA
A7: 0106:RODRIGUEZ DE MENDOZA | B7: 01 | C7: 06 | D7: RODRIGUEZ DE MENDOZA
A8: 0107:UCTUBAMBA | B8: 01 | C8: 07 | D8: UCTUBAMBA
A9: 0201:HUARAZ | B9: 02 | C9: 01 | D9: HUARAZ
A10: 0202:AIJA | B10: 02 | C10: 02 | D10: AIJA
A11: 0203:ANTONIO RAIMONDI | B11: 02 | C11: 03 | D11: ANTONIO RAIMONDI
A12: 0204:ASUNCION | B12: 02 | C12: 04 | D12: ASUNCION
A13: 0205:BOLOGNESI | B13: 02 | C13: 05 | D13: BOLOGNESI
A14: 0206:CARHUAZ | B14: 02 | C14: 06 | D14: CARHUAZ
A15: 0207:CARLOS FERMIN FITZCARRALD | B15: 02 | C15: 07 | D15: CARLOS FERMIN FITZCARRALD
A16: 0208:CASMA | B16: 02 | C16: 08 | D16: CASMA
A17: 0209:CORONGO | B17: 02 | C17: 09 | D17: CORONGO
A18: 0210:HUARI | B18: 02 | C18: 10 | D18: HUARI
A19: 0211:HUARMEY | B19: 02 | C19: 11 | D19: HUARMEY
A20: 0212:HUAYLAS | B20: 02 | C20: 12 | D20: HUAYLAS
A21: 0213:MARISCAL LUZURIAGA | B21: 02 | C21: 13 | D21: MARISCAL LUZURIAGA
A22: 0214:OCROS | B22: 02 | C22: 14 | D22: OCROS
A23: 0215:PALLASCA | B23: 02 | C23: 15 | D23: PALLASCA
A24: 0216:POMABAMBA | B24: 02 | C24: 16 | D24: POMABAMBA
A25: 0217:RECUAY | B25: 02 | C25: 17 | D25: RECUAY
A26: 0218:SANTA | B26: 02 | C26: 18 | D26: SANTA
A27: 0219:SIHUAS | B27: 02 | C27: 19 | D27: SIHUAS
A28: 0220:YUNGAY | B28: 02 | C28: 20 | D28: YUNGAY
A29: 0301:ABANCAY | B29: 03 | C29: 01 | D29: ABANCAY
A30: 0302:ANDAHUAYLAS | B30: 03 | C30: 02 | D30: ANDAHUAYLAS
A31: 0303:ANTABAMBA | B31: 03 | C31: 03 | D31: ANTABAMBA
A32: 0304:AYMARAES | B32: 03 | C32: 04 | D32: AYMARAES
A33: 0305:COTABAMBA | B33: 03 | C33: 05 | D33: COTABAMBA
A34: 0306:CHINCHEROS | B34: 03 | C34: 06 | D34: CHINCHEROS
A35: 0307:GRAU | B35: 03 | C35: 07 | D35: GRAU
A36: 0401:AREQUIPA | B36: 04 | C36: 01 | D36: AREQUIPA
A37: 0402:CAMANA | B37: 04 | C37: 02 | D37: CAMANA
A38: 0403:CARAVELI | B38: 04 | C38: 03 | D38: CARAVELI
A39: 0404:CASTILLA | B39: 04 | C39: 04 | D39: CASTILLA
A40: 0405:CAYLLOMA | B40: 04 | C40: 05 | D40: CAYLLOMA
A41: 0406:CONDESUYOS | B41: 04 | C41: 06 | D41: CONDESUYOS
A42: 0407:ISLAY | B42: 04 | C42: 07 | D42: ISLAY
A43: 0408:LA UNION | B43: 04 | C43: 08 | D43: LA UNION
A44: 0501:HUAMANGA | B44: 05 | C44: 01 | D44: HUAMANGA
A45: 0502:CANGALLO | B45: 05 | C45: 02 | D45: CANGALLO
A46: 0503:HUANCA SANCOS | B46: 05 | C46: 03 | D46: HUANCA SANCOS
A47: 0504:HUANTA | B47: 05 | C47: 04 | D47: HUANTA
A48: 0505:LA MAR | B48: 05 | C48: 05 | D48: LA MAR
A49: 0506:LUCANAS | B49: 05 | C49: 06 | D49: LUCANAS
A50: 0507:PARINACOCHAS | B50: 05 | C50: 07 | D50: PARINACOCHAS
A51: 0508:PAUCAR DEL SARA SARA | B51: 05 | C51: 08 | D51: PAUCAR DEL SARA SARA
A52: 0509:SUCRE | B52: 05 | C52: 09 | D52: SUCRE
A53: 0510:VICTOR FAJARDO | B53: 05 | C53: 10 | D53: VICTOR FAJARDO
A54: 0511:VILCASHUAMAN | B54: 05 | C54: 11 | D54: VILCASHUAMAN
A55: 0601:CAJAMARCA | B55: 06 | C55: 01 | D55: CAJAMARCA
A56: 0602:CAJABAMBA | B56: 06 | C56: 02 | D56: CAJABAMBA
A57: 0603:CELENDIN | B57: 06 | C57: 03 | D57: CELENDIN
A58: 0604:CHOTA | B58: 06 | C58: 04 | D58: CHOTA
A59: 0605:CONTUMAZA | B59: 06 | C59: 05 | D59: CONTUMAZA
A60: 0606:CUTERVO | B60: 06 | C60: 06 | D60: CUTERVO
A61: 0607:HUALGAYOC | B61: 06 | C61: 07 | D61: HUALGAYOC
A62: 0608:JAEN | B62: 06 | C62: 08 | D62: JAEN
A63: 0609:SAN IGNACIO | B63: 06 | C63: 09 | D63: SAN IGNACIO
A64: 0610:SAN MARCOS | B64: 06 | C64: 10 | D64: SAN MARCOS
A65: 0611:SAN MIGUEL | B65: 06 | C65: 11 | D65: SAN MIGUEL
A66: 0612:SAN PABLO | B66: 06 | C66: 12 | D66: SAN PABLO
A67: 0613:SANTA CRUZ | B67: 06 | C67: 13 | D67: SANTA CRUZ
A68: 0701:PROV. CALLAO | B68: 07 | C68: 01 | D68: PROV. CALLAO
A69: 0801:CUSCO | B69: 08 | C69: 01 | D69: CUSCO
A70: 0802:ACOMAYO | B70: 08 | C70: 02 | D70: ACOMAYO
A71: 0803:ANTA | B71: 08 | C71: 03 | D71: ANTA
A72: 0804:CALCA | B72: 08 | C72: 04 | D72: CALCA
A73: 0805:CANAS | B73: 08 | C73: 05 | D73: CANAS
A74: 0806:CANCHIS | B74: 08 | C74: 06 | D74: CANCHIS
A75: 0807:CHUMBIVILCAS | B75: 08 | C75: 07 | D75: CHUMBIVILCAS
A76: 0808:ESPINAR | B76: 08 | C76: 08 | D76: ESPINAR
A77: 0809:LA CONVENCION | B77: 08 | C77: 09 | D77: LA CONVENCION
A78: 0810:PARURO | B78: 08 | C78: 10 | D78: PARURO
A79: 0811:PAUCARTAMBO | B79: 08 | C79: 11 | D79: PAUCARTAMBO
A80: 0812:QUISPICANCHIS | B80: 08 | C80: 12 | D80: QUISPICANCHIS
A81: 0813:URUBAMBA | B81: 08 | C81: 13 | D81: URUBAMBA
A82: 0901:HUANCAVELICA | B82: 09 | C82: 01 | D82: HUANCAVELICA
A83: 0902:ACOBAMBA | B83: 09 | C83: 02 | D83: ACOBAMBA
A84: 0903:ANGARAES | B84: 09 | C84: 03 | D84: ANGARAES
A85: 0904:CASTROVIRREYNA | B85: 09 | C85: 04 | D85: CASTROVIRREYNA
A86: 0905:CHURCAMPA | B86: 09 | C86: 05 | D86: CHURCAMPA
A87: 0906:HUAYTARA | B87: 09 | C87: 06 | D87: HUAYTARA
A88: 0907:TAYACAJA | B88: 09 | C88: 07 | D88: TAYACAJA
A89: 1001:HUANUCO | B89: 10 | C89: 01 | D89: HUANUCO
A90: 1002:AMBO | B90: 10 | C90: 02 | D90: AMBO
A91: 1003:DOS DE MAYO | B91: 10 | C91: 03 | D91: DOS DE MAYO
A92: 1004:HUACAYBAMBA | B92: 10 | C92: 04 | D92: HUACAYBAMBA
A93: 1005:HUAMALIES | B93: 10 | C93: 05 | D93: HUAMALIES
A94: 1006:LEONCIO PRADO | B94: 10 | C94: 06 | D94: LEONCIO PRADO
A95: 1007:MARANON | B95: 10 | C95: 07 | D95: MARANON
A96: 1008:PACHITEA | B96: 10 | C96: 08 | D96: PACHITEA
A97: 1009:PUERTO INCA | B97: 10 | C97: 09 | D97: PUERTO INCA
A98: 1010:LAURICOCHA | B98: 10 | C98: 10 | D98: LAURICOCHA
A99: 1011:YAROWILCA | B99: 10 | C99: 11 | D99: YAROWILCA
A100: 1101:ICA | B100: 11 | C100: 01 | D100: ICA
A101: 1102:CHINCHA | B101: 11 | C101: 02 | D101: CHINCHA
A102: 1103:NAZCA | B102: 11 | C102: 03 | D102: NAZCA
A103: 1104:PALPA | B103: 11 | C103: 04 | D103: PALPA
A104: 1105:PISCO | B104: 11 | C104: 05 | D104: PISCO
A105: 1201:HUANCAYO | B105: 12 | C105: 01 | D105: HUANCAYO
A106: 1202:CONCEPCION | B106: 12 | C106: 02 | D106: CONCEPCION
A107: 1203:CHANCHAMAYO | B107: 12 | C107: 03 | D107: CHANCHAMAYO
A108: 1204:JAUJA | B108: 12 | C108: 04 | D108: JAUJA
A109: 1205:JUNIN | B109: 12 | C109: 05 | D109: JUNIN
A110: 1206:SATIPO | B110: 12 | C110: 06 | D110: SATIPO
A111: 1207:TARMA | B111: 12 | C111: 07 | D111: TARMA
A112: 1208:YAULI | B112: 12 | C112: 08 | D112: YAULI
A113: 1209:CHUPACA | B113: 12 | C113: 09 | D113: CHUPACA
A114: 1301:TRUJILLO | B114: 13 | C114: 01 | D114: TRUJILLO
A115: 1302:ASCOPE | B115: 13 | C115: 02 | D115: ASCOPE
A116: 1303:BOLIVAR | B116: 13 | C116: 03 | D116: BOLIVAR
A117: 1304:CHEPEN | B117: 13 | C117: 04 | D117: CHEPEN
A118: 1305:JULCAN | B118: 13 | C118: 05 | D118: JULCAN
A119: 1306:OTUZCO | B119: 13 | C119: 06 | D119: OTUZCO
A120: 1307:PACASMAYO | B120: 13 | C120: 07 | D120: PACASMAYO
A121: 1308:PATAZ | B121: 13 | C121: 08 | D121: PATAZ
A122: 1309:SANCHEZ CARRION | B122: 13 | C122: 09 | D122: SANCHEZ CARRION
A123: 1310:SANTIAGO DE CHUCO | B123: 13 | C123: 10 | D123: SANTIAGO DE CHUCO
A124: 1311:GRAN CHIMU | B124: 13 | C124: 11 | D124: GRAN CHIMU
A125: 1312:VIRU | B125: 13 | C125: 12 | D125: VIRU
A126: 1401:CHICLAYO | B126: 14 | C126: 01 | D126: CHICLAYO
A127: 1402:FERRENAFE | B127: 14 | C127: 02 | D127: FERRENAFE
A128: 1403:LAMBAYEQUE | B128: 14 | C128: 03 | D128: LAMBAYEQUE
A129: 1501:LIMA | B129: 15 | C129: 01 | D129: LIMA
A130: 1502:BARRANCA | B130: 15 | C130: 02 | D130: BARRANCA
A131: 1503:CAJATAMBO | B131: 15 | C131: 03 | D131: CAJATAMBO
A132: 1504:CANTA | B132: 15 | C132: 04 | D132: CANTA
A133: 1505:CAÑETE | B133: 15 | C133: 05 | D133: CAÑETE
A134: 1506:HUARAL | B134: 15 | C134: 06 | D134: HUARAL
A135: 1507:HUAROCHIRI | B135: 15 | C135: 07 | D135: HUAROCHIRI
A136: 1508:HUAURA | B136: 15 | C136: 08 | D136: HUAURA
A137: 1509:OYON | B137: 15 | C137: 09 | D137: OYON
A138: 1510:YAUYOS | B138: 15 | C138: 10 | D138: YAUYOS
A139: 1601:MAYNAS | B139: 16 | C139: 01 | D139: MAYNAS
A140: 1602:ALTO AMAZONAS | B140: 16 | C140: 02 | D140: ALTO AMAZONAS
A141: 1603:LORETO | B141: 16 | C141: 03 | D141: LORETO
A142: 1604:RAMON CASTILLA | B142: 16 | C142: 04 | D142: RAMON CASTILLA
A143: 1605:REQUENA | B143: 16 | C143: 05 | D143: REQUENA
A144: 1606:UCAYALI | B144: 16 | C144: 06 | D144: UCAYALI
A145: 1607:DATEM DEL MARAÑON | B145: 16 | C145: 07 | D145: DATEM DEL MARAÑON
A146: 1608:PUTUMAYO | B146: 16 | C146: 08 | D146: PUTUMAYO
A147: 1701:TAMBOPATA | B147: 17 | C147: 01 | D147: TAMBOPATA
A148: 1702:MANU | B148: 17 | C148: 02 | D148: MANU
A149: 1703:TAHUAMANU | B149: 17 | C149: 03 | D149: TAHUAMANU
A150: 1801:MARISCAL NIETO | B150: 18 | C150: 01 | D150: MARISCAL NIETO
A151: 1802:GENERAL SANCHEZ CERRO | B151: 18 | C151: 02 | D151: GENERAL SANCHEZ CERRO
A152: 1803:ILO | B152: 18 | C152: 03 | D152: ILO
A153: 1901:PASCO | B153: 19 | C153: 01 | D153: PASCO
A154: 1902:DANIEL A. CARRION | B154: 19 | C154: 02 | D154: DANIEL A. CARRION
A155: 1903:OXAPAMPA | B155: 19 | C155: 03 | D155: OXAPAMPA
A156: 2001:PIURA | B156: 20 | C156: 01 | D156: PIURA
A157: 2002:AYABACA | B157: 20 | C157: 02 | D157: AYABACA
A158: 2003:HUANCABAMBA | B158: 20 | C158: 03 | D158: HUANCABAMBA
A159: 2004:MORROPON | B159: 20 | C159: 04 | D159: MORROPON
A160: 2005:PAITA | B160: 20 | C160: 05 | D160: PAITA
A161: 2006:SULLANA | B161: 20 | C161: 06 | D161: SULLANA
A162: 2007:TALARA | B162: 20 | C162: 07 | D162: TALARA
A163: 2008:SECHURA | B163: 20 | C163: 08 | D163: SECHURA
A164: 2101:PUNO | B164: 21 | C164: 01 | D164: PUNO
A165: 2102:AZANGARO | B165: 21 | C165: 02 | D165: AZANGARO
A166: 2103:CARABAYA | B166: 21 | C166: 03 | D166: CARABAYA
A167: 2104:CHUCUITO | B167: 21 | C167: 04 | D167: CHUCUITO
A168: 2105:EL COLLAO | B168: 21 | C168: 05 | D168: EL COLLAO
A169: 2106:HUANCANE | B169: 21 | C169: 06 | D169: HUANCANE
A170: 2107:LAMPA | B170: 21 | C170: 07 | D170: LAMPA
A171: 2108:MELGAR | B171: 21 | C171: 08 | D171: MELGAR
A172: 2109:MOHO | B172: 21 | C172: 09 | D172: MOHO
A173: 2110:SAN ANTONIO DE PUTINA | B173: 21 | C173: 10 | D173: SAN ANTONIO DE PUTINA
A174: 2111:SAN ROMAN | B174: 21 | C174: 11 | D174: SAN ROMAN
A175: 2112:SANDIA | B175: 21 | C175: 12 | D175: SANDIA
A176: 2113:YUNGUYO | B176: 21 | C176: 13 | D176: YUNGUYO
A177: 2201:MOYOBAMBA | B177: 22 | C177: 01 | D177: MOYOBAMBA
A178: 2202:BELLAVISTA | B178: 22 | C178: 02 | D178: BELLAVISTA
A179: 2203:EL DORADO | B179: 22 | C179: 03 | D179: EL DORADO
A180: 2204:HUALLAGA | B180: 22 | C180: 04 | D180: HUALLAGA
A181: 2205:LAMAS | B181: 22 | C181: 05 | D181: LAMAS
A182: 2206:MARISCAL CACERES | B182: 22 | C182: 06 | D182: MARISCAL CACERES
A183: 2207:PICOTA | B183: 22 | C183: 07 | D183: PICOTA
A184: 2208:RIOJA | B184: 22 | C184: 08 | D184: RIOJA
A185: 2209:SAN MARTIN | B185: 22 | C185: 09 | D185: SAN MARTIN
A186: 2210:TOCACHE | B186: 22 | C186: 10 | D186: TOCACHE
A187: 2301:TACNA | B187: 23 | C187: 01 | D187: TACNA
A188: 2302:CANDARAVE | B188: 23 | C188: 02 | D188: CANDARAVE
A189: 2303:JORGE BASADRE | B189: 23 | C189: 03 | D189: JORGE BASADRE
A190: 2304:TARATA | B190: 23 | C190: 04 | D190: TARATA
A191: 2401:TUMBES | B191: 24 | C191: 01 | D191: TUMBES
A192: 2402:CONTRALMIRANTE VILLAR | B192: 24 | C192: 02 | D192: CONTRALMIRANTE VILLAR
A193: 2403:ZARUMILLA | B193: 24 | C193: 03 | D193: ZARUMILLA
A194: 2501:CORONEL PORTILLO | B194: 25 | C194: 01 | D194: CORONEL PORTILLO
A195: 2502:ATALAYA | B195: 25 | C195: 02 | D195: ATALAYA
A196: 2503:PADRE ABAD | B196: 25 | C196: 03 | D196: PADRE ABAD
A197: 2504:PURUS | B197: 25 | C197: 04 | D197: PURUS

Sheet ENTIDAD (hidden)
A1: ENTIDADES
A2: 010000 : GOBIERNO REGIONAL DE AMAZONAS
A3: 020000 : GOBIERNO REGIONAL DE ANCASH
A4: 030000 : GOBIERNO REGIONAL DE APURIMAC
A5: 040000 : GOBIERNO REGIONAL DE AREQUIPA
A6: 050000 : GOBIERNO REGIONAL DE AYACUCHO
A7: 060000 : GOBIERNO REGIONAL DE CAJAMARCA
A8: 070000 : GOBIERNO REGIONAL DEL CALLAO
A9: 080000 : GOBIERNO REGIONAL DE CUSCO
A10: 090000 : GOBIERNO REGIONAL DE HUANCAVELICA
A11: 100000 : GOBIERNO REGIONAL DE HUANUCO
A12: 110000 : GOBIERNO REGIONAL DE ICA
A13: 120000 : GOBIERNO REGIONAL DE JUNIN
A14: 130000 : GOBIERNO REGIONAL DE LA LIBERTAD
A15: 140000 : GOBIERNO REGIONAL DE LAMBAYEQUE
A16: 150000 : GOBIERNO REGIONAL DE LIMA
A17: 160000 : GOBIERNO REGIONAL DE LORETO
A18: 170000 : GOBIERNO REGIONAL DE MADRE DE DIOS
A19: 180000 : GOBIERNO REGIONAL DE MOQUEGUA
A20: 190000 : GOBIERNO REGIONAL DE PASCO
A21: 200000 : GOBIERNO REGIONAL DE PIURA
A22: 210000 : GOBIERNO REGIONAL DE PUNO
A23: 220000 : GOBIERNO REGIONAL DE SAN MARTIN
A24: 230000 : GOBIERNO REGIONAL DE TACNA
A25: 240000 : GOBIERNO REGIONAL DE TUMBES
A26: 250000 : GOBIERNO REGIONAL DE UCAYALI
A27: 260000 : REGION LIMA METROPOLITANA
A28: 010101 : MP DE CHACHAPOYAS
A29: 010102 : MD DE ASUNCION
A30: 010103 : MD DE BALSAS
A31: 010104 : MD DE CHETO
A32: 010105 : MD DE CHILIQUIN
A33: 010106 : MD DE CHUQUIBAMBA
A34: 010107 : MD DE GRANADA
A35: 010108 : MD DE HUANCAS
A36: 010109 : MD DE JALCA GRANDE
A37: 010110 : MD DE LEIMEBAMBA
A38: 010111 : MD DE LEVANTO
A39: 010112 : MD DE MAGDALENA
A40: 010113 : MD DE MARISCAL CASTILLA
A41: 010114 : MD DE MOLINOPAMPA
A42: 010115 : MD DE MONTEVIDEO
A43: 010116 : MD DE OLLEROS
A44: 010117 : MD DE QUINJALCA
A45: 010118 : MD DE SAN FRANCISCO DE DAGUAS
A46: 010119 : MD DE SAN ISIDRO DE MAYNO
A47: 010120 : MD DE SOLOCO
A48: 010121 : MD DE SONCHE
A49: 010201 : MP DE BAGUA - LA PECA
A50: 010202 : MD DE ARAMANGO
A51: 010203 : MD DE COPALLIN
A52: 010204 : MD DE EL PARCO
A53: 010205 : MD DE IMAZA
A54: 010206 : MD DE LA PECA
A55: 010301 : MP DE BONGARA - JUMBILLA
A56: 010302 : MD DE CHISQUILLA
A57: 010303 : MD DE CHURUJA
A58: 010304 : MD DE COROSHA
A59: 010305 : MD DE CUISPES
A60: 010306 : MD DE FLORIDA
A61: 010307 : MD DE JAZAN
A62: 010308 : MD DE RECTA
A63: 010309 : MD DE SAN CARLOS
A64: 010310 : MD DE SHIPASBAMBA
A65: 010311 : MD DE VALERA
A66: 010312 : MD DE YAMBRASBAMBA
A67: 010401 : MP DE CONDORCANQUI - NIEVA
A68: 010402 : MD DE EL CENEPA
A69: 010403 : MD DE RIO SANTIAGO
A70: 010501 : MP DE LUYA - LAMUD
A71: 010502 : MD DE CAMPORREDONDO
A72: 010503 : MD DE COCABAMBA
A73: 010504 : MD DE COLCAMAR
A74: 010505 : MD DE CONILA
A75: 010506 : MD DE INGUILPATA
A76: 010507 : MD DE LONGUITA
A77: 010508 : MD DE LONYA CHICO
A78: 010509 : MD DE LUYA
A79: 010510 : MD DE LUYA VIEJO
A80: 010511 : MD DE MARIA
A81: 010512 : MD DE OCALLI
A82: 010513 : MD DE OCUMAL
A83: 010514 : MD DE PIZUQUIA
A84: 010515 : MD DE PROVIDENCIA
A85: 010516 : MD DE SAN CRISTOBAL DE OLTO
A86: 010517 : MD DE SAN FRANCISCO DE YESO
A87: 010518 : MD DE SAN JERONIMO DE PACLAS
A88: 010519 : MD DE SAN JUAN DE LOPECANCHA
A89: 010520 : MD DE SANTA CATALINA
A90: 010521 : MD DE SANTO TOMAS
A91: 010522 : MD DE TINGO
A92: 010523 : MD DE TRITA
A93: 010601 : MP DE RODRIGUEZ DE MENDOZA - SAN NICOLAS
A94: 010602 : MD DE CHIRIMOTO
A95: 010603 : MD DE COCHAMAL
A96: 010604 : MD DE HUAMBO
A97: 010605 : MD DE LIMABAMBA
A98: 010606 : MD DE LONGAR
A99: 010607 : MD DE MARISCAL BENAVIDES
A100: 010608 : MD DE MILPUC
A101: 010609 : MD DE OMIA
A102: 010610 : MD DE SANTA ROSA
A103: 010611 : MD DE TOTORA
A104: 010612 : MD DE VISTA ALEGRE
A105: 010701 : MP DE UTCUBAMBA - BAGUA GRANDE
A106: 010702 : MD DE CAJARURO
A107: 010703 : MD DE CUMBA
A108: 010704 : MD DE EL MILAGRO
A109: 010705 : MD DE JAMALCA
A110: 010706 : MD DE LONYA GRANDE
A111: 010707 : MD DE YAMON
A112: 020101 : MP DE HUARAZ
A113: 020102 : MD DE COCHABAMBA
A114: 020103 : MD DE COLCABAMBA
A115: 020104 : MD DE HUANCHAY
A116: 020105 : MD DE INDEPENDENCIA
A117: 020106 : MD DE JANGAS
A118: 020107 : MD DE LA LIBERTAD
A119: 020108 : MD DE OLLEROS
A120: 020109 : MD DE PAMPAS
A121: 020110 : MD DE PARIACOTO
A122: 020111 : MD DE PIRA
A123: 020112 : MD DE TARICA
A124: 020201 : MP DE AIJA
A125: 020202 : MD DE CORIS
A126: 020203 : MD DE HUACLLAN
A127: 020204 : MD DE LA MERCED
A128: 020205 : MD DE SUCCHA
A129: 020301 : MP DE ANTONIO RAYMONDI - LLAMELLIN
A130: 020302 : MD DE ACSO
A131: 020303 : MD DE CHACCHO
A132: 020304 : MD DE CHINGAS
A133: 020305 : MD DE MIRGAS
A134: 020306 : MD DE SAN JUAN DE RONTOY
A135: 020401 : MP DE ASUNCION - CHACAS
A136: 020402 : MD DE ACOCHACA
A137: 020501 : MP DE BOLOGNESI - CHIQUIAN
A138: 020502 : MD DE ABELARDO PARDO LAZAMETA
A139: 020503 : MD DE ANTONIO RAYMONDI
A140: 020504 : MD DE AQUIA
A141: 020505 : MD DE CAJACAY
A142: 020506 : MD DE CANIS
A143: 020507 : MD DE COLQUIOC
A144: 020508 : MD DE HUALLANCA
A145: 020509 : MD DE HUASTA
A146: 020510 : MD DE HUAYLLACAYAN
A147: 020511 : MD DE LA PRIMAVERA
A148: 020512 : MD DE MANGAS
A149: 020513 : MD DE PACLLON
A150: 020514 : MD DE SAN MIGUEL DE CORPANQUI
A151: 020515 : MD DE TICLLOS
A152: 020601 : MP DE CARHUAZ
A153: 020602 : MD DE ACOPAMPA
A154: 020603 : MD DE AMASHCA
A155: 020604 : MD DE ANTA
A156: 020605 : MD DE ATAQUERO
A157: 020606 : MD DE MARCARA
A158: 020607 : MD DE PARIAHUANCA
A159: 020608 : MD DE SAN MIGUEL DE ACO
A160: 020609 : MD DE SHILLA
A161: 020610 : MD DE TINCO
A162: 020611 : MD DE YUNGAR
A163: 020701 : MP DE CARLOS FERMIN FITZCARRALD
A164: 020702 : MD DE SAN NICOLAS
A165: 020703 : MD DE YAUYA
A166: 020801 : MP DE CASMA
A167: 020802 : MD DE BUENA VISTA ALTA
A168: 020803 : MD DE COMANDANTE NOEL
A169: 020804 : MD DE YAUTAN
A170: 020901 : MP DE CORONGO
A171: 020902 : MD DE ACO
A172: 020903 : MD DE BAMBAS
A173: 020904 : MD DE CUSCA
A174: 020905 : MD DE LA PAMPA
A175: 020906 : MD DE YANAC
A176: 020907 : MD DE YUPAN
A177: 021001 : MP DE HUARI
A178: 021002 : MD DE ANRA
A179: 021003 : MD DE CAJAY
A180: 021004 : MD DE CHAVIN DE HUANTAR
A181: 021005 : MD DE HUACACHI
A182: 021006 : MD DE HUACCHIS
A183: 021007 : MD DE HUACHIS
A184: 021008 : MD DE HUANTAR
A185: 021009 : MD DE MASIN
A186: 021010 : MD DE PAUCAS
A187: 021011 : MD DE PONTO
A188: 021012 : MD DE RAHUAPAMPA
A189: 021013 : MD DE RAPAYAN
A190: 021014 : MD DE SAN MARCOS
A191: 021015 : MD DE SAN PEDRO DE CHANA
A192: 021016 : MD DE UCO
A193: 021101 : MP DE HUARMEY
A194: 021102 : MD DE COCHAPETI
A195: 021103 : MD DE CULEBRAS
A196: 021104 : MD DE HUAYAN
A197: 021105 : MD DE MALVAS
A198: 021201 : MP DE HUAYLAS - CARAZ
A199: 021202 : MD DE HUALLANCA
A200: 021203 : MD DE HUATA
... 1701 more rows

Sheet GRS (hidden)
A1: -----------------------------------------------
A2: 010000 : GOBIERNO REGIONAL DE AMAZONAS
A3: 020000 : GOBIERNO REGIONAL DE ANCASH
A4: 030000 : GOBIERNO REGIONAL DE APURIMAC
A5: 040000 : GOBIERNO REGIONAL DE AREQUIPA
A6: 050000 : GOBIERNO REGIONAL DE AYACUCHO
A7: 060000 : GOBIERNO REGIONAL DE CAJAMARCA
A8: 070000 : GOBIERNO REGIONAL DEL CALLAO
A9: 080000 : GOBIERNO REGIONAL DE CUSCO
A10: 090000 : GOBIERNO REGIONAL DE HUANCAVELICA
A11: 100000 : GOBIERNO REGIONAL DE HUANUCO
A12: 110000 : GOBIERNO REGIONAL DE ICA
A13: 120000 : GOBIERNO REGIONAL DE JUNIN
A14: 130000 : GOBIERNO REGIONAL DE LA LIBERTAD
A15: 140000 : GOBIERNO REGIONAL DE LAMBAYEQUE
A16: 150000 : GOBIERNO REGIONAL DE LIMA
A17: 160000 : GOBIERNO REGIONAL DE LORETO
A18: 170000 : GOBIERNO REGIONAL DE MADRE DE DIOS
A19: 180000 : GOBIERNO REGIONAL DE MOQUEGUA
A20: 190000 : GOBIERNO REGIONAL DE PASCO
A21: 200000 : GOBIERNO REGIONAL DE PIURA
A22: 210000 : GOBIERNO REGIONAL DE PUNO
A23: 220000 : GOBIERNO REGIONAL DE SAN MARTIN
A24: 230000 : GOBIERNO REGIONAL DE TACNA
A25: 240000 : GOBIERNO REGIONAL DE TUMBES
A26: 250000 : GOBIERNO REGIONAL DE UCAYALI
A27: 260000 : REGION LIMA METROPOLITANA

Sheet TIPOGOB (hidden)
A1: TIPOGOB
A2: Gobiernos Locales
A3: Gobiernos Regionales
A6: No Cumple
A7: Si Cumple
